{"text_format":"1","workbook":"xlsx","n_sheets":12,"sheets":["RH1","Risk Evreni Çalışması","Template vs. Examples","REF - Instructions","GİRİŞ - Kategoriler&Dereceleme","Risk - Belirleme","riskler","Risk - Analizi","Risk - Yönetimi","ÇIKTI - Risk Kaydı","REF - Glossary","REF - FAQs"],"not_rendered":{"charts":0,"images":3,"macros":1,"external_links":0,"defined_names":21,"comments":0,"pivot_tables":0},"unopened":[],"bounds":{"document_bytes":16777216,"sheet_cells":100000,"rows_first":2000,"rows_last":500,"rows_between":2000,"halvings":0,"cell_chars":16384,"cell_head_chars":4096},"cells_cut":0,"cells_raw":0,"read":"whole","date_system":"1900"}

{"sheet":"RH1","index":0,"n_rows":12,"n_cols":25,"rows_kept":12,"cut":false,"hidden":true,"merged":[[10,1,11,2],[10,14,11,15],[11,3,11,7],[11,16,11,20],[0,0,0,25],[2,1,2,7],[2,14,2,20],[3,1,3,7],[3,14,3,20],[5,1,9,1],[5,9,5,11],[5,14,9,14],[5,22,5,24]]}
["RİSK HARİTASI"]
[null,"SAĞLIK KÜLTÜR VE SPOR DAİRE BAŞKANLIĞI"]
[null,"Kontrol Önlemleri Öncesi Risk Haritası",null,null,null,null,null,null,null,null,null,null,null,null,"Kontrol Önlemleri Sonrası Risk Haritası"]
[null,"Her etki / olasılık senaryosu başına risk",null,null,null,null,null,null,null,null,null,null,null,null,"Her etki / olasılık senaryosu başına risk"]
[]
[null,"Etki","Çok Yüksek",{"$f":"IF('Risk - Analizi'!AK100=0,\"\",'Risk - Analizi'!AK100)","v":""},{"$f":"IF('Risk - Analizi'!AL100=0,\"\",'Risk - Analizi'!AL100)","v":""},{"$f":"IF('Risk - Analizi'!AM100=0,\"\",'Risk - Analizi'!AM100)","v":""},{"$f":"IF('Risk - Analizi'!AN100=0,\"\",'Risk - Analizi'!AN100)","v":""},{"$f":"IF('Risk - Analizi'!AO100=0,\"\",'Risk - Analizi'!AO100)","v":""},null,"Toplamlar",null,null,null,null,"Etki","Çok Yüksek",{"$f":"IF('Risk - Yönetimi'!AQ100=0,\"\",'Risk - Yönetimi'!AQ100)","v":""},{"$f":"IF('Risk - Yönetimi'!AR100=0,\"\",'Risk - Yönetimi'!AR100)","v":""},{"$f":"IF('Risk - Yönetimi'!AS100=0,\"\",'Risk - Yönetimi'!AS100)","v":""},{"$f":"IF('Risk - Yönetimi'!AT100=0,\"\",'Risk - Yönetimi'!AT100)","v":""},{"$f":"IF('Risk - Yönetimi'!AU100=0,\"\",'Risk - Yönetimi'!AU100)","v":""},null,"Toplamlar"]
[null,null,"Yüksek",{"$f":"IF('Risk - Analizi'!AF100=0,\"\",'Risk - Analizi'!AF100)","v":""},{"$f":"IF('Risk - Analizi'!AG100=0,\"\",'Risk - Analizi'!AG100)","v":""},{"$f":"IF('Risk - Analizi'!AH100=0,\"\",'Risk - Analizi'!AH100)","v":""},{"$f":"IF('Risk - Analizi'!AI100=0,\"\",'Risk - Analizi'!AI100)","v":""},{"$f":"IF('Risk - Analizi'!AJ100=0,\"\",'Risk - Analizi'!AJ100)","v":""},null,"Çok Yüksek Riskler",{"$f":"IF(SUM($L$7:$L$10)=0,\"\",L7/SUM($L$7:$L$10))","v":""},{"$f":"SUM(G6:H7)","v":0},null,null,null,"Yüksek",{"$f":"IF('Risk - Yönetimi'!AL100=0,\"\",'Risk - Yönetimi'!AL100)","v":""},{"$f":"IF('Risk - Yönetimi'!AM100=0,\"\",'Risk - Yönetimi'!AM100)","v":""},{"$f":"IF('Risk - Yönetimi'!AN100=0,\"\",'Risk - Yönetimi'!AN100)","v":""},{"$f":"IF('Risk - Yönetimi'!AO100=0,\"\",'Risk - Yönetimi'!AO100)","v":""},{"$f":"IF('Risk - Yönetimi'!AP100=0,\"\",'Risk - Yönetimi'!AP100)","v":""},null,"Çok Yüksek Riskler",{"$f":"IF(SUM($L$7:$L$10)=0,\"\",Y7/SUM($L$7:$L$10))","v":""},{"$f":"SUM(T6:U7)","v":0}]
[null,null,"Orta",{"$f":"IF('Risk - Analizi'!AA100=0,\"\",'Risk - Analizi'!AA100)","v":""},{"$f":"IF('Risk - Analizi'!AB100=0,\"\",'Risk - Analizi'!AB100)","v":""},{"$f":"IF('Risk - Analizi'!AC100=0,\"\",'Risk - Analizi'!AC100)","v":""},{"$f":"IF('Risk - Analizi'!AD100=0,\"\",'Risk - Analizi'!AD100)","v":""},{"$f":"IF('Risk - Analizi'!AE100=0,\"\",'Risk - Analizi'!AE100)","v":""},null,"Yüksek Riskler",{"$f":"IF(SUM($L$7:$L$10)=0,\"\",L8/SUM($L$7:$L$10))","v":""},{"$f":"SUM(G8:H8,F6:F7)","v":0},null,null,null,"Orta",{"$f":"IF('Risk - Yönetimi'!AG100=0,\"\",'Risk - Yönetimi'!AG100)","v":2},{"$f":"IF('Risk - Yönetimi'!AH100=0,\"\",'Risk - Yönetimi'!AH100)","v":""},{"$f":"IF('Risk - Yönetimi'!AI100=0,\"\",'Risk - Yönetimi'!AI100)","v":""},{"$f":"IF('Risk - Yönetimi'!AJ100=0,\"\",'Risk - Yönetimi'!AJ100)","v":""},{"$f":"IF('Risk - Yönetimi'!AK100=0,\"\",'Risk - Yönetimi'!AK100)","v":""},null,"Yüksek Riskler",{"$f":"IF(SUM($L$7:$L$10)=0,\"\",Y8/SUM($L$7:$L$10))","v":""},{"$f":"SUM(T8:U8,S6:S7)","v":0}]
[null,null,"Düşük",{"$f":"IF('Risk - Analizi'!V100=0,\"\",'Risk - Analizi'!V100)","v":""},{"$f":"IF('Risk - Analizi'!W100=0,\"\",'Risk - Analizi'!W100)","v":""},{"$f":"IF('Risk - Analizi'!X100=0,\"\",'Risk - Analizi'!X100)","v":""},{"$f":"IF('Risk - Analizi'!Y100=0,\"\",'Risk - Analizi'!Y100)","v":""},{"$f":"IF('Risk - Analizi'!Z100=0,\"\",'Risk - Analizi'!Z100)","v":""},null,"Orta Riskler",{"$f":"IF(SUM($L$7:$L$10)=0,\"\",L9/SUM($L$7:$L$10))","v":""},{"$f":"SUM(H9:H10,F9:G9,E8:F8,E6:E7,D6)","v":0},null,null,null,"Düşük",{"$f":"IF('Risk - Yönetimi'!AB100=0,\"\",'Risk - Yönetimi'!AB100)","v":2},{"$f":"IF('Risk - Yönetimi'!AC100=0,\"\",'Risk - Yönetimi'!AC100)","v":10},{"$f":"IF('Risk - Yönetimi'!AD100=0,\"\",'Risk - Yönetimi'!AD100)","v":""},{"$f":"IF('Risk - Yönetimi'!AE100=0,\"\",'Risk - Yönetimi'!AE100)","v":""},{"$f":"IF('Risk - Yönetimi'!AF100=0,\"\",'Risk - Yönetimi'!AF100)","v":""},null,"Orta Riskler",{"$f":"IF(SUM($L$7:$L$10)=0,\"\",Y9/SUM($L$7:$L$10))","v":""},{"$f":"SUM(U9:U10,S9:T9,R8:S8,R6:R7,Q6)","v":0}]
[null,null,"Çok Düşük",{"$f":"IF('Risk - Analizi'!Q100=0,\"\",'Risk - Analizi'!Q100)","v":""},{"$f":"IF('Risk - Analizi'!R100=0,\"\",'Risk - Analizi'!R100)","v":""},{"$f":"IF('Risk - Analizi'!S100=0,\"\",'Risk - Analizi'!S100)","v":""},{"$f":"IF('Risk - Analizi'!T100=0,\"\",'Risk - Analizi'!T100)","v":""},{"$f":"IF('Risk - Analizi'!U100=0,\"\",'Risk - Analizi'!U100)","v":""},null,"Düşük Riskler",{"$f":"IF(SUM($L$7:$L$10)=0,\"\",L10/SUM($L$7:$L$10))","v":""},{"$f":"SUM(D10:G10,D7:D9,E9)","v":0},null,null,null,"Çok Düşük",{"$f":"IF('Risk - Yönetimi'!W100=0,\"\",'Risk - Yönetimi'!W100)","v":1},{"$f":"IF('Risk - Yönetimi'!X100=0,\"\",'Risk - Yönetimi'!X100)","v":""},{"$f":"IF('Risk - Yönetimi'!Y100=0,\"\",'Risk - Yönetimi'!Y100)","v":""},{"$f":"IF('Risk - Yönetimi'!Z100=0,\"\",'Risk - Yönetimi'!Z100)","v":""},{"$f":"IF('Risk - Yönetimi'!AA100=0,\"\",'Risk - Yönetimi'!AA100)","v":""},null,"Düşük Riskler",{"$f":"IF(SUM($L$7:$L$10)=0,\"\",Y10/SUM($L$7:$L$10))","v":""},{"$f":"SUM(Q10:T10,Q7:Q9,R9)","v":15}]
[null,"Risk Haritası",null,"Çok Düşük","Düşük","Orta","Yüksek","Çok Yüksek",null,null,null,{"$f":"SUM(L7:L10)","v":0},null,null,"Risk Haritası",null,"Çok Düşük","Düşük","Orta","Yüksek","Çok Yüksek",null,null,null,{"$f":"SUM(Y7:Y10)","v":15}]
[null,null,null,"Olasılık",null,null,null,null,null,null,null,null,null,null,null,null,"Olasılık"]

{"sheet":"Risk Evreni Çalışması","index":1,"n_rows":6,"n_cols":3,"rows_kept":6,"cut":false,"hidden":false,"merged":[[6,2,6,5],[0,0,0,7],[2,1,2,6],[3,2,3,5],[4,2,4,5]]}
["RİSK EVRENİNİN BELİRLENMESİ ÇALIŞTAYI RİSK DEĞERLENDİRME FORMU"]
[]
[]
[null,null,"DÜZCE ÜNİVERSİTESİ"]
[]
[null,null,"BİRİM:"]

{"sheet":"Template vs. Examples","index":2,"n_rows":4,"n_cols":2,"rows_kept":4,"cut":false,"hidden":true,"merged":[[0,0,0,7],[3,1,3,6]]}
["TEMPLATE VS. EXAMPLES"]
[]
[]
[null,"This is a blank, editable version (template) of the risk register tool. Before entering risks into the tool, the agency should: a) determine whether or not this will be an enterprise-level risk register or a program-level risk register and b) populate the \"Categories & Rating\" sheet. The user should refer to the example \"Enterprise\" and/or \"Program\" risk register(s) to see how to properly populate the \"Categories & Rating\" sheet; further, the agency is free to use the verbiage from the example(s) for its risk register. Once the \"Categories & Rating\" sheet is populated, the agency can move forward in using the risk register by populating the remaining input sheets.\n"]

{"sheet":"REF - Instructions","index":3,"n_rows":32,"n_cols":4,"rows_kept":32,"cut":false,"hidden":true,"merged":[[11,1,11,6],[0,0,0,7],[3,1,3,6],[4,1,4,6],[7,1,7,6],[8,1,8,6],[12,1,12,6],[15,1,15,6],[16,1,16,6],[18,3,18,5],[19,3,19,5],[30,1,30,6],[31,1,31,6],[26,3,26,5],[17,3,17,5],[20,3,20,5],[21,3,21,5],[22,3,22,5],[23,3,23,5],[24,3,24,5],[25,3,25,5]]}
["INSTRUCTIONS"]
[]
[]
[null,"Overview"]
[null,"The risk register is a spreadsheet-based tool used for identifying, analyzing, and monitoring enterprise or program-level risk. The tool provides a complete risk register that can be modified for user-added preferences or additional information. \n\nThe risk register can be used to support a risk management process consistent with industry best practices, the ISO 31000 standard, and the NCHRP 08-93 Enterprise Risk Management Guide. The tool mirrors the core risk management steps, including risk identification, risk analysis, risk evaluation, and risk management/treatment. For this tool, risk evaluation is included as part of risk analysis. \n\nThis version of the risk register is designed for threats and not for opportunities. The tool can be adapted by the user to be used as a register for opportunities. "]
[]
[]
[null,"Enterprise vs. Program"]
[null,"The risk register tool can be used for either enterprise or program risk management. When completing the first input sheet, \"Categories & Rating\", the user should determine whether this tool will be used for enterprise or program-level risk management. The tool cannot be used for both enterprise and program risk management at the same time. The user should create a copy of the template and designate one copy as enterprise and one copy as program. "]
[]
[]
[null,"How to use the Risk Register"]
[null,"The risk register is made up of various sheets, divided into one of three categories: reference (REF), input (INPUT), and output (OUTPUT). The user should only enter in information on the input sheets. In order to populate the final risk register (Summary sheet), the user must complete these four input sheets as fully as possible. When completing each sheet, enter data from left to right. Output sheets are generated automatically and do not require user input. Reference sheets are purely informational and provide supporting details on using this risk register tool.\n\nData is entered in each cell in one of three ways: 1) manually (users input information), 2) using a drop-down list (users select from a pre-populated list of choices), and 3) auto-population (users do not enter data in these cells, information is populated on the basis of data entered previously). Columns are marked with the input method.\n\n"]
[]
[]
[null,"Risk Register Sheets"]
[null,"Below is a list of each sheet in the risk register tool, along with a brief description."]
[null,null,"REF - Instructions","Provides necessary instructions and definitions for the risk register tool. The sheet serves as a reference and requires no input."]
[null,null,"INPUT - Categories & Rating","Identifies the risk categories and respective impact and likelihood/probability definitions. Values are used to calculate the risk rating and heat map. Risk categories, impact ratings/definitions, and likelihood ratings/definitions are entered by the user. "]
[null,null,"INPUT - Identification","Identify the risks. First enter risks on this sheet, including date identified, risk description, and category of impact."]
[null,null,"INPUT - Analysis","Analyze the risks. Rate the likelihood of occurrence and level of impact of the risks (pre-mitigated risk ranking). Reference the \"Categories & Rating\" sheet for guidance when rating risks."]
[null,null,"INPUT - Management","Manage the risks. Identify response strategies, assign key individuals, and note potential trigger events. Re-rank the risks' likelihood and impact, based on the controls and response strategies (post-mitigated risk rating)."]
[null,null,"OUTPUT - Risk Register","Final risk register, based on the previous INPUT sheets. "]
[null,null,"OUTPUT - Heat Maps","Pre-mitigated and post-mitigated heat maps, identifying the number of risks in each impact/likelihood scenario."]
[null,null,"OUTPUT - Risk Summary","Pre-mitigated and post-mitigated risk summary, identifying each risk and its resulting risk rating."]
[null,null,"REF - Glossary","Collection of common risk management terms, including terms used in this tool."]
[null,null,"REF - FAQs","List of Frequently Asked Questions around risk management and the use of this tool."]
[]
[]
[]
[null,"Tool Usability/Editing Note"]
[null,"Usability:\nRisk management is a comprehensive and time-sensitive process. Although the tool is built to industry best practice and ISO 31000 standards, use of this tool does not constitute formal enterprise and/or program-level risk management. Formal risk management includes greater involvement beyond the use of a risk register, such as training, executive-level support/commitment, and employee buy-in. This risk register tool should only be used as a decision support tool when implementing formal enterprise and program-level risk management. \n\nEditing:\nThe tool, although it does not contain macros, contains various formulas on the input and output sheets that are required to properly populate the risk register. Therefore, the tool has been locked and is not editable; however, the tool is not password-protected. The user can unlock the risk register at anytime, but by unlocking the sheet, the tool creators cannot guarantee the tool will continue to function as it was intended. \n"]

{"sheet":"GİRİŞ - Kategoriler&Dereceleme","index":4,"n_rows":12,"n_cols":18,"rows_kept":12,"cut":false,"hidden":true,"merged":[[0,0,0,18],[7,10,8,10],[7,11,8,11],[7,12,8,12],[7,13,8,13],[7,14,8,14],[7,1,8,1],[7,2,8,2],[7,4,8,4],[7,3,8,3],[7,9,8,9],[7,5,8,5],[2,1,4,1],[1,1,1,9],[2,0,11,0],[1,10,1,14],[5,1,6,1],[5,2,6,2],[5,3,6,3],[5,4,6,4],[5,5,6,5],[5,14,6,14],[5,9,6,9],[5,10,6,10],[5,11,6,11],[5,12,6,12],[5,13,6,13],[5,6,6,6],[5,7,6,7],[5,8,6,8],[7,8,8,8],[7,7,8,7],[7,6,8,6]]}
["RİSK KATEGORİLERİ & ORANLAMA MATRİSİ"]
[null,"Risk Kategorileri // Etki Alanları",null,null,null,null,null,null,null,null,"Olasılık Aralıkları ve Risk Derecelendirmeleri (Düşük, Orta, Yüksek, Çok Yüksek)"]
["Impact Levels",null,null,null,null,null,null,null,null,null,"Çok Düşük","Düşük","Orta","Yüksek","Çok Yüksek"]
[null,null,"Stratejik","Operasyonel","İtibar","Finansal","Yasal/Uygunluk","Bilgi Sistemleri","Raporlamalar","Sağlık ve güvenlik","Olasılığın Niteliksel Açıklaması\n(Kullanıcı Girişli)","Olasılığın Niteliksel Açıklaması\n(Kullanıcı Girişli)","Olasılığın Niteliksel Açıklaması\n(Kullanıcı Girişli)","Olasılığın Niteliksel Açıklaması\n(Kullanıcı Girişli)","Olasılığın Niteliksel Açıklaması\n(Kullanıcı Girişli)"]
[null,null,null,null,null,null,null,null,null,null,"Olasılığın Niceliksel Açıklaması\n(Kullanıcı Girişli)","Olasılığın Niceliksel Açıklaması\n(Kullanıcı Girişli)","Olasılığın Niceliksel Açıklaması\n(Kullanıcı Girişli)","Olasılığın Niceliksel Açıklaması\n(Kullanıcı Girişli)","Olasılığın Niceliksel Açıklaması\n(Kullanıcı Girişli)",null,"Anahtar"]
[null,"Çok Yüksek","Etkinin Tanımı\n(Kullanıcı Girişli)","Etkinin Tanımı\n(Kullanıcı Girişli)","Etkinin Tanımı\n(Kullanıcı Girişli)","Etkinin Tanımı\n(Kullanıcı Girişli)","Etkinin Tanımı\n(Kullanıcı Girişli)","Etkinin Tanımı\n(Kullanıcı Girişli)","Etkinin Tanımı\n(Kullanıcı Girişli)","Etkinin Tanımı\n(Kullanıcı Girişli)","Orta","Orta","Yüksek","Çok Yüksek","Çok Yüksek",null,"Çok Yüksek","[Üst Yönetimin ve yönetimin müdahalesini gerektirir; riski ele almak için yeni kurumsal veya program seviyesi kontrollerini uygulamak için derhal harekete geçilmesini gerektirir.]"]
[null,null,null,null,null,null,null,null,null,null,null,null,null,null,null,null,"Yüksek","[Örgütün görevini veya stratejik planını yerine getirme yeteneğini etkiler - mevcut kontroller etkili olabilir ancak yönetim ve üst yönetim seviyesinde yönetilecek ilave eylem ve / veya kontroller gerektirebilir.]"]
[null,"Yüksek","Etkinin Tanımı\n(Kullanıcı Girişli)","Etkinin Tanımı\n(Kullanıcı Girişli)","Etkinin Tanımı\n(Kullanıcı Girişli)","Etkinin Tanımı\n(Kullanıcı Girişli)","Etkinin Tanımı\n(Kullanıcı Girişli)","Etkinin Tanımı\n(Kullanıcı Girişli)","Etkinin Tanımı\n(Kullanıcı Girişli)","Etkinin Tanımı\n(Kullanıcı Girişli)","Düşük","Orta","Yüksek","Çok Yüksek","Çok Yüksek",null,"Orta","[Çok yüksek örgüt işlevinin etkilerinin tamamlanması - mevcut denetimlerin etkili olması ve olası ek işlemlerin uygulanması gerekebilir.]"]
[null,null,null,null,null,null,null,null,null,null,null,null,null,null,null,null,"Düşük","[Mevcut uygulamalar ve prosedürler ile yönetilir - etkiler, etkililik açısından izlenecek rutin işlemlerle ele alınır.]"]
[null,"Orta","Etkinin Tanımı\n(Kullanıcı Girişli)","Etkinin Tanımı\n(Kullanıcı Girişli)","Etkinin Tanımı\n(Kullanıcı Girişli)","Etkinin Tanımı\n(Kullanıcı Girişli)","Etkinin Tanımı\n(Kullanıcı Girişli)","Etkinin Tanımı\n(Kullanıcı Girişli)","Etkinin Tanımı\n(Kullanıcı Girişli)","Etkinin Tanımı\n(Kullanıcı Girişli)","Düşük","Orta","Orta","Yüksek","Yüksek"]
[null,"Düşük","Etkinin Tanımı\n(Kullanıcı Girişli)","Etkinin Tanımı\n(Kullanıcı Girişli)","Etkinin Tanımı\n(Kullanıcı Girişli)","Etkinin Tanımı\n(Kullanıcı Girişli)","Etkinin Tanımı\n(Kullanıcı Girişli)","Etkinin Tanımı\n(Kullanıcı Girişli)","Etkinin Tanımı\n(Kullanıcı Girişli)","Etkinin Tanımı\n(Kullanıcı Girişli)","Düşük","Düşük","Orta","Orta","Orta"]
[null,"Çok Düşük","Etkinin Tanımı\n(Kullanıcı Girişli)","Etkinin Tanımı\n(Kullanıcı Girişli)","Etkinin Tanımı\n(Kullanıcı Girişli)","Etkinin Tanımı\n(Kullanıcı Girişli)","Etkinin Tanımı\n(Kullanıcı Girişli)","Etkinin Tanımı\n(Kullanıcı Girişli)","Etkinin Tanımı\n(Kullanıcı Girişli)","Etkinin Tanımı\n(Kullanıcı Girişli)","Düşük","Düşük","Düşük","Düşük","Orta"]

{"sheet":"Risk - Belirleme","index":5,"n_rows":31,"n_cols":5,"rows_kept":31,"cut":false,"hidden":false,"merged":[[0,0,0,4]]}
["RİSK BELİRLEME"]
["RİSK NO","Date Identified","Anahtar Risk Göstergesi ","Detaylı Risk Açıklaması","Risk Kategorisi"]
["Manuel","Manual\n(MM/DD/YY)","Manuel","Manuel","Açılır Liste"]
[]
[null,null,null,null,{"$f":"'GİRİŞ - Kategoriler&Dereceleme'!C4","v":"Stratejik"}]
[" ",null,null,null,{"$f":"'GİRİŞ - Kategoriler&Dereceleme'!D4","v":"Operasyonel"}]
[null,null,null,null,{"$f":"'GİRİŞ - Kategoriler&Dereceleme'!E4","v":"İtibar"}]
[null,null,null,null,{"$f":"'GİRİŞ - Kategoriler&Dereceleme'!F4","v":"Finansal"}]
[null,null,null,null,{"$f":"'GİRİŞ - Kategoriler&Dereceleme'!G4","v":"Yasal/Uygunluk"}]
[null,null,null,null,{"$f":"'GİRİŞ - Kategoriler&Dereceleme'!H4","v":"Bilgi Sistemleri"}]
[null,null,null,null,{"$f":"'GİRİŞ - Kategoriler&Dereceleme'!I4","v":"Raporlamalar"}]
[null,null,null,null,{"$f":"'GİRİŞ - Kategoriler&Dereceleme'!J4","v":"Sağlık ve güvenlik"}]
[null,null,null,null,"Operasyonel ve Yasal"]
[null,null,null,null,"Operasyonel ve Finansal"]
[1,null,"Mevlana Değişim Programı Başvurularının İlanının Duyurulamaması","Her sene YÖK tarafından ilan edilen başvuru tarihlerinde  Üniversite web saysafasında yazılımsal sorun yaşanması.","Operasyonel"]
[2,null,"YÖK'ten gelen bütçeye göre asil ve yedek öğrenci belirlenmesi.","YÖK tarafından belli edilen seçim kiriterlerine uygun olarak asil ve yedek öğrencilerin belirlenememesi.","İtibar"]
[3,null,"Mevlana Protokolü imzaladığımız ortaklarımıza başvuru dönemini bildirmek","YÖK tarafından ilan edilen başvuru tarihlerinin öğrenci ve personel deşimi yapacağımız ortaklara bildirilmesi. ","Operasyonel"]
[4,null,"Mevlana Değişim Programıyla gelen öğrencilere oryantasyon yapılmaması.","Mevlana Değişim Programıyla gelen öğrencilere, Üniversiteyi ve şehri tanıtıcı bilgi aktarılması.","Operasyonel"]
[5,null,"Mevlana Değişim Programı'na katılan öğrenci ve personel için gerekli olan ıslak imzalı belgelerin postada kaybolması.","Mevlana Değişim Programı'na katılan öğrenci ve personel için gerekli olan ıslak imzalı belgelerin postada kaybolması ve belgelerin bulunamaması. ","Operasyonel"]
[]
[1,null,"Farabi Değişim Programı Başvurularının İlanının Duyurulamaması","Her yıl YÖK tarafından ilan edilen başvuru tarihlerinde  Üniversite web sayfasında yazılımsal sorun yaşanması.","Operasyonel"]
[2,null,"Farabi Değişim Programı ile Giden/Gelen öğrencilere oryantasyon yapılmaması.","Farabi Değişim Programıyla Giden öğrencilere yapılması gereken işlemler ile ilgili; Gelen öğrencilere ise Üniversiteyi ve şehri tanıtıcı bilgi aktarılması.","Operasyonel"]
[3,null,"Öğrenim Protokollerinin yanlış hazırlanması","Farabi Birim Koordinatörlerinin ders içerik ve kredilerini göz önünde bulundurarak öğrenim protokolünün hazırlanmasında öğrenciye yardımcı olmaları.","Operasyonel"]
[4,null,"Kalan burs tutarının (%30) ödemesinin gecikmesi","Karşı Üniversitelere konu ile ilgili hatırlatma yapılarak dönemlik ve yıllık transkriptlerin geciktirilmeden gönderilmesinin sağlanması.","Operasyonel"]
[5,null,"Farabi Değişim Programı'na katılan öğrenciler için gerekli olan ıslak imzalı belgelerin postada gecikmesi veya kaybolması.","Farabi Değişim Programı'na katılan öğrenciler için gerekli olan ıslak imzalı belgelerin postada kaybolması ve belgelerin bulunamaması. ","Operasyonel"]
[]
[1,null,"Erasmus Değişim Programı Başvurularının İlanının Duyurulamaması","Dış İlişkiler web sitesi ve anasayfada ilan edilen başvuru tarihlerinin kaçırılabilmesi","Operasyonel"]
[2,null,"Erasmus Değişim Programı ile Gelen/Giden öğrencilere oryantasyon yapılmaması","Erasmus Değişim Programıyla Giden öğrencilere yapılması gereken işlemler ile ilgili; Gelen öğrencilere ise Üniversiteyi ve şehri tanıtıcı bilgi aktarılmaması.","Operasyonel"]
[3,null,"Öğrenim Protokollerinin yanlış hazırlanması","Protokollerin hazırlanış sürecinde öğrencilerin Erasmus birim koordinatörlerinden yeterli desteği görememesi","Operasyonel"]
[4,null,"Hibelerin geç ödenmesi","Ulusal ajansa gerekli bildirimlerin gecikmeden yapılması","Operasyonel"]
[5,null,"Erasmus Değişim Programı'na katılan öğrenciler için gerekli olan ıslak imzalı belgelerin postada gecikmesi veya kaybolması.","Erasmus  Değişim Programı'na katılan öğrenciler için gerekli olan ıslak imzalı belgelerin postada kaybolması , belgelerin bulunamaması ve tekrar gönderilmek zorunda kalınması","Operasyonel"]

{"sheet":"riskler","index":6,"n_rows":61,"n_cols":4,"rows_kept":61,"cut":false,"hidden":true,"merged":[]}
[]
[null,"RİSKLER","RİSK KATEGORİSİ","KONTROL FAALİYET"]
[null,"Kayıt hakkı olmayan öğrencilerin kaydedilmesi","Operasyonel ve Yasal Risk","Öğrenci otomasyon işlemlerinde şifre güvenliğine önem verilmesi ve görevler ayrılığı ilkesine uygun olarak işlem yapılması tavsiye edilmektedir"]
[null,"Öğrenci kayıtlarının hatalı olması","Operasyonel ve Yasal Risk","Öğrenci otomasyon işlemlerinde şifre güvenliğine önem verilmesi ve görevler ayrılığı ilkesine uygun olarak işlem yapılması tavsiye edilmektedir"]
[null,"Öğrenci notlarının yetkisiz veya onaysız değiştirilmesi","Operasyonel ve Yasal Risk","Öğrenci otomasyon işlemlerinde şifre güvenliğine önem verilmesi ve görevler ayrılığı ilkesine uygun olarak işlem yapılması tavsiye edilmektedir"]
[null,"Öğrenci memnuniyetsizliği oluşması","Operasyonel ve Yasal Risk","Öğrenci memnuniyet anketi düzenlenerek geri bildirimlerin düzenli olarak takip edilmesi\nönerilmektedir."]
[null,"İş sürekliliğinin sağlanamaması","Operasyonel Risk","Görev tanımı ve görevler ayrılığı ilkesine uygun işlem yapılması tavsiye edilmektedir."]
[null,"Şifrelerin çalışanlar arasında paylaşılması","Operasyonel, Finansal ve Yasal Risk","Öğrenci otomasyon işlemlerinde şifre güvenliğine önem verilmesi ve görevler ayrılığı ilkesine uygun olarak işlem yapılması tavsiye edilmektedir"]
[null,"Verilerin geriye dönük olarak uygun olmayan şekilde değiştirilmesi","Operasyonel, Finansal ve Yasal Risk","Öğrenci otomasyon işlemlerinde şifre güvenliğine önem verilmesi ve görevler ayrılığı ilkesine uygun olarak işlem yapılması tavsiye edilmektedir"]
[null,"Banka mutabakatlarının düzenli yapılmaması","Operasyonel ve Finansal Risk","Banka mutabakatlarına özen gösterilmesi ve zamanında yapılarak nakit yönetimine önem verilmesi gerekmektedir."]
[null,"Usulsüz belge düzenlenebilmesi","Operasyonel, Finansal ve Yasal Risk","Suistimal risk yönetimine yönelik sistem üzerinden gerekli kontrollerin sağlanması ve usulsüz belge düzenleme ile ilgili ihbar hattı kurulması tavsiye edilmektedir."]
[null,"Eski Bilgi İşlem çalışanlarından hizmet alınması","Operasyonel, Finansal ve Yasal Risk","3.şahıslardan alınan hizmetlerde ön araştırmanın yapılarak 4734 sayılı kanuna uygun işlem yapılması önerilmektedir."]
[null,"Kontenjanların boş kalma riski","Operasyonel Risk","Öğrenci işlerinin hizmet kalitesinin artırılarak reklam ve tanıtım faaliyetlerine önem verilmesi\ntavsiye edilmektedir."]
[null,"Fazla mesai yapılması","Operasyonel Risk","Fazla mesaiden kaçınılarak çalışanların verimini artıracak süreç iyileştirme işlemlerinin başlatılması ve kadro takviyesi sağlanması önerilmektedir."]
[null,"Öğrencilerin dava açması","Operasyonel ve Yasal Risk","Hizmet standartlarının eksiksiz ve istisnasız uygulanarak öğrenci memnuniyetinin sağlanması önerilmektedir."]
[null,"Bilgi İşlem çalışanlarının hizmet alımı yapılan firmada çalışmasından dolayı menfaat çatışmasına yol açtığı, bilgi güvenliği riski ve suistimal riski bulunduğu belirlenmiştir.","Operasyonel ve Finansal Risk","Hizmet alımı yapılan kurumların menfaat çatışması oluşmayacak şekilde belirlenmesi ve mevzuata uygun olarak alım yapılması önerilmektedir."]
[null,"Norm kadro ile kıyaslandığında mevcut kadrodaki eksikliklerden doğan motivasyon düşüklüğü ve hata yapma riski ortaya çıkmaktadır.","Operasyonel Risk","Görev tanımları ve iş akış süreçleri gözden geçirilerek yeterli personelin istihdam edilmesi önerilmektedir."]
[null,"Kurum içerisinde görev tanımlarının bulunmaması ve yetki, sorumlulukların net olarak belirlenmemesinden dolayı operasyonel risk ve hataların oluşması riski bulunmaktadır. Ek olarak aksaklıkların çözümünde sorumluların net olarak belirlenememesine yol açmaktadır.","Operasyonel Risk","Kamu İç Kontrol Standartları'na uygun olarak görev tanımlarının hazırlanması ve kontrol ortamının iyileştirilmesi tavsiye edilmektedir."]
[null,"Kurumun şifre yetkilendirmesinin olmamasından ve şifrelerin kullanıcılar arasında paylaşılmasından dolayı veri güvenliği riski bulunmaktadır.","Operasyonel Risk","Kurumun veri güvenliğini sağlamak amacıyla kullanıcıları şifre yetkilendirmesi konusunda bilinçlendirmesi ve ek olarak şifre yönetim sisteminin standartlarını belirleyen bir prosedür hazırlanarak tüm çalışanlarla paylaşılması önerilmektedir."]
[null,"Öğrenci not ve kayıtlarında geriye dönük işlem yapılmasına bağlı olarak suistimal riski bulunmaktadır.","Operasyonel Risk","Öğrenci not ve kayıtlarında geriye dönük işlem yapılmasının kontrollü bir şekilde gerçekleştirilmesi ve konuyla ilgili bir prosedür\nhazırlanması önerilmektedir."]
[null,"Öğrenci işleri bünyesinde , banka mutabakat işlemlerinin düzenli olarak yapılmamasından dolayı finansal kayıp riski bulunmaktadır.","Finansal Risk","Banka mutabakatlarının düzenli ve periyodik olarak yapılması önerilmektedir. Mutabakat işlemi için görevler ayrılığı ilkesine uyulması önerilmektedir."]
[null,"Yüksek Lisans ve Doktora öğrencilerinin işlemlerinin iş akış sürecine uygun olarak yapılmamasından dolayı ve öğrencilerin yazılı talebi olmadan işlem yapılmasından dolayı itibar kaybı ve suistimal riski bulunmaktadır.","Operasyonel ve Yasal Risk","Doktora ve Yüksek Lisans öğrencilerinin işlemlerinin iş akışlarının belirlenmesi ve işlem yapan personelin belirlenerek yapılan işlemlerin bir üst merci tarafından kontrolünün sağlanması önerilmektedir."]
[null,"Öğrenci işlerinde, doktora ve yüksek lisans öğrencilerinin işlemlerinden sorumlu personelin lüks yaşam tarzı ve öğrencilere hizmet sunmadaki seçici yaklaşımı nedeniyle itibar ve suistimal riski bulunmaktadır.","Operasyonel, Finansal ve Yasal Risk","Öğrenci işlemlerinin standart bir şekilde yapılması önerilmektedir. Ek olarak söz konusu personelin yapmış olduğu işlemlerin detaylı olarak incelenerek suistimale yönelik işlemlerin olup olmadığının araştırılması gerekmektedir. Mal varlığının araştırılması tavsiye edilmektedir."]
[null,"Öğrencilere verilen hizmetlerin kişiye bağımlı olmasından dolayı hizmetlerin aksamasına ve öğrenci memnuniyetsizliğine yol açabilecek operasyonel riskler ve itibar riski içermektedir.","Operasyonel Risk","İnsan Kaynakları Birimi ile koordinasyon sağlanarak kritik görevlerde personel yedeklemelerinin yapılması ve personelin dönüşümlü olarak çalışması sağlanmalıdır."]
[null,"Yeni göreve başlayan Daire Başkanı'nın uzmanlık alanının dışında bir göreve atanmasından dolayı operasyonel risk\noluşmaktadır.","Operasyonel Risk","Yetkinlikler dikkate alınarak ve İnsan Kaynakları ile koordinasyon sağlanarak standart atama kriterlerinin belirlenmesi önerilmektedir."]
[null,"Daire Başkanlığı görev pozisyonuna uzmanlık alanı dışında bir personelin atanmasından  dolayı hizmet standartının aksaması ve yönetim zaafiyetinin ortaya çıkması riski","Operasyonel ve Yasal Risk","Atama ve yer değiştirmelerin yetkinlik ve liyakat esasları dikkate alınarak yapılması önerilmektedir. Bu kapsamda İK ile koordinasyon sağlanarak atama kriterlerinin belirlenmesi ve atama kriterlerin tam ve eksiksiz uygulanması tavsiye edilmektedir."]
[null,"Birim personelinin fazla mesai ve fazla işyükü nedeniyle motivasyon düşüklüğü yaşaması ve hizmet standartının olumsuz yönde etkilenmesi","Operasyonel, Finansal ve Yasal Risk","Gerçekleştirilen iş hacmi ile personel sayısının dağılımının dengeli bir şekilde yapılması ve kaynak planlamasına özen gösterilmesi tavsiye edilmektedir."]
[null,"Birimin denetim tarihi itibariyle hiçbir yönetim raporlamasının bulunmamasından dolayı Üst Yönetimin karar alma mekanizmasında zaafiyetlere ve suistimal riskine yol açması","Operasyonel, Finansal ve Yasal Risk","Sistematik ve sağlıklı bir raporlama altyapısının oluşturulması tavsiye edilmektedir."]
[null,"Görev tanımlarının yazılı olarak belirlenmemesi nedeniyle yetki ve sorumlulukların dağılımında sorunlarla karşılaşılması","Operasyonel, Finansal ve Yasal Risk","Görev tanımlarının tam/eksiksiz ve güncel olarak hazırlanması ve ilgili personele imza karşılığı tebliğ edilmesi gerekmektedir."]
[null,"Öğrenci kayıt dönemlerine ilişkin planlama yapılmamasından dolayı aşırı yoğunlukların yaşanması sonucunda itibar riski ve öğrenci\nmemnuniyetsizliği ile karşılaşılması","Operasyonel Risk","Öğrenci kayıt dönemlerinin önceden belirlenen standartlara uygun olarak, planlı şekilde kayıt işlemlerinin ilan ve tasnif edilmesi önerilmektedir."]
[null,"Personel şifreleri konusunda gizliliğin esas alınmaması, görevler ayrılığı ilkesine uyulmaması, yetkisiz erişim nedeniyle sistemin içeriden ve dışırıdan suistimale açık olması riski","Operasyonel ve  Yasal Risk","Şifre yönetiminin yapılması ve görevler ayrılığı ilkesine uygun olarak işlem yapılması tavsiye edilmektedir."]
[null,"Otomasyon sisteminin güvenilir olmaması, geriye dönük işlem yapma seçenğinin sürekli açık tutulması sınucunda zamanın ve doğru raporlama\nyapılamaması ve suistimal riski ile karşı karşıya kalınması","Operasyonel ve  Yasal Risk","Mevzuat gereği önerilen süreler dışında sistemin kapatılması, şifrelerin belirli periyotlar dahilinde karakteristik olarak güncellenmesi önerilmektedir."]
[null,"Öğrenci İşler Daire Başkanlığı tarafından yapılması gereken, harcların toplanması ve konsolidesi, ayrıca banka mutabakat işlemlerinin yetkisi olmayan İMİD tarafından yerine getirilmesi, görevler ayrılığı ilkesine uygun olmayan çalışma ortamının doğması","Operasyonel, Finansal ve Yasal Risk","Mevzuat gereği Öğrenci İşleri Daire Başkanlığı tarafından yerine getirilmesi gereken işlerin İMİD tarafından yapılması uygulamasından vazgeçilmesi ayrıca banka mutabakatların dönemsel olarak yapılması tavsiye edilmektedir."]
[null,"Öğrenci İşleri Daire Başkanlığında görevli bir personelin öğrencilerin yazılı talepleri olmaksızın işlemleri baştan sona sadece kendisinin yürütmesi, ayrıca sözkonusu personelin işlemlerinin bir başka yetkili tarafından kontrol edilmemesi, işlemlerde seçici davranması sonucunda operasyonel verimsizlik ve suistimal riskinin oluşması","Operasyonel, Finansal ve Yasal Risk","Öğrenci İşleri Daire Başkanlığından yürütülen tüm işlemlerin yazılı talepler karşılığında işleme alınması gerekmektedir.\nAyrıca işi yapan ve kontrol eden kişilerin ayrıştırılarak görevler ayrılığı ilkesine uygun çalışma ortamının oluşturulması tavsiye edilmektedir. Suistimal riskinin gözetilerek ilave inceleme yapılması ve mal varlığının araştırılmasının yerinde olacağı düşünülmektedir."]
[null,"Bilgi işlem hizmetlerinin 3. şahıslara ihale edilmesi sürecinde mevzuata uyulmaması sonucunda suistimal riski ile karşılaşılması","Operasyonel, Finansal ve Yasal Risk","Hizmet satınalmalarında mevzuata uygun işlem yapılması tavsiye edilmektedir."]
[null,"A üniversitesinde uzun süreli boş kadroların bulunması ve çalışanların sık sık yer değiştirmesi nedeniyle iş veriminin ve motivasyonun düşmesi","Operasyonel Risk","Boş kadrolara ilgili personelin atamalarının ivedilikle yapılması ve personelin sık sık yer değiştirmesinin önlenmesi için tedbir alınması tavsiye edilmektedir."]
[null,"Farklı bir uzmanlık alanı olan yöneticinin atamasında liyakatın esas alınmamasına bağlı olarak iş verimliliğinin ve motivasyonun düşmesi","Operasyonel Risk","Atamalarda liyakat ilkesinin esas alınarak işlem yapılması tavsiye edilmektedir. Özellikle verimlilik açısından yönetici programlarının hazırlanması uygun olacaktır."]
[null,"Kurumun belirlenen stratejik hedeflerinin gerçekçi olmaması","Operasyonel Risk","Stratejik planın hazırlanmasında uluslararsı standartlara uygun olarak tüm çalışanların aktif katılımı ile gerçekçi bir yaklaşımla ulaşılabilir hedeflere dayalı olarak hazırlanması tavsiye edilmektedir."]
[null,"Daire Başkanlığı tarafından dönemsel yönetim raporlamasının yapılmamasından dolayı karar alma mekanizmasının sağlıklı işlememesi","Operasyonel Risk","Yönetim raporlama sistem altyapısının oluşturması önerilmektedir."]
[null,"Fazla mesai ve operasyonel iş yükü nedeniyle çalışanların motivasyonun düşmesi ve beraberinde hata yapma risklerinin oluşması","Operasyonel Risk","Uzun çalışma saatlerinin kısaltılması ve sistem altyapısının geliştirilerek eksik kadroların tamamlanması önerilmektedir."]
[null,"Öğrenci kayıtlarının girildiği sistemde bilgi ve  not düzeltmelerinde geriye dönük işlem yapmaya açık bırakılması","Operasyonel Risk","Öğrenci kayıtlarının zamanında girilerek sistemin kapalı tutulması önerilmektedir. Değişiklik yapılması gerektiği durumlarda belgeye dayalı olarak yazılı talebin istenmesi uygun olacaktır."]
[null,"Hizmet bedellerinin günsonu mutabakatlarının yapılmaması","Operasyonel ve Finansal Risk","Banka mutabatlarının günlük yapılması tavsiye edilmektedir."]
[null,"Öğrenci kayıt işlemlerinde veri girişinde kontrol eksikliğinin olmasından dolayı öğrenci memnuniyetsizliği ve itibar kaybı riski","Operasyonel Risk","Öğrenci kayıt işlemlerinde önleyici kontrol mekanizmalarının geliştirmesi ve sistem altyapısının gözden geçirilerek manuel yapılan işlemlerin azaltılması tavsiye edilmektedir."]
[null,"Görev tanımlarının bulunmaması ve görevler ayrılığı ilkesine uyulmaması nedeniyle suistimal riskinin meydana gelmesi","Operasyonel  Risk","Görev tanımlarının belirlenmesi ve görevler ayrılığı ilkesine uygun olarak görev dağılımının yapılması gerekmektedir. Özellikle suistimale açık alanların iç kontrol sistem altyapısının geliştirilmesi yoluyla önlenmesi tavsiye edilmektedir."]
[null,"Çalışanların şifrelerinin diğer çalışanlar ile paylaşması sonucunda bilgi güvenliğinin tehlikeye girmesi","Operasyonel Risk","Çalışanların şifrelerinin başkaları ile paylaşmaması ve periyodik olarak değiştirilmesi için önlem alınması tavsiye edilmektedir."]
[null,"Öğrenci sınav sonuçları ve not girişlerine ilişkin sistem ve arayüzlerde yazılım hatası oluşma riski","Operasyonel  Risk","Öğrenci sınav sonuçlarına ve not girişlerine ilişkin sistem kontrollerinin yapılması ve yazılımın geliştirilmesi önerilmektedir."]
[null,"IT iz takibine ilişkin log kayıtlarının tutulmaması sonucu suistimal riskinin ortaya çıkması","Operasyonel Risk","Log kayıtlarının düzenli olarak tutulması ve yedeklemesinin yapılması tavsiye edilmektedir."]
[null,"Öğrenci itirazlarının sonuçlandırılmasında görev dağılımının bulunmaması","Operasyonel Risk","Görevler ayrılığı ilkesine uygun olarak öğrenci itirazlarının işleme konulması tavsiye edilmektedir."]
[null,"Misti A.Ş çalışanlarının eski kurum personeli olmasından dolayı verilerinin kötü amaçlı kullanılması riski","Operasyonel Risk","Misti A.Ş.'den alınan hizmetlerin Kamu İhale kanununa uygun olarak değerlendirilmesi tavsiye edilmektedir."]
["Uzmanlık Dışı Görev","Öğrenci İşleri Daire Başkanı'nın uzmanlık alanı dışında bir göreve atanmış olması, atamada liyakatin dikkate alınmamış olması, buna bağlı olarak bölümün stratejik önceliklerini belirlemede yetersiz kalması","Operasyonel Risk","Göreve atamalarda yetkinliğin ve liyakatin dikkate alınarak işlem yapılması, mevcut kadroların ise hizmetiçi eğitim ile desteklenmesi"]
["Personel Yetersizliği","Mevcut çalışan sayısının işyüküne oranla yetersiz kalması sebebiyle çalışan motivasyonunun düşmesi ve hataya açık olması","Operasyonel Risk","Personel ihtiyaç analizi yapılarak eksikliklerin giderilmesi, hizmet envanteri çalışmasının yapılması"]
["Çalışanların Sık Yer Değiştirmesi","Çalışanların sık yer değiştirmesi nedeniyle uzmanlaşmanın sağlanamaması ve operasyonel hataların artması, aidiyet duygusunun zayıflaması","Operasyonel Risk","Personelin kariyer planı dahilinde görevlendirilmesi, aciliyet olmadıkça yer değiştirmenin yapılmaması ve bu hususta tedbir alınması"]
["Görev Tanımlarının Belirgin Olmaması","Görev, yetki ve sorumlulukların net olarak belirlenmemesinden dolayı operasyonel verimsizlik ve suistimal riski oluşması","Operasyonel Risk","Görev, yetki ve sorumlulukların belirlenerek tüm çalışanlara duyurulması"]
["Stratejik Hedeflerin Uygun Olmaması","Stratejik hedeflerin uygunsuzluğundan dolayı performans düşüklüğü ve ölçülememesi sonucunda hedeflerden sapılması (örnek: stratejik hedefin ingilizce öğrenmek olmasına rağmen seçilen ülkelerin Çin, Hindistan, Güney Afrika olması)","Operasyonel Risk","Kurumun stratejik hedeflerinin gözden geçirilerek kalkınma planı ile uyumlu hale getirilmesi"]
["Öğrenci Bilgi Sistemine Kontrolsüz Girişler","Öğrenci kayıt işlerinde yapılan not girişi, kayıt ve diğer işlemlerin kontrolsüz bir şekilde gerçekleştirilmesi, bu konuda ortaya çıkan hataların öğrenciler/hocalar tarafından belirlenerek düzeltilmesi dolayısıyla itibar kaybı oluşması, iç kontrol sistemlerindeki zaafiyet sebebiyle hataların farkedilmemesi","Operasyonel risk","İç kontrol sistemlerinin geliştirilmesi ve önleyici kontrol faaliyetlerinin uygulanması"]
[null,"Bilgi sistemleri ve veri güvenliği açısından zaafiyet oluşması ve yönetim raporlama sisteminin bulunmaması nedeniyle karar alma mekanizmalarının zaafiyeti, hesap verilebilirliğin olmaması","Operasyonel risk","Bilgi teknolojileri yönetişim standartlarının uygulanması, raporlama altyapısının geliştirilmesi, kurumsal yönetim ilkelerine göre hesap verebilirliğin ve şeffaflığın sağlanması"]
[null,"Banka hesap mutabakatının düzenli yapılmaması sebebiyle gelir kaybı ve suistimal riski oluşması, birimler arasında koordinasyon eksikliği olması","Operasyonel ve finansal risk","Banka hesap mutabakatlarının düzenli yapılması ve otomasyon ile desteklenmesi, birimlerin görev dağılımlarının gözden geçirilmesi"]
[null,"Öğrenci işlerinde öğrencilerin her türlü işleminin yazılı belgeye dayalı olmadan sözlü talebe istinaden yapılması sonucunda operasyonel ve suistimal riskinin oluşması","Yasal, operasyonel ve finansal risk","Öğrenci işlerinde yürütülen işlemlerin tamamını kapsayacak şekilde yönergelerin hazırlanması ve kurallara uygun işlem yapılması"]
[null,"Öğrenci işlerinde yürütülen işlemlerin sistem yerine kişi odaklı bir şekilde yürütülmesinden dolayı suistimal riski oluşması","Operasyonel risk","Görevler ayrılığı ilkesine uygun olarak işlem yapılması"]
[null,"Dışarıdan alınan bilgi işlem hizmetinde şeffaflık ve rekabet ilkelerine uymayan hizmet satınalması gerçekleşmiştir","Yasal, operasyonel ve finansal risk","İhale yapılarak hizmet satınalmasının gerçekleştirilmesi ve etik kurallara uygun hareket edilmesi"]
[null,"Üniversitenin tanıtım yetersizliğinden dolayı kontenjanlarının boş kalması ve gelir kaybı ve itibar riski oluşması","Operasyonel ve finansal risk","Üniversitenin tanıtım faaliyetlerinin artırılması"]

{"sheet":"Risk - Analizi","index":7,"n_rows":100,"n_cols":41,"rows_kept":100,"cut":false,"hidden":false,"merged":[[0,0,0,8],[5,16,9,16],[11,18,11,22],[1,16,1,40],[5,29,5,32]]}
["RİSK ANALİZİ"]
["RİSK NO","Detaylı Risk Açıklaması","Risk Kategorisi","Impact Score","Etki","Likelihood Score","Olasılık","Risk Score","Risk Oranı",null,null,null,null,null,null,null,"Risk Rating & Heat Map Calculator - DO NOT EDIT"]
["Otomatik","Otomatik","Otomatik","Hidden Col.","Açılır Liste","Hidden Col.","Açılır Liste","Hidden Col.","Otomatik"]
[]
[]
[" ",null,null,null,null,null,null,null,null,null,null,null,null,null,null,null,"Impact",5,"U","V","W","X","Y",null,null,null,null,null,null,"Score"]
[null,null,null,5,"Çok Yüksek",5,"Çok Yüksek",null,null,null,null,null,null,null,null,null,null,4,"P","Q","R","S","T",null,null,null,null,null,null,1,"-",4,"Düşük"]
[null,null,null,4,"Yüksek",4,"Yüksek",null,null,null,null,null,null,null,null,null,null,3,"K","L","M","N","O",null,null,null,null,null,null,5,"-",10,"Orta"]
[null,null,null,3,"Orta",3,"Orta",null,null,null,null,null,null,null,null,null,null,2,"F","G","H","I","J",null,null,null,null,null,null,12,"-",15,"Yüksek"]
[null,null,null,2,"Düşük",2,"Düşük",null,null,null,null,null,null,null,null,null,null,1,"A","B","C","D","E",null,null,null,null,null,null,16,"-",25,"Çok Yüksek"]
[null,null,null,1,"Çok Düşük",1,"Çok Düşük",null,null,null,null,null,null,null,null,null,null,null,1,2,3,4,5]
[null,null,null,null,null,null,null,null,null,null,null,null,null,null,null,null,null,null,"Likelihood"]
[]
[null,null,null,null,null,null,null,null,null,null,null,null,null,null,null,null,"A","B","C","D","E","F","G","H","I","J","K","L","M","N","O","P","Q","R","S","T","U","V","W","X","Y"]
[{"$f":"IF('Risk - Belirleme'!A15=\"\",\" \",'Risk - Belirleme'!A15)","v":1},{"$f":"IF('Risk - Belirleme'!D15=\"\",\" \",'Risk - Belirleme'!D15)","v":"Her sene YÖK tarafından ilan edilen başvuru tarihlerinde  Üniversite web saysafasında yazılımsal sorun yaşanması."},{"$f":"IF('Risk - Belirleme'!E15=\"\",\" \",'Risk - Belirleme'!E15)","v":"Operasyonel"},{"$f":"IF(E15=\"\",\"\",(IF(E15=$E$7,$D$7,(IF(E15=$E$8,$D$8,(IF(E15=$E$9,$D$9,(IF(E15=$E$10,$D$10,(IF(E15=$E$11,$D$11,\" \")))))))))))","v":3},"Orta",null,"Çok Düşük",{"$f":"IF(OR($E15=\"\",$G15=\"\"),\"\",D15*F15)","v":0},{"$f":"IF(OR($E15=\"\",$G15=\"\"),\"\",   IF($H15<$AD$8,$AG$7,   IF(AND($H15>$AF$7,$H15<$AD$9),$AG$8,   IF(AND($H15>$AF$8,$H15<$AD$10),$AG$9,   IF($H15>$AF$9,$AG$10,\"\")))))","v":"Düşük"},null,null,null,null,null,null,null,{"$f":"IF(AND($D15=1,$F15=1),\"X\",\"\")","v":""},{"$f":"IF(AND($D15=1,$F15=2),\"X\",\"\")","v":""},{"$f":"IF(AND($D15=1,$F15=3),\"X\",\"\")","v":""},{"$f":"IF(AND($D15=1,$F15=4),\"X\",\"\")","v":""},{"$f":"IF(AND($D15=1,$F15=5),\"X\",\"\")","v":""},{"$f":"IF(AND($D15=2,$F15=1),\"X\",\"\")","v":""},{"$f":"IF(AND($D15=2,$F15=2),\"X\",\"\")","v":""},{"$f":"IF(AND($D15=2,$F15=3),\"X\",\"\")","v":""},{"$f":"IF(AND($D15=2,$F15=4),\"X\",\"\")","v":""},{"$f":"IF(AND($D15=2,$F15=5),\"X\",\"\")","v":""},{"$f":"IF(AND($D15=3,$F15=1),\"X\",\"\")","v":""},{"$f":"IF(AND($D15=3,$F15=2),\"X\",\"\")","v":""},{"$f":"IF(AND($D15=3,$F15=3),\"X\",\"\")","v":""},{"$f":"IF(AND($D15=3,$F15=4),\"X\",\"\")","v":""},{"$f":"IF(AND($D15=3,$F15=5),\"X\",\"\")","v":""},{"$f":"IF(AND($D15=4,$F15=1),\"X\",\"\")","v":""},{"$f":"IF(AND($D15=4,$F15=2),\"X\",\"\")","v":""},{"$f":"IF(AND($D15=4,$F15=3),\"X\",\"\")","v":""},{"$f":"IF(AND($D15=4,$F15=4),\"X\",\"\")","v":""},{"$f":"IF(AND($D15=4,$F15=5),\"X\",\"\")","v":""},{"$f":"IF(AND($D15=5,$F15=1),\"X\",\"\")","v":""},{"$f":"IF(AND($D15=5,$F15=2),\"X\",\"\")","v":""},{"$f":"IF(AND($D15=5,$F15=3),\"X\",\"\")","v":""},{"$f":"IF(AND($D15=5,$F15=4),\"X\",\"\")","v":""},{"$f":"IF(AND($D15=5,$F15=5),\"X\",\"\")","v":""}]
[{"$f":"IF('Risk - Belirleme'!A16=\"\",\" \",'Risk - Belirleme'!A16)","v":2},{"$f":"IF('Risk - Belirleme'!D16=\"\",\" \",'Risk - Belirleme'!D16)","v":"YÖK tarafından belli edilen seçim kiriterlerine uygun olarak asil ve yedek öğrencilerin belirlenememesi."},{"$f":"IF('Risk - Belirleme'!E16=\"\",\" \",'Risk - Belirleme'!E16)","v":"İtibar"},{"$f":"IF(E16=\"\",\"\",(IF(E16=$E$7,$D$7,(IF(E16=$E$8,$D$8,(IF(E16=$E$9,$D$9,(IF(E16=$E$10,$D$10,(IF(E16=$E$11,$D$11,\" \")))))))))))","v":4},"Yüksek",null,"Düşük",{"$f":"IF(OR($E16=\"\",$G16=\"\"),\"\",D16*F16)","v":0},{"$f":"IF(OR($E16=\"\",$G16=\"\"),\"\",   IF($H16<$AD$8,$AG$7,   IF(AND($H16>$AF$7,$H16<$AD$9),$AG$8,   IF(AND($H16>$AF$8,$H16<$AD$10),$AG$9,   IF($H16>$AF$9,$AG$10,\"\")))))","v":"Düşük"},null,null,null,null,null,null,null,"","","","","","","","","","","","","","","","","","","","","","","","",""]
[{"$f":"IF('Risk - Belirleme'!A17=\"\",\" \",'Risk - Belirleme'!A17)","v":3},{"$f":"IF('Risk - Belirleme'!D17=\"\",\" \",'Risk - Belirleme'!D17)","v":"YÖK tarafından ilan edilen başvuru tarihlerinin öğrenci ve personel deşimi yapacağımız ortaklara bildirilmesi. "},{"$f":"IF('Risk - Belirleme'!E17=\"\",\" \",'Risk - Belirleme'!E17)","v":"Operasyonel"},{"$f":"IF(E17=\"\",\"\",(IF(E17=$E$7,$D$7,(IF(E17=$E$8,$D$8,(IF(E17=$E$9,$D$9,(IF(E17=$E$10,$D$10,(IF(E17=$E$11,$D$11,\" \")))))))))))","v":5},"Çok Yüksek",null,"Çok Yüksek",{"$f":"IF(OR($E17=\"\",$G17=\"\"),\"\",D17*F17)","v":0},{"$f":"IF(OR($E17=\"\",$G17=\"\"),\"\",   IF($H17<$AD$8,$AG$7,   IF(AND($H17>$AF$7,$H17<$AD$9),$AG$8,   IF(AND($H17>$AF$8,$H17<$AD$10),$AG$9,   IF($H17>$AF$9,$AG$10,\"\")))))","v":"Düşük"},null,null,null,null,null,null,null,"","","","","","","","","","","","","","","","","","","","","","","","",""]
[{"$f":"IF('Risk - Belirleme'!A18=\"\",\" \",'Risk - Belirleme'!A18)","v":4},{"$f":"IF('Risk - Belirleme'!D18=\"\",\" \",'Risk - Belirleme'!D18)","v":"Mevlana Değişim Programıyla gelen öğrencilere, Üniversiteyi ve şehri tanıtıcı bilgi aktarılması."},{"$f":"IF('Risk - Belirleme'!E18=\"\",\" \",'Risk - Belirleme'!E18)","v":"Operasyonel"},{"$f":"IF(E18=\"\",\"\",(IF(E18=$E$7,$D$7,(IF(E18=$E$8,$D$8,(IF(E18=$E$9,$D$9,(IF(E18=$E$10,$D$10,(IF(E18=$E$11,$D$11,\" \")))))))))))","v":5},"Çok Yüksek",null,"Çok Düşük",{"$f":"IF(OR($E18=\"\",$G18=\"\"),\"\",D18*F18)","v":0},{"$f":"IF(OR($E18=\"\",$G18=\"\"),\"\",   IF($H18<$AD$8,$AG$7,   IF(AND($H18>$AF$7,$H18<$AD$9),$AG$8,   IF(AND($H18>$AF$8,$H18<$AD$10),$AG$9,   IF($H18>$AF$9,$AG$10,\"\")))))","v":"Düşük"},null,null,null,null,null,null,null,"","","","","","","","","","","","","","","","","","","","","","","","",""]
[{"$f":"IF('Risk - Belirleme'!A19=\"\",\" \",'Risk - Belirleme'!A19)","v":5},{"$f":"IF('Risk - Belirleme'!D19=\"\",\" \",'Risk - Belirleme'!D19)","v":"Mevlana Değişim Programı'na katılan öğrenci ve personel için gerekli olan ıslak imzalı belgelerin postada kaybolması ve belgelerin bulunamaması. "},{"$f":"IF('Risk - Belirleme'!E19=\"\",\" \",'Risk - Belirleme'!E19)","v":"Operasyonel"},3,"Orta",null,"Düşük",0,"Düşük",null,null,null,null,null,null,null,"","","","","","","","","","","","","","","","","","","","","","","","",""]
[{"$f":"IF('Risk - Belirleme'!A20=\"\",\" \",'Risk - Belirleme'!A20)","v":" "},{"$f":"IF('Risk - Belirleme'!D20=\"\",\" \",'Risk - Belirleme'!D20)","v":" "},{"$f":"IF('Risk - Belirleme'!E20=\"\",\" \",'Risk - Belirleme'!E20)","v":" "},"",null,null,null,"","",null,null,null,null,null,null,null,"","","","","","","","","","","","","","","","","","","","","","","","",""]
[{"$f":"IF('Risk - Belirleme'!A21=\"\",\" \",'Risk - Belirleme'!A21)","v":1},{"$f":"IF('Risk - Belirleme'!D21=\"\",\" \",'Risk - Belirleme'!D21)","v":"Her yıl YÖK tarafından ilan edilen başvuru tarihlerinde  Üniversite web sayfasında yazılımsal sorun yaşanması."},{"$f":"IF('Risk - Belirleme'!E21=\"\",\" \",'Risk - Belirleme'!E21)","v":"Operasyonel"},3,"Orta",null,"Çok Düşük",0,"Düşük",null,null,null,null,null,null,null,"","","","","","","","","","","","","","","","","","","","","","","","",""]
[{"$f":"IF('Risk - Belirleme'!A22=\"\",\" \",'Risk - Belirleme'!A22)","v":2},{"$f":"IF('Risk - Belirleme'!D22=\"\",\" \",'Risk - Belirleme'!D22)","v":"Farabi Değişim Programıyla Giden öğrencilere yapılması gereken işlemler ile ilgili; Gelen öğrencilere ise Üniversiteyi ve şehri tanıtıcı bilgi aktarılması."},{"$f":"IF('Risk - Belirleme'!E22=\"\",\" \",'Risk - Belirleme'!E22)","v":"Operasyonel"},2,"Düşük",null,"Düşük",0,"Düşük",null,null,null,null,null,null,null,"","","","","","","","","","","","","","","","","","","","","","","","",""]
[{"$f":"IF('Risk - Belirleme'!A23=\"\",\" \",'Risk - Belirleme'!A23)","v":3},{"$f":"IF('Risk - Belirleme'!D23=\"\",\" \",'Risk - Belirleme'!D23)","v":"Farabi Birim Koordinatörlerinin ders içerik ve kredilerini göz önünde bulundurarak öğrenim protokolünün hazırlanmasında öğrenciye yardımcı olmaları."},{"$f":"IF('Risk - Belirleme'!E23=\"\",\" \",'Risk - Belirleme'!E23)","v":"Operasyonel"},2,"Düşük",null,"Düşük",0,"Düşük",null,null,null,null,null,null,null,"","","","","","","","","","","","","","","","","","","","","","","","",""]
[{"$f":"IF('Risk - Belirleme'!A24=\"\",\" \",'Risk - Belirleme'!A24)","v":4},{"$f":"IF('Risk - Belirleme'!D24=\"\",\" \",'Risk - Belirleme'!D24)","v":"Karşı Üniversitelere konu ile ilgili hatırlatma yapılarak dönemlik ve yıllık transkriptlerin geciktirilmeden gönderilmesinin sağlanması."},{"$f":"IF('Risk - Belirleme'!E24=\"\",\" \",'Risk - Belirleme'!E24)","v":"Operasyonel"},2,"Düşük",null,"Çok Düşük",0,"Düşük",null,null,null,null,null,null,null,"","","","","","","","","","","","","","","","","","","","","","","","",""]
[{"$f":"IF('Risk - Belirleme'!A25=\"\",\" \",'Risk - Belirleme'!A25)","v":5},{"$f":"IF('Risk - Belirleme'!D25=\"\",\" \",'Risk - Belirleme'!D25)","v":"Farabi Değişim Programı'na katılan öğrenciler için gerekli olan ıslak imzalı belgelerin postada kaybolması ve belgelerin bulunamaması. "},{"$f":"IF('Risk - Belirleme'!E25=\"\",\" \",'Risk - Belirleme'!E25)","v":"Operasyonel"},2,"Düşük",null,"Düşük",0,"Düşük",null,null,null,null,null,null,null,"","","","","","","","","","","","","","","","","","","","","","","","",""]
[{"$f":"IF('Risk - Belirleme'!A26=\"\",\" \",'Risk - Belirleme'!A26)","v":" "},{"$f":"IF('Risk - Belirleme'!D26=\"\",\" \",'Risk - Belirleme'!D26)","v":" "},{"$f":"IF('Risk - Belirleme'!E26=\"\",\" \",'Risk - Belirleme'!E26)","v":" "},"",null,null,null,"","",null,null,null,null,null,null,null,"","","","","","","","","","","","","","","","","","","","","","","","",""]
[{"$f":"IF('Risk - Belirleme'!A27=\"\",\" \",'Risk - Belirleme'!A27)","v":1},{"$f":"IF('Risk - Belirleme'!D27=\"\",\" \",'Risk - Belirleme'!D27)","v":"Dış İlişkiler web sitesi ve anasayfada ilan edilen başvuru tarihlerinin kaçırılabilmesi"},{"$f":"IF('Risk - Belirleme'!E27=\"\",\" \",'Risk - Belirleme'!E27)","v":"Operasyonel"},2,"Düşük",null,"Düşük",0,"Düşük",null,null,null,null,null,null,null,"","","","","","","","","","","","","","","","","","","","","","","","",""]
[{"$f":"IF('Risk - Belirleme'!A28=\"\",\" \",'Risk - Belirleme'!A28)","v":2},{"$f":"IF('Risk - Belirleme'!D28=\"\",\" \",'Risk - Belirleme'!D28)","v":"Erasmus Değişim Programıyla Giden öğrencilere yapılması gereken işlemler ile ilgili; Gelen öğrencilere ise Üniversiteyi ve şehri tanıtıcı bilgi aktarılmaması."},{"$f":"IF('Risk - Belirleme'!E28=\"\",\" \",'Risk - Belirleme'!E28)","v":"Operasyonel"},2,"Düşük",null,"Düşük",0,"Düşük",null,null,null,null,null,null,null,"","","","","","","","","","","","","","","","","","","","","","","","",""]
[{"$f":"IF('Risk - Belirleme'!A29=\"\",\" \",'Risk - Belirleme'!A29)","v":3},{"$f":"IF('Risk - Belirleme'!D29=\"\",\" \",'Risk - Belirleme'!D29)","v":"Protokollerin hazırlanış sürecinde öğrencilerin Erasmus birim koordinatörlerinden yeterli desteği görememesi"},{"$f":"IF('Risk - Belirleme'!E29=\"\",\" \",'Risk - Belirleme'!E29)","v":"Operasyonel"},2,"Düşük",null,"Düşük",0,"Düşük",null,null,null,null,null,null,null,"","","","","","","","","","","","","","","","","","","","","","","","",""]
[{"$f":"IF('Risk - Belirleme'!A30=\"\",\" \",'Risk - Belirleme'!A30)","v":4},{"$f":"IF('Risk - Belirleme'!D30=\"\",\" \",'Risk - Belirleme'!D30)","v":"Ulusal ajansa gerekli bildirimlerin gecikmeden yapılması"},{"$f":"IF('Risk - Belirleme'!E30=\"\",\" \",'Risk - Belirleme'!E30)","v":"Operasyonel"},2,"Düşük",null,"Düşük",0,"Düşük",null,null,null,null,null,null,null,"","","","","","","","","","","","","","","","","","","","","","","","",""]
[{"$f":"IF('Risk - Belirleme'!A31=\"\",\" \",'Risk - Belirleme'!A31)","v":5},{"$f":"IF('Risk - Belirleme'!D31=\"\",\" \",'Risk - Belirleme'!D31)","v":"Erasmus  Değişim Programı'na katılan öğrenciler için gerekli olan ıslak imzalı belgelerin postada kaybolması , belgelerin bulunamaması ve tekrar gönderilmek zorunda kalınması"},{"$f":"IF('Risk - Belirleme'!E31=\"\",\" \",'Risk - Belirleme'!E31)","v":"Operasyonel"},2,"Düşük",null,"Çok Düşük",0,"Düşük",null,null,null,null,null,null,null,"","","","","","","","","","","","","","","","","","","","","","","","",""]
[{"$f":"IF('Risk - Belirleme'!A32=\"\",\" \",'Risk - Belirleme'!A32)","v":" "},{"$f":"IF('Risk - Belirleme'!D32=\"\",\" \",'Risk - Belirleme'!D32)","v":" "},{"$f":"IF('Risk - Belirleme'!E32=\"\",\" \",'Risk - Belirleme'!E32)","v":" "},"",null,null,null,"","",null,null,null,null,null,null,null,"","","","","","","","","","","","","","","","","","","","","","","","",""]
[{"$f":"IF('Risk - Belirleme'!A33=\"\",\" \",'Risk - Belirleme'!A33)","v":" "},{"$f":"IF('Risk - Belirleme'!D33=\"\",\" \",'Risk - Belirleme'!D33)","v":" "},{"$f":"IF('Risk - Belirleme'!E33=\"\",\" \",'Risk - Belirleme'!E33)","v":" "},"",null,null,null,"","",null,null,null,null,null,null,null,"","","","","","","","","","","","","","","","","","","","","","","","",""]
[{"$f":"IF('Risk - Belirleme'!A34=\"\",\" \",'Risk - Belirleme'!A34)","v":" "},{"$f":"IF('Risk - Belirleme'!D34=\"\",\" \",'Risk - Belirleme'!D34)","v":" "},{"$f":"IF('Risk - Belirleme'!E34=\"\",\" \",'Risk - Belirleme'!E34)","v":" "},"",null,null,null,"","",null,null,null,null,null,null,null,"","","","","","","","","","","","","","","","","","","","","","","","",""]
[{"$f":"IF('Risk - Belirleme'!A35=\"\",\" \",'Risk - Belirleme'!A35)","v":" "},{"$f":"IF('Risk - Belirleme'!D35=\"\",\" \",'Risk - Belirleme'!D35)","v":" "},{"$f":"IF('Risk - Belirleme'!E35=\"\",\" \",'Risk - Belirleme'!E35)","v":" "},"",null,null,null,"","",null,null,null,null,null,null,null,"","","","","","","","","","","","","","","","","","","","","","","","",""]
[{"$f":"IF('Risk - Belirleme'!A36=\"\",\" \",'Risk - Belirleme'!A36)","v":" "},{"$f":"IF('Risk - Belirleme'!D36=\"\",\" \",'Risk - Belirleme'!D36)","v":" "},{"$f":"IF('Risk - Belirleme'!E36=\"\",\" \",'Risk - Belirleme'!E36)","v":" "},"",null,null,null,"","",null,null,null,null,null,null,null,"","","","","","","","","","","","","","","","","","","","","","","","",""]
[{"$f":"IF('Risk - Belirleme'!A37=\"\",\" \",'Risk - Belirleme'!A37)","v":" "},{"$f":"IF('Risk - Belirleme'!D37=\"\",\" \",'Risk - Belirleme'!D37)","v":" "},{"$f":"IF('Risk - Belirleme'!E37=\"\",\" \",'Risk - Belirleme'!E37)","v":" "},"",null,null,null,"","",null,null,null,null,null,null,null,"","","","","","","","","","","","","","","","","","","","","","","","",""]
[{"$f":"IF('Risk - Belirleme'!A38=\"\",\" \",'Risk - Belirleme'!A38)","v":" "},{"$f":"IF('Risk - Belirleme'!D38=\"\",\" \",'Risk - Belirleme'!D38)","v":" "},{"$f":"IF('Risk - Belirleme'!E38=\"\",\" \",'Risk - Belirleme'!E38)","v":" "},"",null,null,null,"","",null,null,null,null,null,null,null,"","","","","","","","","","","","","","","","","","","","","","","","",""]
[{"$f":"IF('Risk - Belirleme'!A39=\"\",\" \",'Risk - Belirleme'!A39)","v":" "},{"$f":"IF('Risk - Belirleme'!D39=\"\",\" \",'Risk - Belirleme'!D39)","v":" "},{"$f":"IF('Risk - Belirleme'!E39=\"\",\" \",'Risk - Belirleme'!E39)","v":" "},"",null,null,null,"","",null,null,null,null,null,null,null,"","","","","","","","","","","","","","","","","","","","","","","","",""]
[{"$f":"IF('Risk - Belirleme'!A40=\"\",\" \",'Risk - Belirleme'!A40)","v":" "},{"$f":"IF('Risk - Belirleme'!D40=\"\",\" \",'Risk - Belirleme'!D40)","v":" "},{"$f":"IF('Risk - Belirleme'!E40=\"\",\" \",'Risk - Belirleme'!E40)","v":" "},"",null,null,null,"","",null,null,null,null,null,null,null,"","","","","","","","","","","","","","","","","","","","","","","","",""]
[{"$f":"IF('Risk - Belirleme'!A41=\"\",\" \",'Risk - Belirleme'!A41)","v":" "},{"$f":"IF('Risk - Belirleme'!D41=\"\",\" \",'Risk - Belirleme'!D41)","v":" "},{"$f":"IF('Risk - Belirleme'!E41=\"\",\" \",'Risk - Belirleme'!E41)","v":" "},"",null,null,null,"","",null,null,null,null,null,null,null,"","","","","","","","","","","","","","","","","","","","","","","","",""]
[{"$f":"IF('Risk - Belirleme'!A42=\"\",\" \",'Risk - Belirleme'!A42)","v":" "},{"$f":"IF('Risk - Belirleme'!D42=\"\",\" \",'Risk - Belirleme'!D42)","v":" "},{"$f":"IF('Risk - Belirleme'!E42=\"\",\" \",'Risk - Belirleme'!E42)","v":" "},"",null,null,null,"","",null,null,null,null,null,null,null,"","","","","","","","","","","","","","","","","","","","","","","","",""]
[{"$f":"IF('Risk - Belirleme'!A43=\"\",\" \",'Risk - Belirleme'!A43)","v":" "},{"$f":"IF('Risk - Belirleme'!D43=\"\",\" \",'Risk - Belirleme'!D43)","v":" "},{"$f":"IF('Risk - Belirleme'!E43=\"\",\" \",'Risk - Belirleme'!E43)","v":" "},"",null,null,null,"","",null,null,null,null,null,null,null,"","","","","","","","","","","","","","","","","","","","","","","","",""]
[{"$f":"IF('Risk - Belirleme'!A44=\"\",\" \",'Risk - Belirleme'!A44)","v":" "},{"$f":"IF('Risk - Belirleme'!D44=\"\",\" \",'Risk - Belirleme'!D44)","v":" "},{"$f":"IF('Risk - Belirleme'!E44=\"\",\" \",'Risk - Belirleme'!E44)","v":" "},"",null,null,null,"","",null,null,null,null,null,null,null,"","","","","","","","","","","","","","","","","","","","","","","","",""]
[{"$f":"IF('Risk - Belirleme'!A45=\"\",\" \",'Risk - Belirleme'!A45)","v":" "},{"$f":"IF('Risk - Belirleme'!D45=\"\",\" \",'Risk - Belirleme'!D45)","v":" "},{"$f":"IF('Risk - Belirleme'!E45=\"\",\" \",'Risk - Belirleme'!E45)","v":" "},"",null,null,null,"","",null,null,null,null,null,null,null,"","","","","","","","","","","","","","","","","","","","","","","","",""]
[{"$f":"IF('Risk - Belirleme'!A46=\"\",\" \",'Risk - Belirleme'!A46)","v":" "},{"$f":"IF('Risk - Belirleme'!D46=\"\",\" \",'Risk - Belirleme'!D46)","v":" "},{"$f":"IF('Risk - Belirleme'!E46=\"\",\" \",'Risk - Belirleme'!E46)","v":" "},"",null,null,null,"","",null,null,null,null,null,null,null,"","","","","","","","","","","","","","","","","","","","","","","","",""]
[{"$f":"IF('Risk - Belirleme'!A47=\"\",\" \",'Risk - Belirleme'!A47)","v":" "},{"$f":"IF('Risk - Belirleme'!D47=\"\",\" \",'Risk - Belirleme'!D47)","v":" "},{"$f":"IF('Risk - Belirleme'!E47=\"\",\" \",'Risk - Belirleme'!E47)","v":" "},"",null,null,null,"","",null,null,null,null,null,null,null,"","","","","","","","","","","","","","","","","","","","","","","","",""]
[{"$f":"IF('Risk - Belirleme'!A48=\"\",\" \",'Risk - Belirleme'!A48)","v":" "},{"$f":"IF('Risk - Belirleme'!D48=\"\",\" \",'Risk - Belirleme'!D48)","v":" "},{"$f":"IF('Risk - Belirleme'!E48=\"\",\" \",'Risk - Belirleme'!E48)","v":" "},"",null,null,null,"","",null,null,null,null,null,null,null,"","","","","","","","","","","","","","","","","","","","","","","","",""]
[{"$f":"IF('Risk - Belirleme'!A49=\"\",\" \",'Risk - Belirleme'!A49)","v":" "},{"$f":"IF('Risk - Belirleme'!D49=\"\",\" \",'Risk - Belirleme'!D49)","v":" "},{"$f":"IF('Risk - Belirleme'!E49=\"\",\" \",'Risk - Belirleme'!E49)","v":" "},"",null,null,null,"","",null,null,null,null,null,null,null,"","","","","","","","","","","","","","","","","","","","","","","","",""]
[{"$f":"IF('Risk - Belirleme'!A50=\"\",\" \",'Risk - Belirleme'!A50)","v":" "},{"$f":"IF('Risk - Belirleme'!D50=\"\",\" \",'Risk - Belirleme'!D50)","v":" "},{"$f":"IF('Risk - Belirleme'!E50=\"\",\" \",'Risk - Belirleme'!E50)","v":" "},"",null,null,null,"","",null,null,null,null,null,null,null,"","","","","","","","","","","","","","","","","","","","","","","","",""]
[{"$f":"IF('Risk - Belirleme'!A51=\"\",\" \",'Risk - Belirleme'!A51)","v":" "},{"$f":"IF('Risk - Belirleme'!D51=\"\",\" \",'Risk - Belirleme'!D51)","v":" "},{"$f":"IF('Risk - Belirleme'!E51=\"\",\" \",'Risk - Belirleme'!E51)","v":" "},"",null,null,null,"","",null,null,null,null,null,null,null,"","","","","","","","","","","","","","","","","","","","","","","","",""]
[{"$f":"IF('Risk - Belirleme'!A52=\"\",\" \",'Risk - Belirleme'!A52)","v":" "},{"$f":"IF('Risk - Belirleme'!D52=\"\",\" \",'Risk - Belirleme'!D52)","v":" "},{"$f":"IF('Risk - Belirleme'!E52=\"\",\" \",'Risk - Belirleme'!E52)","v":" "},"",null,null,null,"","",null,null,null,null,null,null,null,"","","","","","","","","","","","","","","","","","","","","","","","",""]
[{"$f":"IF('Risk - Belirleme'!A53=\"\",\" \",'Risk - Belirleme'!A53)","v":" "},{"$f":"IF('Risk - Belirleme'!D53=\"\",\" \",'Risk - Belirleme'!D53)","v":" "},{"$f":"IF('Risk - Belirleme'!E53=\"\",\" \",'Risk - Belirleme'!E53)","v":" "},"",null,null,null,"","",null,null,null,null,null,null,null,"","","","","","","","","","","","","","","","","","","","","","","","",""]
[{"$f":"IF('Risk - Belirleme'!A54=\"\",\" \",'Risk - Belirleme'!A54)","v":" "},{"$f":"IF('Risk - Belirleme'!D54=\"\",\" \",'Risk - Belirleme'!D54)","v":" "},{"$f":"IF('Risk - Belirleme'!E54=\"\",\" \",'Risk - Belirleme'!E54)","v":" "},"",null,null,null,"","",null,null,null,null,null,null,null,"","","","","","","","","","","","","","","","","","","","","","","","",""]
[{"$f":"IF('Risk - Belirleme'!A55=\"\",\" \",'Risk - Belirleme'!A55)","v":" "},{"$f":"IF('Risk - Belirleme'!D55=\"\",\" \",'Risk - Belirleme'!D55)","v":" "},{"$f":"IF('Risk - Belirleme'!E55=\"\",\" \",'Risk - Belirleme'!E55)","v":" "},"",null,null,null,"","",null,null,null,null,null,null,null,"","","","","","","","","","","","","","","","","","","","","","","","",""]
[{"$f":"IF('Risk - Belirleme'!A56=\"\",\" \",'Risk - Belirleme'!A56)","v":" "},{"$f":"IF('Risk - Belirleme'!D56=\"\",\" \",'Risk - Belirleme'!D56)","v":" "},{"$f":"IF('Risk - Belirleme'!E56=\"\",\" \",'Risk - Belirleme'!E56)","v":" "},"",null,null,null,"","",null,null,null,null,null,null,null,"","","","","","","","","","","","","","","","","","","","","","","","",""]
[{"$f":"IF('Risk - Belirleme'!A57=\"\",\" \",'Risk - Belirleme'!A57)","v":" "},{"$f":"IF('Risk - Belirleme'!D57=\"\",\" \",'Risk - Belirleme'!D57)","v":" "},{"$f":"IF('Risk - Belirleme'!E57=\"\",\" \",'Risk - Belirleme'!E57)","v":" "},"",null,null,null,"","",null,null,null,null,null,null,null,"","","","","","","","","","","","","","","","","","","","","","","","",""]
[{"$f":"IF('Risk - Belirleme'!A58=\"\",\" \",'Risk - Belirleme'!A58)","v":" "},{"$f":"IF('Risk - Belirleme'!D58=\"\",\" \",'Risk - Belirleme'!D58)","v":" "},{"$f":"IF('Risk - Belirleme'!E58=\"\",\" \",'Risk - Belirleme'!E58)","v":" "},"",null,null,null,"","",null,null,null,null,null,null,null,"","","","","","","","","","","","","","","","","","","","","","","","",""]
[{"$f":"IF('Risk - Belirleme'!A59=\"\",\" \",'Risk - Belirleme'!A59)","v":" "},{"$f":"IF('Risk - Belirleme'!D59=\"\",\" \",'Risk - Belirleme'!D59)","v":" "},{"$f":"IF('Risk - Belirleme'!E59=\"\",\" \",'Risk - Belirleme'!E59)","v":" "},"",null,null,null,"","",null,null,null,null,null,null,null,"","","","","","","","","","","","","","","","","","","","","","","","",""]
[{"$f":"IF('Risk - Belirleme'!A60=\"\",\" \",'Risk - Belirleme'!A60)","v":" "},{"$f":"IF('Risk - Belirleme'!D60=\"\",\" \",'Risk - Belirleme'!D60)","v":" "},{"$f":"IF('Risk - Belirleme'!E60=\"\",\" \",'Risk - Belirleme'!E60)","v":" "},"",null,null,null,"","",null,null,null,null,null,null,null,"","","","","","","","","","","","","","","","","","","","","","","","",""]
[{"$f":"IF('Risk - Belirleme'!A61=\"\",\" \",'Risk - Belirleme'!A61)","v":" "},{"$f":"IF('Risk - Belirleme'!D61=\"\",\" \",'Risk - Belirleme'!D61)","v":" "},{"$f":"IF('Risk - Belirleme'!E61=\"\",\" \",'Risk - Belirleme'!E61)","v":" "},"",null,null,null,"","",null,null,null,null,null,null,null,"","","","","","","","","","","","","","","","","","","","","","","","",""]
[{"$f":"IF('Risk - Belirleme'!A62=\"\",\" \",'Risk - Belirleme'!A62)","v":" "},{"$f":"IF('Risk - Belirleme'!D62=\"\",\" \",'Risk - Belirleme'!D62)","v":" "},{"$f":"IF('Risk - Belirleme'!E62=\"\",\" \",'Risk - Belirleme'!E62)","v":" "},"",null,null,null,"","",null,null,null,null,null,null,null,"","","","","","","","","","","","","","","","","","","","","","","","",""]
[{"$f":"IF('Risk - Belirleme'!A63=\"\",\" \",'Risk - Belirleme'!A63)","v":" "},{"$f":"IF('Risk - Belirleme'!D63=\"\",\" \",'Risk - Belirleme'!D63)","v":" "},{"$f":"IF('Risk - Belirleme'!E63=\"\",\" \",'Risk - Belirleme'!E63)","v":" "},"",null,null,null,"","",null,null,null,null,null,null,null,"","","","","","","","","","","","","","","","","","","","","","","","",""]
[{"$f":"IF('Risk - Belirleme'!A64=\"\",\" \",'Risk - Belirleme'!A64)","v":" "},{"$f":"IF('Risk - Belirleme'!D64=\"\",\" \",'Risk - Belirleme'!D64)","v":" "},{"$f":"IF('Risk - Belirleme'!E64=\"\",\" \",'Risk - Belirleme'!E64)","v":" "},"",null,null,null,"","",null,null,null,null,null,null,null,"","","","","","","","","","","","","","","","","","","","","","","","",""]
[{"$f":"IF('Risk - Belirleme'!A65=\"\",\" \",'Risk - Belirleme'!A65)","v":" "},{"$f":"IF('Risk - Belirleme'!D65=\"\",\" \",'Risk - Belirleme'!D65)","v":" "},{"$f":"IF('Risk - Belirleme'!E65=\"\",\" \",'Risk - Belirleme'!E65)","v":" "},"",null,null,null,"","",null,null,null,null,null,null,null,"","","","","","","","","","","","","","","","","","","","","","","","",""]
[{"$f":"IF('Risk - Belirleme'!A66=\"\",\" \",'Risk - Belirleme'!A66)","v":" "},{"$f":"IF('Risk - Belirleme'!D66=\"\",\" \",'Risk - Belirleme'!D66)","v":" "},{"$f":"IF('Risk - Belirleme'!E66=\"\",\" \",'Risk - Belirleme'!E66)","v":" "},"",null,null,null,"","",null,null,null,null,null,null,null,"","","","","","","","","","","","","","","","","","","","","","","","",""]
[{"$f":"IF('Risk - Belirleme'!A67=\"\",\" \",'Risk - Belirleme'!A67)","v":" "},{"$f":"IF('Risk - Belirleme'!D67=\"\",\" \",'Risk - Belirleme'!D67)","v":" "},{"$f":"IF('Risk - Belirleme'!E67=\"\",\" \",'Risk - Belirleme'!E67)","v":" "},"",null,null,null,"","",null,null,null,null,null,null,null,"","","","","","","","","","","","","","","","","","","","","","","","",""]
[{"$f":"IF('Risk - Belirleme'!A68=\"\",\" \",'Risk - Belirleme'!A68)","v":" "},{"$f":"IF('Risk - Belirleme'!D68=\"\",\" \",'Risk - Belirleme'!D68)","v":" "},{"$f":"IF('Risk - Belirleme'!E68=\"\",\" \",'Risk - Belirleme'!E68)","v":" "},"",null,null,null,"","",null,null,null,null,null,null,null,"","","","","","","","","","","","","","","","","","","","","","","","",""]
[{"$f":"IF('Risk - Belirleme'!A69=\"\",\" \",'Risk - Belirleme'!A69)","v":" "},{"$f":"IF('Risk - Belirleme'!D69=\"\",\" \",'Risk - Belirleme'!D69)","v":" "},{"$f":"IF('Risk - Belirleme'!E69=\"\",\" \",'Risk - Belirleme'!E69)","v":" "},"",null,null,null,"","",null,null,null,null,null,null,null,"","","","","","","","","","","","","","","","","","","","","","","","",""]
[{"$f":"IF('Risk - Belirleme'!A70=\"\",\" \",'Risk - Belirleme'!A70)","v":" "},{"$f":"IF('Risk - Belirleme'!D70=\"\",\" \",'Risk - Belirleme'!D70)","v":" "},{"$f":"IF('Risk - Belirleme'!E70=\"\",\" \",'Risk - Belirleme'!E70)","v":" "},"",null,null,null,"","",null,null,null,null,null,null,null,"","","","","","","","","","","","","","","","","","","","","","","","",""]
[{"$f":"IF('Risk - Belirleme'!A71=\"\",\" \",'Risk - Belirleme'!A71)","v":" "},{"$f":"IF('Risk - Belirleme'!D71=\"\",\" \",'Risk - Belirleme'!D71)","v":" "},{"$f":"IF('Risk - Belirleme'!E71=\"\",\" \",'Risk - Belirleme'!E71)","v":" "},"",null,null,null,"","",null,null,null,null,null,null,null,"","","","","","","","","","","","","","","","","","","","","","","","",""]
[{"$f":"IF('Risk - Belirleme'!A72=\"\",\" \",'Risk - Belirleme'!A72)","v":" "},{"$f":"IF('Risk - Belirleme'!D72=\"\",\" \",'Risk - Belirleme'!D72)","v":" "},{"$f":"IF('Risk - Belirleme'!E72=\"\",\" \",'Risk - Belirleme'!E72)","v":" "},"",null,{"$f":"IF(G72=\"\",\"\",(IF(G72=$G$7,$F$7,(IF(G72=$G$8,$F$8,(IF(G72=$G$9,$F$9,(IF(G72=$G$10,$F$10,(IF(G72=$G$11,$F$11,\" \")))))))))))","v":""},null,"","",null,null,null,null,null,null,null,"","","","","","","","","","","","","","","","","","","","","","","","",""]
[{"$f":"IF('Risk - Belirleme'!A73=\"\",\" \",'Risk - Belirleme'!A73)","v":" "},{"$f":"IF('Risk - Belirleme'!D73=\"\",\" \",'Risk - Belirleme'!D73)","v":" "},{"$f":"IF('Risk - Belirleme'!E73=\"\",\" \",'Risk - Belirleme'!E73)","v":" "},"",null,"",null,"","",null,null,null,null,null,null,null,"","","","","","","","","","","","","","","","","","","","","","","","",""]
[{"$f":"IF('Risk - Belirleme'!A74=\"\",\" \",'Risk - Belirleme'!A74)","v":" "},{"$f":"IF('Risk - Belirleme'!D74=\"\",\" \",'Risk - Belirleme'!D74)","v":" "},{"$f":"IF('Risk - Belirleme'!E74=\"\",\" \",'Risk - Belirleme'!E74)","v":" "},"",null,"",null,"","",null,null,null,null,null,null,null,"","","","","","","","","","","","","","","","","","","","","","","","",""]
[{"$f":"IF('Risk - Belirleme'!A75=\"\",\" \",'Risk - Belirleme'!A75)","v":" "},{"$f":"IF('Risk - Belirleme'!D75=\"\",\" \",'Risk - Belirleme'!D75)","v":" "},{"$f":"IF('Risk - Belirleme'!E75=\"\",\" \",'Risk - Belirleme'!E75)","v":" "},"",null,"",null,"","",null,null,null,null,null,null,null,"","","","","","","","","","","","","","","","","","","","","","","","",""]
[{"$f":"IF('Risk - Belirleme'!A76=\"\",\" \",'Risk - Belirleme'!A76)","v":" "},{"$f":"IF('Risk - Belirleme'!D76=\"\",\" \",'Risk - Belirleme'!D76)","v":" "},{"$f":"IF('Risk - Belirleme'!E76=\"\",\" \",'Risk - Belirleme'!E76)","v":" "},"",null,"",null,"","",null,null,null,null,null,null,null,"","","","","","","","","","","","","","","","","","","","","","","","",""]
[{"$f":"IF('Risk - Belirleme'!A77=\"\",\" \",'Risk - Belirleme'!A77)","v":" "},{"$f":"IF('Risk - Belirleme'!D77=\"\",\" \",'Risk - Belirleme'!D77)","v":" "},{"$f":"IF('Risk - Belirleme'!E77=\"\",\" \",'Risk - Belirleme'!E77)","v":" "},"",null,"",null,"","",null,null,null,null,null,null,null,"","","","","","","","","","","","","","","","","","","","","","","","",""]
[{"$f":"IF('Risk - Belirleme'!A78=\"\",\" \",'Risk - Belirleme'!A78)","v":" "},{"$f":"IF('Risk - Belirleme'!D78=\"\",\" \",'Risk - Belirleme'!D78)","v":" "},{"$f":"IF('Risk - Belirleme'!E78=\"\",\" \",'Risk - Belirleme'!E78)","v":" "},"",null,"",null,"","",null,null,null,null,null,null,null,"","","","","","","","","","","","","","","","","","","","","","","","",""]
[{"$f":"IF('Risk - Belirleme'!A79=\"\",\" \",'Risk - Belirleme'!A79)","v":" "},{"$f":"IF('Risk - Belirleme'!D79=\"\",\" \",'Risk - Belirleme'!D79)","v":" "},{"$f":"IF('Risk - Belirleme'!E79=\"\",\" \",'Risk - Belirleme'!E79)","v":" "},"",null,"",null,"","",null,null,null,null,null,null,null,{"$f":"IF(AND($D79=1,$F79=1),\"X\",\"\")","v":""},{"$f":"IF(AND($D79=1,$F79=2),\"X\",\"\")","v":""},{"$f":"IF(AND($D79=1,$F79=3),\"X\",\"\")","v":""},{"$f":"IF(AND($D79=1,$F79=4),\"X\",\"\")","v":""},{"$f":"IF(AND($D79=1,$F79=5),\"X\",\"\")","v":""},{"$f":"IF(AND($D79=2,$F79=1),\"X\",\"\")","v":""},{"$f":"IF(AND($D79=2,$F79=2),\"X\",\"\")","v":""},{"$f":"IF(AND($D79=2,$F79=3),\"X\",\"\")","v":""},{"$f":"IF(AND($D79=2,$F79=4),\"X\",\"\")","v":""},{"$f":"IF(AND($D79=2,$F79=5),\"X\",\"\")","v":""},{"$f":"IF(AND($D79=3,$F79=1),\"X\",\"\")","v":""},{"$f":"IF(AND($D79=3,$F79=2),\"X\",\"\")","v":""},{"$f":"IF(AND($D79=3,$F79=3),\"X\",\"\")","v":""},{"$f":"IF(AND($D79=3,$F79=4),\"X\",\"\")","v":""},{"$f":"IF(AND($D79=3,$F79=5),\"X\",\"\")","v":""},{"$f":"IF(AND($D79=4,$F79=1),\"X\",\"\")","v":""},{"$f":"IF(AND($D79=4,$F79=2),\"X\",\"\")","v":""},{"$f":"IF(AND($D79=4,$F79=3),\"X\",\"\")","v":""},{"$f":"IF(AND($D79=4,$F79=4),\"X\",\"\")","v":""},{"$f":"IF(AND($D79=4,$F79=5),\"X\",\"\")","v":""},{"$f":"IF(AND($D79=5,$F79=1),\"X\",\"\")","v":""},{"$f":"IF(AND($D79=5,$F79=2),\"X\",\"\")","v":""},{"$f":"IF(AND($D79=5,$F79=3),\"X\",\"\")","v":""},{"$f":"IF(AND($D79=5,$F79=4),\"X\",\"\")","v":""},{"$f":"IF(AND($D79=5,$F79=5),\"X\",\"\")","v":""}]
[{"$f":"IF('Risk - Belirleme'!A80=\"\",\" \",'Risk - Belirleme'!A80)","v":" "},{"$f":"IF('Risk - Belirleme'!D80=\"\",\" \",'Risk - Belirleme'!D80)","v":" "},{"$f":"IF('Risk - Belirleme'!E80=\"\",\" \",'Risk - Belirleme'!E80)","v":" "},"",null,"",null,"","",null,null,null,null,null,null,null,"","","","","","","","","","","","","","","","","","","","","","","","",""]
[{"$f":"IF('Risk - Belirleme'!A81=\"\",\" \",'Risk - Belirleme'!A81)","v":" "},{"$f":"IF('Risk - Belirleme'!D81=\"\",\" \",'Risk - Belirleme'!D81)","v":" "},{"$f":"IF('Risk - Belirleme'!E81=\"\",\" \",'Risk - Belirleme'!E81)","v":" "},"",null,"",null,"","",null,null,null,null,null,null,null,"","","","","","","","","","","","","","","","","","","","","","","","",""]
[{"$f":"IF('Risk - Belirleme'!A82=\"\",\" \",'Risk - Belirleme'!A82)","v":" "},{"$f":"IF('Risk - Belirleme'!D82=\"\",\" \",'Risk - Belirleme'!D82)","v":" "},{"$f":"IF('Risk - Belirleme'!E82=\"\",\" \",'Risk - Belirleme'!E82)","v":" "},{"$f":"IF(E82=\"\",\"\",(IF(E82=$E$7,$D$7,(IF(E82=$E$8,$D$8,(IF(E82=$E$9,$D$9,(IF(E82=$E$10,$D$10,(IF(E82=$E$11,$D$11,\" \")))))))))))","v":""},null,{"$f":"IF(G82=\"\",\"\",(IF(G82=$G$7,$F$7,(IF(G82=$G$8,$F$8,(IF(G82=$G$9,$F$9,(IF(G82=$G$10,$F$10,(IF(G82=$G$11,$F$11,\" \")))))))))))","v":""},null,{"$f":"IF(OR($E82=\"\",$G82=\"\"),\"\",D82*F82)","v":""},{"$f":"IF(OR($E82=\"\",$G82=\"\"),\"\",   IF($H82<$AD$8,$AG$7,   IF(AND($H82>$AF$7,$H82<$AD$9),$AG$8,   IF(AND($H82>$AF$8,$H82<$AD$10),$AG$9,   IF($H82>$AF$9,$AG$10,\"\")))))","v":""},null,null,null,null,null,null,null,"","","","","","","","","","","","","","","","","","","","","","","","",""]
[{"$f":"IF('Risk - Belirleme'!A83=\"\",\" \",'Risk - Belirleme'!A83)","v":" "},{"$f":"IF('Risk - Belirleme'!D83=\"\",\" \",'Risk - Belirleme'!D83)","v":" "},{"$f":"IF('Risk - Belirleme'!E83=\"\",\" \",'Risk - Belirleme'!E83)","v":" "},"",null,"",null,"","",null,null,null,null,null,null,null,"","","","","","","","","","","","","","","","","","","","","","","","",""]
[{"$f":"IF('Risk - Belirleme'!A84=\"\",\" \",'Risk - Belirleme'!A84)","v":" "},{"$f":"IF('Risk - Belirleme'!D84=\"\",\" \",'Risk - Belirleme'!D84)","v":" "},{"$f":"IF('Risk - Belirleme'!E84=\"\",\" \",'Risk - Belirleme'!E84)","v":" "},"",null,"",null,"","",null,null,null,null,null,null,null,"","","","","","","","","","","","","","","","","","","","","","","","",""]
[{"$f":"IF('Risk - Belirleme'!A85=\"\",\" \",'Risk - Belirleme'!A85)","v":" "},{"$f":"IF('Risk - Belirleme'!D85=\"\",\" \",'Risk - Belirleme'!D85)","v":" "},{"$f":"IF('Risk - Belirleme'!E85=\"\",\" \",'Risk - Belirleme'!E85)","v":" "},"",null,"",null,"","",null,null,null,null,null,null,null,"","","","","","","","","","","","","","","","","","","","","","","","",""]
[{"$f":"IF('Risk - Belirleme'!A86=\"\",\" \",'Risk - Belirleme'!A86)","v":" "},{"$f":"IF('Risk - Belirleme'!D86=\"\",\" \",'Risk - Belirleme'!D86)","v":" "},{"$f":"IF('Risk - Belirleme'!E86=\"\",\" \",'Risk - Belirleme'!E86)","v":" "},"",null,"",null,"","",null,null,null,null,null,null,null,"","","","","","","","","","","","","","","","","","","","","","","","",""]
[{"$f":"IF('Risk - Belirleme'!A87=\"\",\" \",'Risk - Belirleme'!A87)","v":" "},{"$f":"IF('Risk - Belirleme'!D87=\"\",\" \",'Risk - Belirleme'!D87)","v":" "},{"$f":"IF('Risk - Belirleme'!E87=\"\",\" \",'Risk - Belirleme'!E87)","v":" "},"",null,"",null,"","",null,null,null,null,null,null,null,"","","","","","","","","","","","","","","","","","","","","","","","",""]
[{"$f":"IF('Risk - Belirleme'!A88=\"\",\" \",'Risk - Belirleme'!A88)","v":" "},{"$f":"IF('Risk - Belirleme'!D88=\"\",\" \",'Risk - Belirleme'!D88)","v":" "},{"$f":"IF('Risk - Belirleme'!E88=\"\",\" \",'Risk - Belirleme'!E88)","v":" "},"",null,"",null,"","",null,null,null,null,null,null,null,"","","","","","","","","","","","","","","","","","","","","","","","",""]
[{"$f":"IF('Risk - Belirleme'!A89=\"\",\" \",'Risk - Belirleme'!A89)","v":" "},{"$f":"IF('Risk - Belirleme'!D89=\"\",\" \",'Risk - Belirleme'!D89)","v":" "},{"$f":"IF('Risk - Belirleme'!E89=\"\",\" \",'Risk - Belirleme'!E89)","v":" "},"",null,"",null,"","",null,null,null,null,null,null,null,"","","","","","","","","","","","","","","","","","","","","","","","",""]
[{"$f":"IF('Risk - Belirleme'!A90=\"\",\" \",'Risk - Belirleme'!A90)","v":" "},{"$f":"IF('Risk - Belirleme'!D90=\"\",\" \",'Risk - Belirleme'!D90)","v":" "},{"$f":"IF('Risk - Belirleme'!E90=\"\",\" \",'Risk - Belirleme'!E90)","v":" "},"",null,"",null,"","",null,null,null,null,null,null,null,"","","","","","","","","","","","","","","","","","","","","","","","",""]
[{"$f":"IF('Risk - Belirleme'!A91=\"\",\" \",'Risk - Belirleme'!A91)","v":" "},{"$f":"IF('Risk - Belirleme'!D91=\"\",\" \",'Risk - Belirleme'!D91)","v":" "},{"$f":"IF('Risk - Belirleme'!E91=\"\",\" \",'Risk - Belirleme'!E91)","v":" "},"",null,"",null,"","",null,null,null,null,null,null,null,"","","","","","","","","","","","","","","","","","","","","","","","",""]
[{"$f":"IF('Risk - Belirleme'!A92=\"\",\" \",'Risk - Belirleme'!A92)","v":" "},{"$f":"IF('Risk - Belirleme'!D92=\"\",\" \",'Risk - Belirleme'!D92)","v":" "},{"$f":"IF('Risk - Belirleme'!E92=\"\",\" \",'Risk - Belirleme'!E92)","v":" "},"",null,"",null,"","",null,null,null,null,null,null,null,"","","","","","","","","","","","","","","","","","","","","","","","",""]
[{"$f":"IF('Risk - Belirleme'!A93=\"\",\" \",'Risk - Belirleme'!A93)","v":" "},{"$f":"IF('Risk - Belirleme'!D93=\"\",\" \",'Risk - Belirleme'!D93)","v":" "},{"$f":"IF('Risk - Belirleme'!E93=\"\",\" \",'Risk - Belirleme'!E93)","v":" "},"",null,"",null,"","",null,null,null,null,null,null,null,"","","","","","","","","","","","","","","","","","","","","","","","",""]
[{"$f":"IF('Risk - Belirleme'!A94=\"\",\" \",'Risk - Belirleme'!A94)","v":" "},{"$f":"IF('Risk - Belirleme'!D94=\"\",\" \",'Risk - Belirleme'!D94)","v":" "},{"$f":"IF('Risk - Belirleme'!E94=\"\",\" \",'Risk - Belirleme'!E94)","v":" "},"",null,"",null,"","",null,null,null,null,null,null,null,"","","","","","","","","","","","","","","","","","","","","","","","",""]
[{"$f":"IF('Risk - Belirleme'!A95=\"\",\" \",'Risk - Belirleme'!A95)","v":" "},{"$f":"IF('Risk - Belirleme'!D95=\"\",\" \",'Risk - Belirleme'!D95)","v":" "},{"$f":"IF('Risk - Belirleme'!E95=\"\",\" \",'Risk - Belirleme'!E95)","v":" "},"",null,"",null,"","",null,null,null,null,null,null,null,"","","","","","","","","","","","","","","","","","","","","","","","",""]
[{"$f":"IF('Risk - Belirleme'!A96=\"\",\" \",'Risk - Belirleme'!A96)","v":" "},{"$f":"IF('Risk - Belirleme'!D96=\"\",\" \",'Risk - Belirleme'!D96)","v":" "},{"$f":"IF('Risk - Belirleme'!E96=\"\",\" \",'Risk - Belirleme'!E96)","v":" "},"",null,"",null,"","",null,null,null,null,null,null,null,"","","","","","","","","","","","","","","","","","","","","","","","",""]
[{"$f":"IF('Risk - Belirleme'!A97=\"\",\" \",'Risk - Belirleme'!A97)","v":" "},{"$f":"IF('Risk - Belirleme'!D97=\"\",\" \",'Risk - Belirleme'!D97)","v":" "},{"$f":"IF('Risk - Belirleme'!E97=\"\",\" \",'Risk - Belirleme'!E97)","v":" "},"",null,"",null,"","",null,null,null,null,null,null,null,"","","","","","","","","","","","","","","","","","","","","","","","",""]
[{"$f":"IF('Risk - Belirleme'!A98=\"\",\" \",'Risk - Belirleme'!A98)","v":" "},{"$f":"IF('Risk - Belirleme'!D98=\"\",\" \",'Risk - Belirleme'!D98)","v":" "},{"$f":"IF('Risk - Belirleme'!E98=\"\",\" \",'Risk - Belirleme'!E98)","v":" "},"",null,"",null,"","",null,null,null,null,null,null,null,"","","","","","","","","","","","","","","","","","","","","","","","",""]
[{"$f":"IF('Risk - Belirleme'!A99=\"\",\" \",'Risk - Belirleme'!A99)","v":" "},{"$f":"IF('Risk - Belirleme'!D99=\"\",\" \",'Risk - Belirleme'!D99)","v":" "},{"$f":"IF('Risk - Belirleme'!E99=\"\",\" \",'Risk - Belirleme'!E99)","v":" "},"",null,"",null,"","",null,null,null,null,null,null,null,"","","","","","","","","","","","","","","","","","","","","","","","",""]
[null,null,null,null,null,null,null,null,null,null,null,null,null,null,null,null,{"$f":"COUNTIF(Q15:Q99,\"X\")","v":0},{"$f":"COUNTIF(R15:R99,\"X\")","v":0},0,0,0,0,0,0,0,0,0,0,0,0,0,0,0,0,0,0,0,0,0,0,0]

{"sheet":"Risk - Yönetimi","index":8,"n_rows":100,"n_cols":47,"rows_kept":100,"cut":false,"hidden":false,"merged":[[0,0,0,14],[1,22,1,46],[5,22,9,22],[5,35,5,38],[11,24,11,28],[1,0,2,0],[1,1,2,1],[1,2,2,2],[1,3,2,3],[1,4,2,4],[1,5,2,5],[1,9,1,14],[1,6,2,6],[1,7,2,7],[1,8,2,8]]}
["RİSK YÖNETİMİ"]
["RİSK NO","Detaylı Risk Açıklaması","Risk Kategorisi","Risk Yönetimi Stratejisi","Kontrol Faaliyeti / Strateji Açıklaması","Risk Sorumlusu","Riskin Ait Olduğu Süreç / Faaliyet","Riskin Ait Olduğu Alt Süreç / Alt Faaliyet","Riske ait Mevzuat ve/veya Politika Belgesi","Kontrol Önlemleri Sonrası Risk Değerlendirmesi"]
[null,null,null,null,null,null,null,null,null,"Impact Score","Etki","Likelihood Score","Olasılık","Risk Score","Risk Oranı"]
["Otomatik","Otomatik","Otomatik","Açılır Liste","Manuel","Manuel","Manuel","Manuel","Manuel","Hidden Col.","Açılır Liste","Hidden Col.","Açılır Liste","Hidden Col.","Otomatik"]
[]
[" ",null,null,null,null,null,null,null,null,null,null,null,null,null,null,null,null,null,null,null,null,null,"Impact",5,"U","V","W","X","Y",null,null,null,null,null,null,"Score"]
[null,null,null,"Kabul Et",null,null,null,"Aktif",null,5,"Çok Yüksek",5,"Çok Yüksek",null,null,null,null,null,null,null,null,null,null,4,"P","Q","R","S","T",null,null,null,null,null,null,1,"-",4,"Düşük"]
[null,null,null,"Kontrol Geliştir",null,null,null,"Pasif",null,4,"Yüksek",4,"Yüksek",null,null,null,null,null,null,null,null,null,null,3,"K","L","M","N","O",null,null,null,null,null,null,5,"-",10,"Orta"]
[null,null,null,"Transfer Et",null,null,null,null,null,3,"Orta",3,"Orta",null,null,null,null,null,null,null,null,null,null,2,"F","G","H","I","J",null,null,null,null,null,null,12,"-",15,"Yüksek"]
[null,null,null,"Kaçın",null,null,null,null,null,2,"Düşük",2,"Düşük",null,null,null,null,null,null,null,null,null,null,1,"A","B","C","D","E",null,null,null,null,null,null,16,"-",25,"Çok Yüksek"]
[null,null,null,"Faydalan",null,null,null,null,null,1,"Çok Düşük",1,"Çok Düşük",null,null,null,null,null,null,null,null,null,null,null,1,2,3,4,5]
[null,null,null,null,null,null,null,null,null,null,null,null,null,null,null,null,null,null,null,null,null,null,null,null,"Likelihood"]
[]
[null,null,null,null,null,null,null,null,null,null,null,null,null,null,null,null,null,null,null,null,null,null,"A","B","C","D","E","F","G","H","I","J","K","L","M","N","O","P","Q","R","S","T","U","V","W","X","Y"]
[{"$f":"IF('Risk - Belirleme'!A15=\"\",\" \",'Risk - Belirleme'!A15)","v":1},{"$f":"IF('Risk - Belirleme'!D15=\"\",\" \",'Risk - Belirleme'!D15)","v":"Her sene YÖK tarafından ilan edilen başvuru tarihlerinde  Üniversite web saysafasında yazılımsal sorun yaşanması."},{"$f":"IF('Risk - Belirleme'!E15=\"\",\" \",'Risk - Belirleme'!E15)","v":"Operasyonel"},"Kabul Et","İlan tarihinden önce siteye bilgi girişi yaparak kontrol edilmesi. ","Birim Koordinatörü","Bilgi İşlem Daire Başkanlığı","Bilgi İşlem Daire Başkanlığı","YOK",{"$f":"IF(K15=\"\",\"\",(IF(K15=$K$7,$J$7,(IF(K15=$K$8,$J$8,(IF(K15=$K$9,$J$9,(IF(K15=$K$10,$J$10,(IF(K15=$K$11,$J$11,\" \")))))))))))","v":3},"Orta",{"$f":"IF(M15=\"\",\"\",(IF(M15=$M$7,$L$7,(IF(M15=$M$8,$L$8,(IF(M15=$M$9,$L$9,(IF(M15=$M$10,$L$10,(IF(M15=$M$11,$L$11,\" \")))))))))))","v":1},"Çok Düşük",{"$f":"IF(OR($K15=\"\",$M15=\"\"),\"\",J15*L15)","v":3},{"$f":"IF(OR($K15=\"\",$M15=\"\"),\"\",   IF($N15<$AJ$8,$AM$7,   IF(AND($N15>$AL$7,$N15<$AJ$9),$AM$8,   IF(AND($N15>$AL$8,$N15<$AJ$10),$AM$9,   IF($N15>$AL$9,$AM$10,\"\")))))","v":"Düşük"},null,null,null,null,null,null,null,{"$f":"IF(AND($J15=1,$L15=1),\"X\",\"\")","v":""},{"$f":"IF(AND($J15=1,$L15=2),\"X\",\"\")","v":""},{"$f":"IF(AND($J15=1,$L15=3),\"X\",\"\")","v":""},{"$f":"IF(AND($J15=1,$L15=4),\"X\",\"\")","v":""},{"$f":"IF(AND($J15=1,$L15=5),\"X\",\"\")","v":""},{"$f":"IF(AND($J15=2,$L15=1),\"X\",\"\")","v":""},{"$f":"IF(AND($J15=2,$L15=2),\"X\",\"\")","v":""},{"$f":"IF(AND($J15=2,$L15=3),\"X\",\"\")","v":""},{"$f":"IF(AND($J15=2,$L15=4),\"X\",\"\")","v":""},{"$f":"IF(AND($J15=2,$L15=5),\"X\",\"\")","v":""},{"$f":"IF(AND($J15=3,$L15=1),\"X\",\"\")","v":"X"},{"$f":"IF(AND($J15=3,$L15=2),\"X\",\"\")","v":""},{"$f":"IF(AND($J15=3,$L15=3),\"X\",\"\")","v":""},{"$f":"IF(AND($J15=3,$L15=4),\"X\",\"\")","v":""},{"$f":"IF(AND($J15=3,$L15=5),\"X\",\"\")","v":""},{"$f":"IF(AND($J15=4,$L15=1),\"X\",\"\")","v":""},{"$f":"IF(AND($J15=4,$L15=2),\"X\",\"\")","v":""},{"$f":"IF(AND($J15=4,$L15=3),\"X\",\"\")","v":""},{"$f":"IF(AND($J15=4,$L15=4),\"X\",\"\")","v":""},{"$f":"IF(AND($J15=4,$L15=5),\"X\",\"\")","v":""},{"$f":"IF(AND($J15=5,$L15=1),\"X\",\"\")","v":""},{"$f":"IF(AND($J15=5,$L15=2),\"X\",\"\")","v":""},{"$f":"IF(AND($J15=5,$L15=3),\"X\",\"\")","v":""},{"$f":"IF(AND($J15=5,$L15=4),\"X\",\"\")","v":""},{"$f":"IF(AND($J15=5,$L15=5),\"X\",\"\")","v":""}]
[{"$f":"IF('Risk - Belirleme'!A16=\"\",\" \",'Risk - Belirleme'!A16)","v":2},{"$f":"IF('Risk - Belirleme'!D16=\"\",\" \",'Risk - Belirleme'!D16)","v":"YÖK tarafından belli edilen seçim kiriterlerine uygun olarak asil ve yedek öğrencilerin belirlenememesi."},{"$f":"IF('Risk - Belirleme'!E16=\"\",\" \",'Risk - Belirleme'!E16)","v":"İtibar"},"Kontrol Geliştir","Seçim kriterlerinin birim çalışanlarınca kontrol edilmesi.","Birim Koordinatörü","Dış İlişkiler Koordinatörlüğü","Mevlana Değişim Programı Koordinatörlüğü","YOK",2,"Düşük",{"$f":"IF(M16=\"\",\"\",(IF(M16=$M$7,$L$7,(IF(M16=$M$8,$L$8,(IF(M16=$M$9,$L$9,(IF(M16=$M$10,$L$10,(IF(M16=$M$11,$L$11,\" \")))))))))))","v":2},"Düşük",{"$f":"IF(OR($K16=\"\",$M16=\"\"),\"\",J16*L16)","v":4},{"$f":"IF(OR($K16=\"\",$M16=\"\"),\"\",   IF($N16<$AJ$8,$AM$7,   IF(AND($N16>$AL$7,$N16<$AJ$9),$AM$8,   IF(AND($N16>$AL$8,$N16<$AJ$10),$AM$9,   IF($N16>$AL$9,$AM$10,\"\")))))","v":"Düşük"},null,null,null,null,null,null,null,{"$f":"IF(AND($J16=1,$L16=1),\"X\",\"\")","v":""},{"$f":"IF(AND($J16=1,$L16=2),\"X\",\"\")","v":""},{"$f":"IF(AND($J16=1,$L16=3),\"X\",\"\")","v":""},{"$f":"IF(AND($J16=1,$L16=4),\"X\",\"\")","v":""},{"$f":"IF(AND($J16=1,$L16=5),\"X\",\"\")","v":""},{"$f":"IF(AND($J16=2,$L16=1),\"X\",\"\")","v":""},{"$f":"IF(AND($J16=2,$L16=2),\"X\",\"\")","v":"X"},{"$f":"IF(AND($J16=2,$L16=3),\"X\",\"\")","v":""},{"$f":"IF(AND($J16=2,$L16=4),\"X\",\"\")","v":""},{"$f":"IF(AND($J16=2,$L16=5),\"X\",\"\")","v":""},{"$f":"IF(AND($J16=3,$L16=1),\"X\",\"\")","v":""},{"$f":"IF(AND($J16=3,$L16=2),\"X\",\"\")","v":""},{"$f":"IF(AND($J16=3,$L16=3),\"X\",\"\")","v":""},{"$f":"IF(AND($J16=3,$L16=4),\"X\",\"\")","v":""},{"$f":"IF(AND($J16=3,$L16=5),\"X\",\"\")","v":""},{"$f":"IF(AND($J16=4,$L16=1),\"X\",\"\")","v":""},{"$f":"IF(AND($J16=4,$L16=2),\"X\",\"\")","v":""},{"$f":"IF(AND($J16=4,$L16=3),\"X\",\"\")","v":""},{"$f":"IF(AND($J16=4,$L16=4),\"X\",\"\")","v":""},{"$f":"IF(AND($J16=4,$L16=5),\"X\",\"\")","v":""},{"$f":"IF(AND($J16=5,$L16=1),\"X\",\"\")","v":""},{"$f":"IF(AND($J16=5,$L16=2),\"X\",\"\")","v":""},{"$f":"IF(AND($J16=5,$L16=3),\"X\",\"\")","v":""},{"$f":"IF(AND($J16=5,$L16=4),\"X\",\"\")","v":""},{"$f":"IF(AND($J16=5,$L16=5),\"X\",\"\")","v":""}]
[{"$f":"IF('Risk - Belirleme'!A17=\"\",\" \",'Risk - Belirleme'!A17)","v":3},{"$f":"IF('Risk - Belirleme'!D17=\"\",\" \",'Risk - Belirleme'!D17)","v":"YÖK tarafından ilan edilen başvuru tarihlerinin öğrenci ve personel deşimi yapacağımız ortaklara bildirilmesi. "},{"$f":"IF('Risk - Belirleme'!E17=\"\",\" \",'Risk - Belirleme'!E17)","v":"Operasyonel"},"Kabul Et","Ortaklarımızla iletişim kanallarının açık ve güncel tutulması. ","Birim Koordinatörü","Dış İlişkiler Koordinatörlüğü","Mevlana Değişim Programı Koordinatörlüğü","YOK",1,"Çok Düşük",1,"Çok Düşük",{"$f":"IF(OR($K17=\"\",$M17=\"\"),\"\",J17*L17)","v":1},{"$f":"IF(OR($K17=\"\",$M17=\"\"),\"\",   IF($N17<$AJ$8,$AM$7,   IF(AND($N17>$AL$7,$N17<$AJ$9),$AM$8,   IF(AND($N17>$AL$8,$N17<$AJ$10),$AM$9,   IF($N17>$AL$9,$AM$10,\"\")))))","v":"Düşük"},null,null,null,null,null,null,null,"X","","","","","","","","","","","","","","","","","","","","","","","",""]
[{"$f":"IF('Risk - Belirleme'!A18=\"\",\" \",'Risk - Belirleme'!A18)","v":4},{"$f":"IF('Risk - Belirleme'!D18=\"\",\" \",'Risk - Belirleme'!D18)","v":"Mevlana Değişim Programıyla gelen öğrencilere, Üniversiteyi ve şehri tanıtıcı bilgi aktarılması."},{"$f":"IF('Risk - Belirleme'!E18=\"\",\" \",'Risk - Belirleme'!E18)","v":"Operasyonel"},"Kabul Et","Mevlana Değişim Programıyla gelen öğrencilere geldiklerinde işlemlerini yaparken oryantasyon yaparak öğrencinin bilgilendirilmesi","Birim Koordinatörü","Dış İlişkiler Koordinatörlüğü","Mevlana Değişim Programı Koordinatörlüğü","YOK",2,"Düşük",1,"Çok Düşük",2,{"$f":"IF(OR($K18=\"\",$M18=\"\"),\"\",   IF($N18<$AJ$8,$AM$7,   IF(AND($N18>$AL$7,$N18<$AJ$9),$AM$8,   IF(AND($N18>$AL$8,$N18<$AJ$10),$AM$9,   IF($N18>$AL$9,$AM$10,\"\")))))","v":"Düşük"},null,null,null,null,null,null,null,"","","","","","X","","","","","","","","","","","","","","","","","","",""]
[{"$f":"IF('Risk - Belirleme'!A19=\"\",\" \",'Risk - Belirleme'!A19)","v":5},{"$f":"IF('Risk - Belirleme'!D19=\"\",\" \",'Risk - Belirleme'!D19)","v":"Mevlana Değişim Programı'na katılan öğrenci ve personel için gerekli olan ıslak imzalı belgelerin postada kaybolması ve belgelerin bulunamaması. "},{"$f":"IF('Risk - Belirleme'!E19=\"\",\" \",'Risk - Belirleme'!E19)","v":"Operasyonel"},"Kontrol Geliştir","Posta ile gönderilen tüm belgelerin taranarak elektronik versiyonlarının depolanması ve ortak kuruma gönderilmek üzere postaya verilmeden önce e-posta ile gönderilmesi.","Birim Koordinatörü","Dış İlişkiler Koordinatörlüğü","Mevlana Değişim Programı Koordinatörlüğü","YOK",2,"Düşük",2,"Düşük",4,"Düşük",null,null,null,null,null,null,null,"","","","","","","X","","","","","","","","","","","","","","","","","",""]
[{"$f":"IF('Risk - Belirleme'!A20=\"\",\" \",'Risk - Belirleme'!A20)","v":" "},{"$f":"IF('Risk - Belirleme'!D20=\"\",\" \",'Risk - Belirleme'!D20)","v":" "},{"$f":"IF('Risk - Belirleme'!E20=\"\",\" \",'Risk - Belirleme'!E20)","v":" "},null,null,null,null,null,null,"",null,"",null,"","",null,null,null,null,null,null,null,"","","","","","","","","","","","","","","","","","","","","","","","",""]
[{"$f":"IF('Risk - Belirleme'!A21=\"\",\" \",'Risk - Belirleme'!A21)","v":1},{"$f":"IF('Risk - Belirleme'!D21=\"\",\" \",'Risk - Belirleme'!D21)","v":"Her yıl YÖK tarafından ilan edilen başvuru tarihlerinde  Üniversite web sayfasında yazılımsal sorun yaşanması."},{"$f":"IF('Risk - Belirleme'!E21=\"\",\" \",'Risk - Belirleme'!E21)","v":"Operasyonel"},"Kabul Et","İlan tarihinden önce web sitesinin kontrol edilmesi. ","Birim Koordinatörü","Bilgi İşlem Daire Başkanlığı","Bilgi İşlem Daire Başkanlığı","YOK",{"$f":"IF(K21=\"\",\"\",(IF(K21=$K$7,$J$7,(IF(K21=$K$8,$J$8,(IF(K21=$K$9,$J$9,(IF(K21=$K$10,$J$10,(IF(K21=$K$11,$J$11,\" \")))))))))))","v":3},"Orta",1,"Çok Düşük",3,"Düşük",null,null,null,null,null,null,null,"","","","","","","","","","","X","","","","","","","","","","","","","",""]
[{"$f":"IF('Risk - Belirleme'!A22=\"\",\" \",'Risk - Belirleme'!A22)","v":2},{"$f":"IF('Risk - Belirleme'!D22=\"\",\" \",'Risk - Belirleme'!D22)","v":"Farabi Değişim Programıyla Giden öğrencilere yapılması gereken işlemler ile ilgili; Gelen öğrencilere ise Üniversiteyi ve şehri tanıtıcı bilgi aktarılması."},{"$f":"IF('Risk - Belirleme'!E22=\"\",\" \",'Risk - Belirleme'!E22)","v":"Operasyonel"},"Kabul Et","Farabi Değişim Programıyla giden/gelen öğrencilere oryantasyon yaparak öğrencinin bilgilendirilmesi.","Birim Koordinatörü","Dış İlişkiler Koordinatörlüğü","Farabi Değişim Programı Koordinatörlüğü","YOK",2,"Düşük",2,"Düşük",4,"Düşük",null,null,null,null,null,null,null,"","","","","","","X","","","","","","","","","","","","","","","","","",""]
[9,{"$f":"IF('Risk - Belirleme'!D23=\"\",\" \",'Risk - Belirleme'!D23)","v":"Farabi Birim Koordinatörlerinin ders içerik ve kredilerini göz önünde bulundurarak öğrenim protokolünün hazırlanmasında öğrenciye yardımcı olmaları."},{"$f":"IF('Risk - Belirleme'!E23=\"\",\" \",'Risk - Belirleme'!E23)","v":"Operasyonel"},"Kontrol Geliştir","Birim Koordinatörlerinin sürecin başında, Farabi Değişim Programı ve protokol hazırlama aşaması hakkında bilgilendirilmesi.","Birim Koordinatörü","Dış İlişkiler Koordinatörlüğü","Farabi Değişim Programı Koordinatörlüğü","YOK",2,"Düşük",2,"Düşük",4,"Düşük",null,null,null,null,null,null,null,"","","","","","","X","","","","","","","","","","","","","","","","","",""]
[{"$f":"IF('Risk - Belirleme'!A24=\"\",\" \",'Risk - Belirleme'!A24)","v":4},{"$f":"IF('Risk - Belirleme'!D24=\"\",\" \",'Risk - Belirleme'!D24)","v":"Karşı Üniversitelere konu ile ilgili hatırlatma yapılarak dönemlik ve yıllık transkriptlerin geciktirilmeden gönderilmesinin sağlanması."},{"$f":"IF('Risk - Belirleme'!E24=\"\",\" \",'Risk - Belirleme'!E24)","v":"Operasyonel"},"Kontrol Geliştir","Anlaşmalı olduğumuz Yükseköğretim Kurumları ile iletişim kanallarının açık ve güncel tutulması. ","Birim Koordinatörü","Dış İlişkiler Koordinatörlüğü","Farabi Değişim Programı Koordinatörlüğü","YOK",2,"Düşük",1,"Çok Düşük",2,"Düşük",null,null,null,null,null,null,null,"","","","","","X","","","","","","","","","","","","","","","","","","",""]
[{"$f":"IF('Risk - Belirleme'!A25=\"\",\" \",'Risk - Belirleme'!A25)","v":5},{"$f":"IF('Risk - Belirleme'!D25=\"\",\" \",'Risk - Belirleme'!D25)","v":"Farabi Değişim Programı'na katılan öğrenciler için gerekli olan ıslak imzalı belgelerin postada kaybolması ve belgelerin bulunamaması. "},{"$f":"IF('Risk - Belirleme'!E25=\"\",\" \",'Risk - Belirleme'!E25)","v":"Operasyonel"},"Kontrol Geliştir","Posta ile gönderilen belgelerin taranarak elektronik versiyonlarının depolanması ve anlaşmalı olduğumuzkuruma gönderilmek üzere postaya verilmeden önce e-posta ile gönderilmesi.","Birim Koordinatörü","Dış İlişkiler Koordinatörlüğü","Farabi Değişim Programı Koordinatörlüğü","YOK",2,"Düşük",2,"Düşük",4,"Düşük",null,null,null,null,null,null,null,"","","","","","","X","","","","","","","","","","","","","","","","","",""]
[{"$f":"IF('Risk - Belirleme'!A26=\"\",\" \",'Risk - Belirleme'!A26)","v":" "},{"$f":"IF('Risk - Belirleme'!D26=\"\",\" \",'Risk - Belirleme'!D26)","v":" "},{"$f":"IF('Risk - Belirleme'!E26=\"\",\" \",'Risk - Belirleme'!E26)","v":" "},null,null,null,null,null,null,"",null,"",null,"","",null,null,null,null,null,null,null,"","","","","","","","","","","","","","","","","","","","","","","","",""]
[{"$f":"IF('Risk - Belirleme'!A27=\"\",\" \",'Risk - Belirleme'!A27)","v":1},{"$f":"IF('Risk - Belirleme'!D27=\"\",\" \",'Risk - Belirleme'!D27)","v":"Dış İlişkiler web sitesi ve anasayfada ilan edilen başvuru tarihlerinin kaçırılabilmesi"},{"$f":"IF('Risk - Belirleme'!E27=\"\",\" \",'Risk - Belirleme'!E27)","v":"Operasyonel"},"Kontrol Geliştir","İlan tarihinin farklı yollarla duyurulması","Birim Koordinatörü","Dış İlişkiler Koordinatörlüğü","Erasmus Değişim Programı Koordinatörlüğü","YOK",2,"Düşük",2,"Düşük",4,"Düşük",null,null,null,null,null,null,null,"","","","","","","X","","","","","","","","","","","","","","","","","",""]
[{"$f":"IF('Risk - Belirleme'!A28=\"\",\" \",'Risk - Belirleme'!A28)","v":2},{"$f":"IF('Risk - Belirleme'!D28=\"\",\" \",'Risk - Belirleme'!D28)","v":"Erasmus Değişim Programıyla Giden öğrencilere yapılması gereken işlemler ile ilgili; Gelen öğrencilere ise Üniversiteyi ve şehri tanıtıcı bilgi aktarılmaması."},{"$f":"IF('Risk - Belirleme'!E28=\"\",\" \",'Risk - Belirleme'!E28)","v":"Operasyonel"},"Kontrol Geliştir","Eramus Değişim Programıyla giden/gelen öğrencilere oryantasyon yaparak öğrencinin bilgilendirilmesi.","Birim Koordinatörü","Dış İlişkiler Koordinatörlüğü","Erasmus Değişim Programı Koordinatörlüğü","YOK",2,"Düşük",2,"Düşük",4,"Düşük",null,null,null,null,null,null,null,"","","","","","","X","","","","","","","","","","","","","","","","","",""]
[{"$f":"IF('Risk - Belirleme'!A29=\"\",\" \",'Risk - Belirleme'!A29)","v":3},{"$f":"IF('Risk - Belirleme'!D29=\"\",\" \",'Risk - Belirleme'!D29)","v":"Protokollerin hazırlanış sürecinde öğrencilerin Erasmus birim koordinatörlerinden yeterli desteği görememesi"},{"$f":"IF('Risk - Belirleme'!E29=\"\",\" \",'Risk - Belirleme'!E29)","v":"Operasyonel"},"Kontrol Geliştir","Erasmus Koordinatörlerine sürecin başında protokol hazırlama,içerik ve kredi konusunda bilgilendirme yapılması","Birim Koordinatörü","Dış İlişkiler Koordinatörlüğü","Erasmus Değişim Programı Koordinatörlüğü","YOK",2,"Düşük",2,"Düşük",4,"Düşük",null,null,null,null,null,null,null,"","","","","","","X","","","","","","","","","","","","","","","","","",""]
[{"$f":"IF('Risk - Belirleme'!A30=\"\",\" \",'Risk - Belirleme'!A30)","v":4},{"$f":"IF('Risk - Belirleme'!D30=\"\",\" \",'Risk - Belirleme'!D30)","v":"Ulusal ajansa gerekli bildirimlerin gecikmeden yapılması"},{"$f":"IF('Risk - Belirleme'!E30=\"\",\" \",'Risk - Belirleme'!E30)","v":"Operasyonel"},"Kontrol Geliştir","Ulusal Ajansın takviminin sıkı takip edilmesi","Birim Koordinatörü","Dış İlişkiler Koordinatörlüğü","Erasmus Değişim Programı Koordinatörlüğü","YOK",2,"Düşük",2,"Düşük",4,"Düşük",null,null,null,null,null,null,null,"","","","","","","X","","","","","","","","","","","","","","","","","",""]
[{"$f":"IF('Risk - Belirleme'!A31=\"\",\" \",'Risk - Belirleme'!A31)","v":5},{"$f":"IF('Risk - Belirleme'!D31=\"\",\" \",'Risk - Belirleme'!D31)","v":"Erasmus  Değişim Programı'na katılan öğrenciler için gerekli olan ıslak imzalı belgelerin postada kaybolması , belgelerin bulunamaması ve tekrar gönderilmek zorunda kalınması"},{"$f":"IF('Risk - Belirleme'!E31=\"\",\" \",'Risk - Belirleme'!E31)","v":"Operasyonel"},"Kontrol Geliştir","Posta ile gönderilen belgelerin taranarak elektronik versiyonlarının depolanması ve anlaşmalı olduğumuzkuruma gönderilmek üzere postaya verilmeden önce e-posta ile gönderilmesi.","Birim Koordinatörü","Dış İlişkiler Koordinatörlüğü","Erasmus Değişim Programı Koordinatörlüğü","YOK",2,"Düşük",2,"Düşük",4,"Düşük",null,null,null,null,null,null,null,"","","","","","","X","","","","","","","","","","","","","","","","","",""]
[{"$f":"IF('Risk - Belirleme'!A32=\"\",\" \",'Risk - Belirleme'!A32)","v":" "},{"$f":"IF('Risk - Belirleme'!D32=\"\",\" \",'Risk - Belirleme'!D32)","v":" "},{"$f":"IF('Risk - Belirleme'!E32=\"\",\" \",'Risk - Belirleme'!E32)","v":" "},null,null,null,null,null,null,"",null,"",null,"","",null,null,null,null,null,null,null,"","","","","","","","","","","","","","","","","","","","","","","","",""]
[{"$f":"IF('Risk - Belirleme'!A33=\"\",\" \",'Risk - Belirleme'!A33)","v":" "},{"$f":"IF('Risk - Belirleme'!D33=\"\",\" \",'Risk - Belirleme'!D33)","v":" "},{"$f":"IF('Risk - Belirleme'!E33=\"\",\" \",'Risk - Belirleme'!E33)","v":" "},null,null,null,null,null,null,"",null,"",null,"","",null,null,null,null,null,null,null,"","","","","","","","","","","","","","","","","","","","","","","","",""]
[{"$f":"IF('Risk - Belirleme'!A34=\"\",\" \",'Risk - Belirleme'!A34)","v":" "},{"$f":"IF('Risk - Belirleme'!D34=\"\",\" \",'Risk - Belirleme'!D34)","v":" "},{"$f":"IF('Risk - Belirleme'!E34=\"\",\" \",'Risk - Belirleme'!E34)","v":" "},null,null,null,null,null,null,"",null,"",null,"","",null,null,null,null,null,null,null,"","","","","","","","","","","","","","","","","","","","","","","","",""]
[{"$f":"IF('Risk - Belirleme'!A35=\"\",\" \",'Risk - Belirleme'!A35)","v":" "},{"$f":"IF('Risk - Belirleme'!D35=\"\",\" \",'Risk - Belirleme'!D35)","v":" "},{"$f":"IF('Risk - Belirleme'!E35=\"\",\" \",'Risk - Belirleme'!E35)","v":" "},null,null,null,null,null,null,"",null,"",null,"","",null,null,null,null,null,null,null,"","","","","","","","","","","","","","","","","","","","","","","","",""]
[{"$f":"IF('Risk - Belirleme'!A36=\"\",\" \",'Risk - Belirleme'!A36)","v":" "},{"$f":"IF('Risk - Belirleme'!D36=\"\",\" \",'Risk - Belirleme'!D36)","v":" "},{"$f":"IF('Risk - Belirleme'!E36=\"\",\" \",'Risk - Belirleme'!E36)","v":" "},null,null,null,null,null,null,"",null,"",null,"","",null,null,null,null,null,null,null,"","","","","","","","","","","","","","","","","","","","","","","","",""]
[{"$f":"IF('Risk - Belirleme'!A37=\"\",\" \",'Risk - Belirleme'!A37)","v":" "},{"$f":"IF('Risk - Belirleme'!D37=\"\",\" \",'Risk - Belirleme'!D37)","v":" "},{"$f":"IF('Risk - Belirleme'!E37=\"\",\" \",'Risk - Belirleme'!E37)","v":" "},null,null,null,null,null,null,"",null,"",null,"","",null,null,null,null,null,null,null,"","","","","","","","","","","","","","","","","","","","","","","","",""]
[{"$f":"IF('Risk - Belirleme'!A38=\"\",\" \",'Risk - Belirleme'!A38)","v":" "},{"$f":"IF('Risk - Belirleme'!D38=\"\",\" \",'Risk - Belirleme'!D38)","v":" "},{"$f":"IF('Risk - Belirleme'!E38=\"\",\" \",'Risk - Belirleme'!E38)","v":" "},null,null,null,null,null,null,"",null,"",null,"","",null,null,null,null,null,null,null,"","","","","","","","","","","","","","","","","","","","","","","","",""]
[{"$f":"IF('Risk - Belirleme'!A39=\"\",\" \",'Risk - Belirleme'!A39)","v":" "},{"$f":"IF('Risk - Belirleme'!D39=\"\",\" \",'Risk - Belirleme'!D39)","v":" "},{"$f":"IF('Risk - Belirleme'!E39=\"\",\" \",'Risk - Belirleme'!E39)","v":" "},null,null,null,null,null,null,"",null,"",null,"","",null,null,null,null,null,null,null,"","","","","","","","","","","","","","","","","","","","","","","","",""]
[{"$f":"IF('Risk - Belirleme'!A40=\"\",\" \",'Risk - Belirleme'!A40)","v":" "},{"$f":"IF('Risk - Belirleme'!D40=\"\",\" \",'Risk - Belirleme'!D40)","v":" "},{"$f":"IF('Risk - Belirleme'!E40=\"\",\" \",'Risk - Belirleme'!E40)","v":" "},null,null,null,null,null,null,"",null,"",null,"","",null,null,null,null,null,null,null,"","","","","","","","","","","","","","","","","","","","","","","","",""]
[{"$f":"IF('Risk - Belirleme'!A41=\"\",\" \",'Risk - Belirleme'!A41)","v":" "},{"$f":"IF('Risk - Belirleme'!D41=\"\",\" \",'Risk - Belirleme'!D41)","v":" "},{"$f":"IF('Risk - Belirleme'!E41=\"\",\" \",'Risk - Belirleme'!E41)","v":" "},null,null,null,null,null,null,"",null,"",null,"","",null,null,null,null,null,null,null,"","","","","","","","","","","","","","","","","","","","","","","","",""]
[{"$f":"IF('Risk - Belirleme'!A42=\"\",\" \",'Risk - Belirleme'!A42)","v":" "},{"$f":"IF('Risk - Belirleme'!D42=\"\",\" \",'Risk - Belirleme'!D42)","v":" "},{"$f":"IF('Risk - Belirleme'!E42=\"\",\" \",'Risk - Belirleme'!E42)","v":" "},null,null,null,null,null,null,"",null,"",null,"","",null,null,null,null,null,null,null,"","","","","","","","","","","","","","","","","","","","","","","","",""]
[{"$f":"IF('Risk - Belirleme'!A43=\"\",\" \",'Risk - Belirleme'!A43)","v":" "},{"$f":"IF('Risk - Belirleme'!D43=\"\",\" \",'Risk - Belirleme'!D43)","v":" "},{"$f":"IF('Risk - Belirleme'!E43=\"\",\" \",'Risk - Belirleme'!E43)","v":" "},null,null,null,null,null,null,"",null,"",null,"","",null,null,null,null,null,null,null,"","","","","","","","","","","","","","","","","","","","","","","","",""]
[{"$f":"IF('Risk - Belirleme'!A44=\"\",\" \",'Risk - Belirleme'!A44)","v":" "},{"$f":"IF('Risk - Belirleme'!D44=\"\",\" \",'Risk - Belirleme'!D44)","v":" "},{"$f":"IF('Risk - Belirleme'!E44=\"\",\" \",'Risk - Belirleme'!E44)","v":" "},null,null,null,null,null,null,"",null,"",null,"","",null,null,null,null,null,null,null,"","","","","","","","","","","","","","","","","","","","","","","","",""]
[{"$f":"IF('Risk - Belirleme'!A45=\"\",\" \",'Risk - Belirleme'!A45)","v":" "},{"$f":"IF('Risk - Belirleme'!D45=\"\",\" \",'Risk - Belirleme'!D45)","v":" "},{"$f":"IF('Risk - Belirleme'!E45=\"\",\" \",'Risk - Belirleme'!E45)","v":" "},null,null,null,null,null,null,"",null,"",null,"","",null,null,null,null,null,null,null,"","","","","","","","","","","","","","","","","","","","","","","","",""]
[{"$f":"IF('Risk - Belirleme'!A46=\"\",\" \",'Risk - Belirleme'!A46)","v":" "},{"$f":"IF('Risk - Belirleme'!D46=\"\",\" \",'Risk - Belirleme'!D46)","v":" "},{"$f":"IF('Risk - Belirleme'!E46=\"\",\" \",'Risk - Belirleme'!E46)","v":" "},null,null,null,null,null,null,"",null,"",null,"","",null,null,null,null,null,null,null,"","","","","","","","","","","","","","","","","","","","","","","","",""]
[{"$f":"IF('Risk - Belirleme'!A47=\"\",\" \",'Risk - Belirleme'!A47)","v":" "},{"$f":"IF('Risk - Belirleme'!D47=\"\",\" \",'Risk - Belirleme'!D47)","v":" "},{"$f":"IF('Risk - Belirleme'!E47=\"\",\" \",'Risk - Belirleme'!E47)","v":" "},null,null,null,null,null,null,"",null,"",null,"","",null,null,null,null,null,null,null,"","","","","","","","","","","","","","","","","","","","","","","","",""]
[{"$f":"IF('Risk - Belirleme'!A48=\"\",\" \",'Risk - Belirleme'!A48)","v":" "},{"$f":"IF('Risk - Belirleme'!D48=\"\",\" \",'Risk - Belirleme'!D48)","v":" "},{"$f":"IF('Risk - Belirleme'!E48=\"\",\" \",'Risk - Belirleme'!E48)","v":" "},null,null,null,null,null,null,"",null,"",null,"","",null,null,null,null,null,null,null,"","","","","","","","","","","","","","","","","","","","","","","","",""]
[{"$f":"IF('Risk - Belirleme'!A49=\"\",\" \",'Risk - Belirleme'!A49)","v":" "},{"$f":"IF('Risk - Belirleme'!D49=\"\",\" \",'Risk - Belirleme'!D49)","v":" "},{"$f":"IF('Risk - Belirleme'!E49=\"\",\" \",'Risk - Belirleme'!E49)","v":" "},null,null,null,null,null,null,"",null,"",null,"","",null,null,null,null,null,null,null,"","","","","","","","","","","","","","","","","","","","","","","","",""]
[{"$f":"IF('Risk - Belirleme'!A50=\"\",\" \",'Risk - Belirleme'!A50)","v":" "},{"$f":"IF('Risk - Belirleme'!D50=\"\",\" \",'Risk - Belirleme'!D50)","v":" "},{"$f":"IF('Risk - Belirleme'!E50=\"\",\" \",'Risk - Belirleme'!E50)","v":" "},null,null,null,null,null,null,"",null,"",null,"","",null,null,null,null,null,null,null,"","","","","","","","","","","","","","","","","","","","","","","","",""]
[{"$f":"IF('Risk - Belirleme'!A51=\"\",\" \",'Risk - Belirleme'!A51)","v":" "},{"$f":"IF('Risk - Belirleme'!D51=\"\",\" \",'Risk - Belirleme'!D51)","v":" "},{"$f":"IF('Risk - Belirleme'!E51=\"\",\" \",'Risk - Belirleme'!E51)","v":" "},null,null,null,null,null,null,"",null,"",null,"","",null,null,null,null,null,null,null,"","","","","","","","","","","","","","","","","","","","","","","","",""]
[{"$f":"IF('Risk - Belirleme'!A52=\"\",\" \",'Risk - Belirleme'!A52)","v":" "},{"$f":"IF('Risk - Belirleme'!D52=\"\",\" \",'Risk - Belirleme'!D52)","v":" "},{"$f":"IF('Risk - Belirleme'!E52=\"\",\" \",'Risk - Belirleme'!E52)","v":" "},null,null,null,null,null,null,"",null,"",null,"","",null,null,null,null,null,null,null,"","","","","","","","","","","","","","","","","","","","","","","","",""]
[{"$f":"IF('Risk - Belirleme'!A53=\"\",\" \",'Risk - Belirleme'!A53)","v":" "},{"$f":"IF('Risk - Belirleme'!D53=\"\",\" \",'Risk - Belirleme'!D53)","v":" "},{"$f":"IF('Risk - Belirleme'!E53=\"\",\" \",'Risk - Belirleme'!E53)","v":" "},null,null,null,null,null,null,"",null,"",null,"","",null,null,null,null,null,null,null,"","","","","","","","","","","","","","","","","","","","","","","","",""]
[{"$f":"IF('Risk - Belirleme'!A54=\"\",\" \",'Risk - Belirleme'!A54)","v":" "},{"$f":"IF('Risk - Belirleme'!D54=\"\",\" \",'Risk - Belirleme'!D54)","v":" "},{"$f":"IF('Risk - Belirleme'!E54=\"\",\" \",'Risk - Belirleme'!E54)","v":" "},null,null,null,null,null,null,"",null,"",null,"","",null,null,null,null,null,null,null,"","","","","","","","","","","","","","","","","","","","","","","","",""]
[{"$f":"IF('Risk - Belirleme'!A55=\"\",\" \",'Risk - Belirleme'!A55)","v":" "},{"$f":"IF('Risk - Belirleme'!D55=\"\",\" \",'Risk - Belirleme'!D55)","v":" "},{"$f":"IF('Risk - Belirleme'!E55=\"\",\" \",'Risk - Belirleme'!E55)","v":" "},null,null,null,null,null,null,"",null,"",null,"","",null,null,null,null,null,null,null,"","","","","","","","","","","","","","","","","","","","","","","","",""]
[{"$f":"IF('Risk - Belirleme'!A56=\"\",\" \",'Risk - Belirleme'!A56)","v":" "},{"$f":"IF('Risk - Belirleme'!D56=\"\",\" \",'Risk - Belirleme'!D56)","v":" "},{"$f":"IF('Risk - Belirleme'!E56=\"\",\" \",'Risk - Belirleme'!E56)","v":" "},null,null,null,null,null,null,"",null,"",null,"","",null,null,null,null,null,null,null,"","","","","","","","","","","","","","","","","","","","","","","","",""]
[{"$f":"IF('Risk - Belirleme'!A57=\"\",\" \",'Risk - Belirleme'!A57)","v":" "},{"$f":"IF('Risk - Belirleme'!D57=\"\",\" \",'Risk - Belirleme'!D57)","v":" "},{"$f":"IF('Risk - Belirleme'!E57=\"\",\" \",'Risk - Belirleme'!E57)","v":" "},null,null,null,null,null,null,"",null,"",null,"","",null,null,null,null,null,null,null,"","","","","","","","","","","","","","","","","","","","","","","","",""]
[{"$f":"IF('Risk - Belirleme'!A58=\"\",\" \",'Risk - Belirleme'!A58)","v":" "},{"$f":"IF('Risk - Belirleme'!D58=\"\",\" \",'Risk - Belirleme'!D58)","v":" "},{"$f":"IF('Risk - Belirleme'!E58=\"\",\" \",'Risk - Belirleme'!E58)","v":" "},null,null,null,null,null,null,"",null,"",null,"","",null,null,null,null,null,null,null,"","","","","","","","","","","","","","","","","","","","","","","","",""]
[{"$f":"IF('Risk - Belirleme'!A59=\"\",\" \",'Risk - Belirleme'!A59)","v":" "},{"$f":"IF('Risk - Belirleme'!D59=\"\",\" \",'Risk - Belirleme'!D59)","v":" "},{"$f":"IF('Risk - Belirleme'!E59=\"\",\" \",'Risk - Belirleme'!E59)","v":" "},null,null,null,null,null,null,"",null,"",null,"","",null,null,null,null,null,null,null,"","","","","","","","","","","","","","","","","","","","","","","","",""]
[{"$f":"IF('Risk - Belirleme'!A60=\"\",\" \",'Risk - Belirleme'!A60)","v":" "},{"$f":"IF('Risk - Belirleme'!D60=\"\",\" \",'Risk - Belirleme'!D60)","v":" "},{"$f":"IF('Risk - Belirleme'!E60=\"\",\" \",'Risk - Belirleme'!E60)","v":" "},null,null,null,null,null,null,"",null,"",null,"","",null,null,null,null,null,null,null,"","","","","","","","","","","","","","","","","","","","","","","","",""]
[{"$f":"IF('Risk - Belirleme'!A61=\"\",\" \",'Risk - Belirleme'!A61)","v":" "},{"$f":"IF('Risk - Belirleme'!D61=\"\",\" \",'Risk - Belirleme'!D61)","v":" "},{"$f":"IF('Risk - Belirleme'!E61=\"\",\" \",'Risk - Belirleme'!E61)","v":" "},null,null,null,null,null,null,"",null,"",null,"","",null,null,null,null,null,null,null,"","","","","","","","","","","","","","","","","","","","","","","","",""]
[{"$f":"IF('Risk - Belirleme'!A62=\"\",\" \",'Risk - Belirleme'!A62)","v":" "},{"$f":"IF('Risk - Belirleme'!D62=\"\",\" \",'Risk - Belirleme'!D62)","v":" "},{"$f":"IF('Risk - Belirleme'!E62=\"\",\" \",'Risk - Belirleme'!E62)","v":" "},null,null,null,null,null,null,"",null,"",null,"","",null,null,null,null,null,null,null,"","","","","","","","","","","","","","","","","","","","","","","","",""]
[{"$f":"IF('Risk - Belirleme'!A63=\"\",\" \",'Risk - Belirleme'!A63)","v":" "},{"$f":"IF('Risk - Belirleme'!D63=\"\",\" \",'Risk - Belirleme'!D63)","v":" "},{"$f":"IF('Risk - Belirleme'!E63=\"\",\" \",'Risk - Belirleme'!E63)","v":" "},null,null,null,null,null,null,"",null,"",null,"","",null,null,null,null,null,null,null,"","","","","","","","","","","","","","","","","","","","","","","","",""]
[{"$f":"IF('Risk - Belirleme'!A64=\"\",\" \",'Risk - Belirleme'!A64)","v":" "},{"$f":"IF('Risk - Belirleme'!D64=\"\",\" \",'Risk - Belirleme'!D64)","v":" "},{"$f":"IF('Risk - Belirleme'!E64=\"\",\" \",'Risk - Belirleme'!E64)","v":" "},null,null,null,null,null,null,"",null,"",null,"","",null,null,null,null,null,null,null,"","","","","","","","","","","","","","","","","","","","","","","","",""]
[{"$f":"IF('Risk - Belirleme'!A65=\"\",\" \",'Risk - Belirleme'!A65)","v":" "},{"$f":"IF('Risk - Belirleme'!D65=\"\",\" \",'Risk - Belirleme'!D65)","v":" "},{"$f":"IF('Risk - Belirleme'!E65=\"\",\" \",'Risk - Belirleme'!E65)","v":" "},null,null,null,null,null,null,"",null,"",null,"","",null,null,null,null,null,null,null,"","","","","","","","","","","","","","","","","","","","","","","","",""]
[{"$f":"IF('Risk - Belirleme'!A66=\"\",\" \",'Risk - Belirleme'!A66)","v":" "},{"$f":"IF('Risk - Belirleme'!D66=\"\",\" \",'Risk - Belirleme'!D66)","v":" "},{"$f":"IF('Risk - Belirleme'!E66=\"\",\" \",'Risk - Belirleme'!E66)","v":" "},null,null,null,null,null,null,"",null,"",null,"","",null,null,null,null,null,null,null,"","","","","","","","","","","","","","","","","","","","","","","","",""]
[{"$f":"IF('Risk - Belirleme'!A67=\"\",\" \",'Risk - Belirleme'!A67)","v":" "},{"$f":"IF('Risk - Belirleme'!D67=\"\",\" \",'Risk - Belirleme'!D67)","v":" "},{"$f":"IF('Risk - Belirleme'!E67=\"\",\" \",'Risk - Belirleme'!E67)","v":" "},null,null,null,null,null,null,"",null,"",null,"","",null,null,null,null,null,null,null,"","","","","","","","","","","","","","","","","","","","","","","","",""]
[{"$f":"IF('Risk - Belirleme'!A68=\"\",\" \",'Risk - Belirleme'!A68)","v":" "},{"$f":"IF('Risk - Belirleme'!D68=\"\",\" \",'Risk - Belirleme'!D68)","v":" "},{"$f":"IF('Risk - Belirleme'!E68=\"\",\" \",'Risk - Belirleme'!E68)","v":" "},null,null,null,null,null,null,"",null,"",null,"","",null,null,null,null,null,null,null,"","","","","","","","","","","","","","","","","","","","","","","","",""]
[{"$f":"IF('Risk - Belirleme'!A69=\"\",\" \",'Risk - Belirleme'!A69)","v":" "},{"$f":"IF('Risk - Belirleme'!D69=\"\",\" \",'Risk - Belirleme'!D69)","v":" "},{"$f":"IF('Risk - Belirleme'!E69=\"\",\" \",'Risk - Belirleme'!E69)","v":" "},null,null,null,null,null,null,"",null,"",null,"","",null,null,null,null,null,null,null,"","","","","","","","","","","","","","","","","","","","","","","","",""]
[{"$f":"IF('Risk - Belirleme'!A70=\"\",\" \",'Risk - Belirleme'!A70)","v":" "},{"$f":"IF('Risk - Belirleme'!D70=\"\",\" \",'Risk - Belirleme'!D70)","v":" "},{"$f":"IF('Risk - Belirleme'!E70=\"\",\" \",'Risk - Belirleme'!E70)","v":" "},null,null,null,null,null,null,"",null,"",null,"","",null,null,null,null,null,null,null,"","","","","","","","","","","","","","","","","","","","","","","","",""]
[{"$f":"IF('Risk - Belirleme'!A71=\"\",\" \",'Risk - Belirleme'!A71)","v":" "},{"$f":"IF('Risk - Belirleme'!D71=\"\",\" \",'Risk - Belirleme'!D71)","v":" "},{"$f":"IF('Risk - Belirleme'!E71=\"\",\" \",'Risk - Belirleme'!E71)","v":" "},null,null,null,null,null,null,"",null,"",null,"","",null,null,null,null,null,null,null,"","","","","","","","","","","","","","","","","","","","","","","","",""]
[{"$f":"IF('Risk - Belirleme'!A72=\"\",\" \",'Risk - Belirleme'!A72)","v":" "},{"$f":"IF('Risk - Belirleme'!D72=\"\",\" \",'Risk - Belirleme'!D72)","v":" "},{"$f":"IF('Risk - Belirleme'!E72=\"\",\" \",'Risk - Belirleme'!E72)","v":" "},null,null,null,null,null,null,"",null,"",null,"","",null,null,null,null,null,null,null,"","","","","","","","","","","","","","","","","","","","","","","","",""]
[{"$f":"IF('Risk - Belirleme'!A73=\"\",\" \",'Risk - Belirleme'!A73)","v":" "},{"$f":"IF('Risk - Belirleme'!D73=\"\",\" \",'Risk - Belirleme'!D73)","v":" "},{"$f":"IF('Risk - Belirleme'!E73=\"\",\" \",'Risk - Belirleme'!E73)","v":" "},null,null,null,null,null,null,"",null,"",null,"","",null,null,null,null,null,null,null,"","","","","","","","","","","","","","","","","","","","","","","","",""]
[{"$f":"IF('Risk - Belirleme'!A74=\"\",\" \",'Risk - Belirleme'!A74)","v":" "},{"$f":"IF('Risk - Belirleme'!D74=\"\",\" \",'Risk - Belirleme'!D74)","v":" "},{"$f":"IF('Risk - Belirleme'!E74=\"\",\" \",'Risk - Belirleme'!E74)","v":" "},null,null,null,null,null,null,"",null,"",null,"","",null,null,null,null,null,null,null,"","","","","","","","","","","","","","","","","","","","","","","","",""]
[{"$f":"IF('Risk - Belirleme'!A75=\"\",\" \",'Risk - Belirleme'!A75)","v":" "},{"$f":"IF('Risk - Belirleme'!D75=\"\",\" \",'Risk - Belirleme'!D75)","v":" "},{"$f":"IF('Risk - Belirleme'!E75=\"\",\" \",'Risk - Belirleme'!E75)","v":" "},null,null,null,null,null,null,"",null,"",null,"","",null,null,null,null,null,null,null,"","","","","","","","","","","","","","","","","","","","","","","","",""]
[{"$f":"IF('Risk - Belirleme'!A76=\"\",\" \",'Risk - Belirleme'!A76)","v":" "},{"$f":"IF('Risk - Belirleme'!D76=\"\",\" \",'Risk - Belirleme'!D76)","v":" "},{"$f":"IF('Risk - Belirleme'!E76=\"\",\" \",'Risk - Belirleme'!E76)","v":" "},null,null,null,null,null,null,"",null,"",null,"","",null,null,null,null,null,null,null,"","","","","","","","","","","","","","","","","","","","","","","","",""]
[{"$f":"IF('Risk - Belirleme'!A77=\"\",\" \",'Risk - Belirleme'!A77)","v":" "},{"$f":"IF('Risk - Belirleme'!D77=\"\",\" \",'Risk - Belirleme'!D77)","v":" "},{"$f":"IF('Risk - Belirleme'!E77=\"\",\" \",'Risk - Belirleme'!E77)","v":" "},null,null,null,null,null,null,"",null,"",null,"","",null,null,null,null,null,null,null,"","","","","","","","","","","","","","","","","","","","","","","","",""]
[{"$f":"IF('Risk - Belirleme'!A78=\"\",\" \",'Risk - Belirleme'!A78)","v":" "},{"$f":"IF('Risk - Belirleme'!D78=\"\",\" \",'Risk - Belirleme'!D78)","v":" "},{"$f":"IF('Risk - Belirleme'!E78=\"\",\" \",'Risk - Belirleme'!E78)","v":" "},null,null,null,null,null,null,"",null,"",null,"","",null,null,null,null,null,null,null,"","","","","","","","","","","","","","","","","","","","","","","","",""]
[{"$f":"IF('Risk - Belirleme'!A79=\"\",\" \",'Risk - Belirleme'!A79)","v":" "},{"$f":"IF('Risk - Belirleme'!D79=\"\",\" \",'Risk - Belirleme'!D79)","v":" "},{"$f":"IF('Risk - Belirleme'!E79=\"\",\" \",'Risk - Belirleme'!E79)","v":" "},null,null,null,null,null,null,"",null,"",null,"","",null,null,null,null,null,null,null,"","","","","","","","","","","","","","","","","","","","","","","","",""]
[{"$f":"IF('Risk - Belirleme'!A80=\"\",\" \",'Risk - Belirleme'!A80)","v":" "},{"$f":"IF('Risk - Belirleme'!D80=\"\",\" \",'Risk - Belirleme'!D80)","v":" "},{"$f":"IF('Risk - Belirleme'!E80=\"\",\" \",'Risk - Belirleme'!E80)","v":" "},null,null,null,null,null,null,"",null,{"$f":"IF(M80=\"\",\"\",(IF(M80=$M$7,$L$7,(IF(M80=$M$8,$L$8,(IF(M80=$M$9,$L$9,(IF(M80=$M$10,$L$10,(IF(M80=$M$11,$L$11,\" \")))))))))))","v":""},null,"","",null,null,null,null,null,null,null,{"$f":"IF(AND($J80=1,$L80=1),\"X\",\"\")","v":""},{"$f":"IF(AND($J80=1,$L80=2),\"X\",\"\")","v":""},{"$f":"IF(AND($J80=1,$L80=3),\"X\",\"\")","v":""},{"$f":"IF(AND($J80=1,$L80=4),\"X\",\"\")","v":""},{"$f":"IF(AND($J80=1,$L80=5),\"X\",\"\")","v":""},{"$f":"IF(AND($J80=2,$L80=1),\"X\",\"\")","v":""},{"$f":"IF(AND($J80=2,$L80=2),\"X\",\"\")","v":""},{"$f":"IF(AND($J80=2,$L80=3),\"X\",\"\")","v":""},{"$f":"IF(AND($J80=2,$L80=4),\"X\",\"\")","v":""},{"$f":"IF(AND($J80=2,$L80=5),\"X\",\"\")","v":""},{"$f":"IF(AND($J80=3,$L80=1),\"X\",\"\")","v":""},{"$f":"IF(AND($J80=3,$L80=2),\"X\",\"\")","v":""},{"$f":"IF(AND($J80=3,$L80=3),\"X\",\"\")","v":""},{"$f":"IF(AND($J80=3,$L80=4),\"X\",\"\")","v":""},{"$f":"IF(AND($J80=3,$L80=5),\"X\",\"\")","v":""},{"$f":"IF(AND($J80=4,$L80=1),\"X\",\"\")","v":""},{"$f":"IF(AND($J80=4,$L80=2),\"X\",\"\")","v":""},{"$f":"IF(AND($J80=4,$L80=3),\"X\",\"\")","v":""},{"$f":"IF(AND($J80=4,$L80=4),\"X\",\"\")","v":""},{"$f":"IF(AND($J80=4,$L80=5),\"X\",\"\")","v":""},{"$f":"IF(AND($J80=5,$L80=1),\"X\",\"\")","v":""},{"$f":"IF(AND($J80=5,$L80=2),\"X\",\"\")","v":""},{"$f":"IF(AND($J80=5,$L80=3),\"X\",\"\")","v":""},{"$f":"IF(AND($J80=5,$L80=4),\"X\",\"\")","v":""},{"$f":"IF(AND($J80=5,$L80=5),\"X\",\"\")","v":""}]
[{"$f":"IF('Risk - Belirleme'!A81=\"\",\" \",'Risk - Belirleme'!A81)","v":" "},{"$f":"IF('Risk - Belirleme'!D81=\"\",\" \",'Risk - Belirleme'!D81)","v":" "},{"$f":"IF('Risk - Belirleme'!E81=\"\",\" \",'Risk - Belirleme'!E81)","v":" "},null,null,null,null,null,null,{"$f":"IF(K81=\"\",\"\",(IF(K81=$K$7,$J$7,(IF(K81=$K$8,$J$8,(IF(K81=$K$9,$J$9,(IF(K81=$K$10,$J$10,(IF(K81=$K$11,$J$11,\" \")))))))))))","v":""},null,"",null,{"$f":"IF(OR($K81=\"\",$M81=\"\"),\"\",J81*L81)","v":""},"",null,null,null,null,null,null,null,"","","","","","","","","","","","","","","","","","","","","","","","",""]
[{"$f":"IF('Risk - Belirleme'!A82=\"\",\" \",'Risk - Belirleme'!A82)","v":" "},{"$f":"IF('Risk - Belirleme'!D82=\"\",\" \",'Risk - Belirleme'!D82)","v":" "},{"$f":"IF('Risk - Belirleme'!E82=\"\",\" \",'Risk - Belirleme'!E82)","v":" "},null,null,null,null,null,null,"",null,"",null,"",{"$f":"IF(OR($K82=\"\",$M82=\"\"),\"\",   IF($N82<$AJ$8,$AM$7,   IF(AND($N82>$AL$7,$N82<$AJ$9),$AM$8,   IF(AND($N82>$AL$8,$N82<$AJ$10),$AM$9,   IF($N82>$AL$9,$AM$10,\"\")))))","v":""},null,null,null,null,null,null,null,"","","","","","","","","","","","","","","","","","","","","","","","",""]
[{"$f":"IF('Risk - Belirleme'!A83=\"\",\" \",'Risk - Belirleme'!A83)","v":" "},{"$f":"IF('Risk - Belirleme'!D83=\"\",\" \",'Risk - Belirleme'!D83)","v":" "},{"$f":"IF('Risk - Belirleme'!E83=\"\",\" \",'Risk - Belirleme'!E83)","v":" "},null,null,null,null,null,null,"",null,"",null,"","",null,null,null,null,null,null,null,"","","","","","","","","","","","","","","","","","","","","","","","",""]
[{"$f":"IF('Risk - Belirleme'!A84=\"\",\" \",'Risk - Belirleme'!A84)","v":" "},{"$f":"IF('Risk - Belirleme'!D84=\"\",\" \",'Risk - Belirleme'!D84)","v":" "},{"$f":"IF('Risk - Belirleme'!E84=\"\",\" \",'Risk - Belirleme'!E84)","v":" "},null,null,null,null,null,null,"",null,"",null,"","",null,null,null,null,null,null,null,"","","","","","","","","","","","","","","","","","","","","","","","",""]
[{"$f":"IF('Risk - Belirleme'!A85=\"\",\" \",'Risk - Belirleme'!A85)","v":" "},{"$f":"IF('Risk - Belirleme'!D85=\"\",\" \",'Risk - Belirleme'!D85)","v":" "},{"$f":"IF('Risk - Belirleme'!E85=\"\",\" \",'Risk - Belirleme'!E85)","v":" "},null,null,null,null,null,null,"",null,"",null,"","",null,null,null,null,null,null,null,"","","","","","","","","","","","","","","","","","","","","","","","",""]
[{"$f":"IF('Risk - Belirleme'!A86=\"\",\" \",'Risk - Belirleme'!A86)","v":" "},{"$f":"IF('Risk - Belirleme'!D86=\"\",\" \",'Risk - Belirleme'!D86)","v":" "},{"$f":"IF('Risk - Belirleme'!E86=\"\",\" \",'Risk - Belirleme'!E86)","v":" "},null,null,null,null,null,null,"",null,"",null,"","",null,null,null,null,null,null,null,"","","","","","","","","","","","","","","","","","","","","","","","",""]
[{"$f":"IF('Risk - Belirleme'!A87=\"\",\" \",'Risk - Belirleme'!A87)","v":" "},{"$f":"IF('Risk - Belirleme'!D87=\"\",\" \",'Risk - Belirleme'!D87)","v":" "},{"$f":"IF('Risk - Belirleme'!E87=\"\",\" \",'Risk - Belirleme'!E87)","v":" "},null,null,null,null,null,null,"",null,"",null,"","",null,null,null,null,null,null,null,"","","","","","","","","","","","","","","","","","","","","","","","",""]
[{"$f":"IF('Risk - Belirleme'!A88=\"\",\" \",'Risk - Belirleme'!A88)","v":" "},{"$f":"IF('Risk - Belirleme'!D88=\"\",\" \",'Risk - Belirleme'!D88)","v":" "},{"$f":"IF('Risk - Belirleme'!E88=\"\",\" \",'Risk - Belirleme'!E88)","v":" "},null,null,null,null,null,null,"",null,"",null,"","",null,null,null,null,null,null,null,"","","","","","","","","","","","","","","","","","","","","","","","",""]
[{"$f":"IF('Risk - Belirleme'!A89=\"\",\" \",'Risk - Belirleme'!A89)","v":" "},{"$f":"IF('Risk - Belirleme'!D89=\"\",\" \",'Risk - Belirleme'!D89)","v":" "},{"$f":"IF('Risk - Belirleme'!E89=\"\",\" \",'Risk - Belirleme'!E89)","v":" "},null,null,null,null,null,null,"",null,"",null,"","",null,null,null,null,null,null,null,"","","","","","","","","","","","","","","","","","","","","","","","",""]
[{"$f":"IF('Risk - Belirleme'!A90=\"\",\" \",'Risk - Belirleme'!A90)","v":" "},{"$f":"IF('Risk - Belirleme'!D90=\"\",\" \",'Risk - Belirleme'!D90)","v":" "},{"$f":"IF('Risk - Belirleme'!E90=\"\",\" \",'Risk - Belirleme'!E90)","v":" "},null,null,null,null,null,null,"",null,"",null,"","",null,null,null,null,null,null,null,"","","","","","","","","","","","","","","","","","","","","","","","",""]
[{"$f":"IF('Risk - Belirleme'!A91=\"\",\" \",'Risk - Belirleme'!A91)","v":" "},{"$f":"IF('Risk - Belirleme'!D91=\"\",\" \",'Risk - Belirleme'!D91)","v":" "},{"$f":"IF('Risk - Belirleme'!E91=\"\",\" \",'Risk - Belirleme'!E91)","v":" "},null,null,null,null,null,null,"",null,"",null,"","",null,null,null,null,null,null,null,"","","","","","","","","","","","","","","","","","","","","","","","",""]
[{"$f":"IF('Risk - Belirleme'!A92=\"\",\" \",'Risk - Belirleme'!A92)","v":" "},{"$f":"IF('Risk - Belirleme'!D92=\"\",\" \",'Risk - Belirleme'!D92)","v":" "},{"$f":"IF('Risk - Belirleme'!E92=\"\",\" \",'Risk - Belirleme'!E92)","v":" "},null,null,null,null,null,null,"",null,"",null,"","",null,null,null,null,null,null,null,"","","","","","","","","","","","","","","","","","","","","","","","",""]
[{"$f":"IF('Risk - Belirleme'!A93=\"\",\" \",'Risk - Belirleme'!A93)","v":" "},{"$f":"IF('Risk - Belirleme'!D93=\"\",\" \",'Risk - Belirleme'!D93)","v":" "},{"$f":"IF('Risk - Belirleme'!E93=\"\",\" \",'Risk - Belirleme'!E93)","v":" "},null,null,null,null,null,null,"",null,"",null,"","",null,null,null,null,null,null,null,"","","","","","","","","","","","","","","","","","","","","","","","",""]
[{"$f":"IF('Risk - Belirleme'!A94=\"\",\" \",'Risk - Belirleme'!A94)","v":" "},{"$f":"IF('Risk - Belirleme'!D94=\"\",\" \",'Risk - Belirleme'!D94)","v":" "},{"$f":"IF('Risk - Belirleme'!E94=\"\",\" \",'Risk - Belirleme'!E94)","v":" "},null,null,null,null,null,null,"",null,"",null,"","",null,null,null,null,null,null,null,"","","","","","","","","","","","","","","","","","","","","","","","",""]
[{"$f":"IF('Risk - Belirleme'!A95=\"\",\" \",'Risk - Belirleme'!A95)","v":" "},{"$f":"IF('Risk - Belirleme'!D95=\"\",\" \",'Risk - Belirleme'!D95)","v":" "},{"$f":"IF('Risk - Belirleme'!E95=\"\",\" \",'Risk - Belirleme'!E95)","v":" "},null,null,null,null,null,null,"",null,"",null,"","",null,null,null,null,null,null,null,"","","","","","","","","","","","","","","","","","","","","","","","",""]
[{"$f":"IF('Risk - Belirleme'!A96=\"\",\" \",'Risk - Belirleme'!A96)","v":" "},{"$f":"IF('Risk - Belirleme'!D96=\"\",\" \",'Risk - Belirleme'!D96)","v":" "},{"$f":"IF('Risk - Belirleme'!E96=\"\",\" \",'Risk - Belirleme'!E96)","v":" "},null,null,null,null,null,null,"",null,"",null,"","",null,null,null,null,null,null,null,"","","","","","","","","","","","","","","","","","","","","","","","",""]
[{"$f":"IF('Risk - Belirleme'!A97=\"\",\" \",'Risk - Belirleme'!A97)","v":" "},{"$f":"IF('Risk - Belirleme'!D97=\"\",\" \",'Risk - Belirleme'!D97)","v":" "},{"$f":"IF('Risk - Belirleme'!E97=\"\",\" \",'Risk - Belirleme'!E97)","v":" "},null,null,null,null,null,null,"",null,"",null,"","",null,null,null,null,null,null,null,"","","","","","","","","","","","","","","","","","","","","","","","",""]
[{"$f":"IF('Risk - Belirleme'!A98=\"\",\" \",'Risk - Belirleme'!A98)","v":" "},{"$f":"IF('Risk - Belirleme'!D98=\"\",\" \",'Risk - Belirleme'!D98)","v":" "},{"$f":"IF('Risk - Belirleme'!E98=\"\",\" \",'Risk - Belirleme'!E98)","v":" "},null,null,null,null,null,null,"",null,"",null,"","",null,null,null,null,null,null,null,"","","","","","","","","","","","","","","","","","","","","","","","",""]
[{"$f":"IF('Risk - Belirleme'!A99=\"\",\" \",'Risk - Belirleme'!A99)","v":" "},{"$f":"IF('Risk - Belirleme'!D99=\"\",\" \",'Risk - Belirleme'!D99)","v":" "},{"$f":"IF('Risk - Belirleme'!E99=\"\",\" \",'Risk - Belirleme'!E99)","v":" "},null,null,null,null,null,null,"",null,"",null,"","",null,null,null,null,null,null,null,"","","","","","","","","","","","","","","","","","","","","","","","",""]
[null,null,null,null,null,null,null,null,null,null,null,null,null,null,null,null,null,null,null,null,null,null,{"$f":"COUNTIF(W15:W99,\"X\")","v":1},{"$f":"COUNTIF(X15:X99,\"X\")","v":0},0,0,0,2,10,0,0,0,2,0,0,0,0,0,0,0,0,0,0,0,0,0,0]

{"sheet":"ÇIKTI - Risk Kaydı","index":9,"n_rows":99,"n_cols":13,"rows_kept":99,"cut":false,"hidden":true,"merged":[[2,11,3,11],[0,0,0,12],[2,0,3,0],[2,1,3,1],[2,2,3,2],[2,6,3,6],[2,7,3,7],[2,8,3,8],[2,3,3,3],[2,4,3,4],[1,0,1,4],[2,5,3,5],[1,6,1,12],[2,12,3,12],[2,9,3,9],[2,10,3,10]]}
["RİSK KAYDI"]
["RİSK BELİRLEME",null,null,null,null,"RİSK ANALİZİ ","RİSK YÖNETİMİ "]
["RİSK NO","Date Identified","Anahtar Risk Göstergesi ","Detaylı Risk Açıklaması","Risk Kategorisi","Kontrol Önlemleri Öncesi Risk Değerlendirmesi","Risk Yönetimi Stratejisi","Kontrol Faaliyeti / Strateji Açıklaması","Risk Sorumlusu","Riskin Ait Olduğu Süreç / Faaliyet","Etki","Olasılık","Kontrol Önlemleri Sonrası Risk Değerlendirmesi"]
[]
[]
[" "]
[]
[]
[]
[]
[]
[]
[]
[]
[{"$f":"IF('Risk - Belirleme'!A15=\"\",\" \",'Risk - Belirleme'!A15)","v":1},{"$f":"IF('Risk - Belirleme'!B15=\"\",\" \",'Risk - Belirleme'!B15)","v":" "},{"$f":"IF('Risk - Belirleme'!C15=\"\",\" \",'Risk - Belirleme'!C15)","v":"Mevlana Değişim Programı Başvurularının İlanının Duyurulamaması"},{"$f":"IF('Risk - Belirleme'!D15=\"\",\" \",'Risk - Belirleme'!D15)","v":"Her sene YÖK tarafından ilan edilen başvuru tarihlerinde  Üniversite web saysafasında yazılımsal sorun yaşanması."},{"$f":"IF('Risk - Belirleme'!E15=\"\",\" \",'Risk - Belirleme'!E15)","v":"Operasyonel"},{"$f":"IF('Risk - Analizi'!I15=\"\",\" \",'Risk - Analizi'!I15)","v":"Düşük"},{"$f":"IF('Risk - Yönetimi'!D15=\"\",\" \",'Risk - Yönetimi'!D15)","v":"Kabul Et"},{"$f":"IF('Risk - Yönetimi'!E15=\"\",\" \",'Risk - Yönetimi'!E15)","v":"İlan tarihinden önce siteye bilgi girişi yaparak kontrol edilmesi. "},{"$f":"IF('Risk - Yönetimi'!F15=\"\",\" \",'Risk - Yönetimi'!F15)","v":"Birim Koordinatörü"},{"$f":"IF('Risk - Yönetimi'!G15=\"\",\" \",'Risk - Yönetimi'!G15)","v":"Bilgi İşlem Daire Başkanlığı"},{"$f":"IF('Risk - Yönetimi'!K15=\"\",\" \",'Risk - Yönetimi'!K15)","v":"Orta"},{"$f":"IF('Risk - Yönetimi'!M15=\"\",\" \",'Risk - Yönetimi'!M15)","v":"Çok Düşük"},{"$f":"IF('Risk - Yönetimi'!O15=\"\",\" \",'Risk - Yönetimi'!O15)","v":"Düşük"}]
[{"$f":"IF('Risk - Belirleme'!A16=\"\",\" \",'Risk - Belirleme'!A16)","v":2},{"$f":"IF('Risk - Belirleme'!B16=\"\",\" \",'Risk - Belirleme'!B16)","v":" "},{"$f":"IF('Risk - Belirleme'!C16=\"\",\" \",'Risk - Belirleme'!C16)","v":"YÖK'ten gelen bütçeye göre asil ve yedek öğrenci belirlenmesi."},{"$f":"IF('Risk - Belirleme'!D16=\"\",\" \",'Risk - Belirleme'!D16)","v":"YÖK tarafından belli edilen seçim kiriterlerine uygun olarak asil ve yedek öğrencilerin belirlenememesi."},{"$f":"IF('Risk - Belirleme'!E16=\"\",\" \",'Risk - Belirleme'!E16)","v":"İtibar"},{"$f":"IF('Risk - Analizi'!I16=\"\",\" \",'Risk - Analizi'!I16)","v":"Düşük"},{"$f":"IF('Risk - Yönetimi'!D16=\"\",\" \",'Risk - Yönetimi'!D16)","v":"Kontrol Geliştir"},{"$f":"IF('Risk - Yönetimi'!E16=\"\",\" \",'Risk - Yönetimi'!E16)","v":"Seçim kriterlerinin birim çalışanlarınca kontrol edilmesi."},{"$f":"IF('Risk - Yönetimi'!F16=\"\",\" \",'Risk - Yönetimi'!F16)","v":"Birim Koordinatörü"},{"$f":"IF('Risk - Yönetimi'!G16=\"\",\" \",'Risk - Yönetimi'!G16)","v":"Dış İlişkiler Koordinatörlüğü"},{"$f":"IF('Risk - Yönetimi'!K16=\"\",\" \",'Risk - Yönetimi'!K16)","v":"Düşük"},{"$f":"IF('Risk - Yönetimi'!M16=\"\",\" \",'Risk - Yönetimi'!M16)","v":"Düşük"},{"$f":"IF('Risk - Yönetimi'!O16=\"\",\" \",'Risk - Yönetimi'!O16)","v":"Düşük"}]
[{"$f":"IF('Risk - Belirleme'!A17=\"\",\" \",'Risk - Belirleme'!A17)","v":3},{"$f":"IF('Risk - Belirleme'!B17=\"\",\" \",'Risk - Belirleme'!B17)","v":" "},{"$f":"IF('Risk - Belirleme'!C17=\"\",\" \",'Risk - Belirleme'!C17)","v":"Mevlana Protokolü imzaladığımız ortaklarımıza başvuru dönemini bildirmek"},{"$f":"IF('Risk - Belirleme'!D17=\"\",\" \",'Risk - Belirleme'!D17)","v":"YÖK tarafından ilan edilen başvuru tarihlerinin öğrenci ve personel deşimi yapacağımız ortaklara bildirilmesi. "},{"$f":"IF('Risk - Belirleme'!E17=\"\",\" \",'Risk - Belirleme'!E17)","v":"Operasyonel"},{"$f":"IF('Risk - Analizi'!I17=\"\",\" \",'Risk - Analizi'!I17)","v":"Düşük"},{"$f":"IF('Risk - Yönetimi'!D17=\"\",\" \",'Risk - Yönetimi'!D17)","v":"Kabul Et"},{"$f":"IF('Risk - Yönetimi'!E17=\"\",\" \",'Risk - Yönetimi'!E17)","v":"Ortaklarımızla iletişim kanallarının açık ve güncel tutulması. "},{"$f":"IF('Risk - Yönetimi'!F17=\"\",\" \",'Risk - Yönetimi'!F17)","v":"Birim Koordinatörü"},{"$f":"IF('Risk - Yönetimi'!G17=\"\",\" \",'Risk - Yönetimi'!G17)","v":"Dış İlişkiler Koordinatörlüğü"},{"$f":"IF('Risk - Yönetimi'!K17=\"\",\" \",'Risk - Yönetimi'!K17)","v":"Çok Düşük"},{"$f":"IF('Risk - Yönetimi'!M17=\"\",\" \",'Risk - Yönetimi'!M17)","v":"Çok Düşük"},{"$f":"IF('Risk - Yönetimi'!O17=\"\",\" \",'Risk - Yönetimi'!O17)","v":"Düşük"}]
[{"$f":"IF('Risk - Belirleme'!A18=\"\",\" \",'Risk - Belirleme'!A18)","v":4},{"$f":"IF('Risk - Belirleme'!B18=\"\",\" \",'Risk - Belirleme'!B18)","v":" "},{"$f":"IF('Risk - Belirleme'!C18=\"\",\" \",'Risk - Belirleme'!C18)","v":"Mevlana Değişim Programıyla gelen öğrencilere oryantasyon yapılmaması."},{"$f":"IF('Risk - Belirleme'!D18=\"\",\" \",'Risk - Belirleme'!D18)","v":"Mevlana Değişim Programıyla gelen öğrencilere, Üniversiteyi ve şehri tanıtıcı bilgi aktarılması."},{"$f":"IF('Risk - Belirleme'!E18=\"\",\" \",'Risk - Belirleme'!E18)","v":"Operasyonel"},{"$f":"IF('Risk - Analizi'!I18=\"\",\" \",'Risk - Analizi'!I18)","v":"Düşük"},{"$f":"IF('Risk - Yönetimi'!D18=\"\",\" \",'Risk - Yönetimi'!D18)","v":"Kabul Et"},{"$f":"IF('Risk - Yönetimi'!E18=\"\",\" \",'Risk - Yönetimi'!E18)","v":"Mevlana Değişim Programıyla gelen öğrencilere geldiklerinde işlemlerini yaparken oryantasyon yaparak öğrencinin bilgilendirilmesi"},{"$f":"IF('Risk - Yönetimi'!F18=\"\",\" \",'Risk - Yönetimi'!F18)","v":"Birim Koordinatörü"},{"$f":"IF('Risk - Yönetimi'!G18=\"\",\" \",'Risk - Yönetimi'!G18)","v":"Dış İlişkiler Koordinatörlüğü"},{"$f":"IF('Risk - Yönetimi'!K18=\"\",\" \",'Risk - Yönetimi'!K18)","v":"Düşük"},{"$f":"IF('Risk - Yönetimi'!M18=\"\",\" \",'Risk - Yönetimi'!M18)","v":"Çok Düşük"},{"$f":"IF('Risk - Yönetimi'!O18=\"\",\" \",'Risk - Yönetimi'!O18)","v":"Düşük"}]
[{"$f":"IF('Risk - Belirleme'!A19=\"\",\" \",'Risk - Belirleme'!A19)","v":5},{"$f":"IF('Risk - Belirleme'!B19=\"\",\" \",'Risk - Belirleme'!B19)","v":" "},{"$f":"IF('Risk - Belirleme'!C19=\"\",\" \",'Risk - Belirleme'!C19)","v":"Mevlana Değişim Programı'na katılan öğrenci ve personel için gerekli olan ıslak imzalı belgelerin postada kaybolması."},{"$f":"IF('Risk - Belirleme'!D19=\"\",\" \",'Risk - Belirleme'!D19)","v":"Mevlana Değişim Programı'na katılan öğrenci ve personel için gerekli olan ıslak imzalı belgelerin postada kaybolması ve belgelerin bulunamaması. "},{"$f":"IF('Risk - Belirleme'!E19=\"\",\" \",'Risk - Belirleme'!E19)","v":"Operasyonel"},{"$f":"IF('Risk - Analizi'!I19=\"\",\" \",'Risk - Analizi'!I19)","v":"Düşük"},{"$f":"IF('Risk - Yönetimi'!D19=\"\",\" \",'Risk - Yönetimi'!D19)","v":"Kontrol Geliştir"},{"$f":"IF('Risk - Yönetimi'!E19=\"\",\" \",'Risk - Yönetimi'!E19)","v":"Posta ile gönderilen tüm belgelerin taranarak elektronik versiyonlarının depolanması ve ortak kuruma gönderilmek üzere postaya verilmeden önce e-posta ile gönderilmesi."},{"$f":"IF('Risk - Yönetimi'!F19=\"\",\" \",'Risk - Yönetimi'!F19)","v":"Birim Koordinatörü"},{"$f":"IF('Risk - Yönetimi'!G19=\"\",\" \",'Risk - Yönetimi'!G19)","v":"Dış İlişkiler Koordinatörlüğü"},{"$f":"IF('Risk - Yönetimi'!K19=\"\",\" \",'Risk - Yönetimi'!K19)","v":"Düşük"},{"$f":"IF('Risk - Yönetimi'!M19=\"\",\" \",'Risk - Yönetimi'!M19)","v":"Düşük"},{"$f":"IF('Risk - Yönetimi'!O19=\"\",\" \",'Risk - Yönetimi'!O19)","v":"Düşük"}]
[{"$f":"IF('Risk - Belirleme'!A20=\"\",\" \",'Risk - Belirleme'!A20)","v":" "},{"$f":"IF('Risk - Belirleme'!B20=\"\",\" \",'Risk - Belirleme'!B20)","v":" "},{"$f":"IF('Risk - Belirleme'!C20=\"\",\" \",'Risk - Belirleme'!C20)","v":" "},{"$f":"IF('Risk - Belirleme'!D20=\"\",\" \",'Risk - Belirleme'!D20)","v":" "},{"$f":"IF('Risk - Belirleme'!E20=\"\",\" \",'Risk - Belirleme'!E20)","v":" "},{"$f":"IF('Risk - Analizi'!I20=\"\",\" \",'Risk - Analizi'!I20)","v":" "},{"$f":"IF('Risk - Yönetimi'!D20=\"\",\" \",'Risk - Yönetimi'!D20)","v":" "},{"$f":"IF('Risk - Yönetimi'!E20=\"\",\" \",'Risk - Yönetimi'!E20)","v":" "},{"$f":"IF('Risk - Yönetimi'!F20=\"\",\" \",'Risk - Yönetimi'!F20)","v":" "},{"$f":"IF('Risk - Yönetimi'!G20=\"\",\" \",'Risk - Yönetimi'!G20)","v":" "},{"$f":"IF('Risk - Yönetimi'!K20=\"\",\" \",'Risk - Yönetimi'!K20)","v":" "},{"$f":"IF('Risk - Yönetimi'!M20=\"\",\" \",'Risk - Yönetimi'!M20)","v":" "},{"$f":"IF('Risk - Yönetimi'!O20=\"\",\" \",'Risk - Yönetimi'!O20)","v":" "}]
[{"$f":"IF('Risk - Belirleme'!A21=\"\",\" \",'Risk - Belirleme'!A21)","v":1},{"$f":"IF('Risk - Belirleme'!B21=\"\",\" \",'Risk - Belirleme'!B21)","v":" "},{"$f":"IF('Risk - Belirleme'!C21=\"\",\" \",'Risk - Belirleme'!C21)","v":"Farabi Değişim Programı Başvurularının İlanının Duyurulamaması"},{"$f":"IF('Risk - Belirleme'!D21=\"\",\" \",'Risk - Belirleme'!D21)","v":"Her yıl YÖK tarafından ilan edilen başvuru tarihlerinde  Üniversite web sayfasında yazılımsal sorun yaşanması."},{"$f":"IF('Risk - Belirleme'!E21=\"\",\" \",'Risk - Belirleme'!E21)","v":"Operasyonel"},{"$f":"IF('Risk - Analizi'!I21=\"\",\" \",'Risk - Analizi'!I21)","v":"Düşük"},{"$f":"IF('Risk - Yönetimi'!D21=\"\",\" \",'Risk - Yönetimi'!D21)","v":"Kabul Et"},{"$f":"IF('Risk - Yönetimi'!E21=\"\",\" \",'Risk - Yönetimi'!E21)","v":"İlan tarihinden önce web sitesinin kontrol edilmesi. "},{"$f":"IF('Risk - Yönetimi'!F21=\"\",\" \",'Risk - Yönetimi'!F21)","v":"Birim Koordinatörü"},{"$f":"IF('Risk - Yönetimi'!G21=\"\",\" \",'Risk - Yönetimi'!G21)","v":"Bilgi İşlem Daire Başkanlığı"},{"$f":"IF('Risk - Yönetimi'!K21=\"\",\" \",'Risk - Yönetimi'!K21)","v":"Orta"},{"$f":"IF('Risk - Yönetimi'!M21=\"\",\" \",'Risk - Yönetimi'!M21)","v":"Çok Düşük"},{"$f":"IF('Risk - Yönetimi'!O21=\"\",\" \",'Risk - Yönetimi'!O21)","v":"Düşük"}]
[{"$f":"IF('Risk - Belirleme'!A22=\"\",\" \",'Risk - Belirleme'!A22)","v":2},{"$f":"IF('Risk - Belirleme'!B22=\"\",\" \",'Risk - Belirleme'!B22)","v":" "},{"$f":"IF('Risk - Belirleme'!C22=\"\",\" \",'Risk - Belirleme'!C22)","v":"Farabi Değişim Programı ile Giden/Gelen öğrencilere oryantasyon yapılmaması."},{"$f":"IF('Risk - Belirleme'!D22=\"\",\" \",'Risk - Belirleme'!D22)","v":"Farabi Değişim Programıyla Giden öğrencilere yapılması gereken işlemler ile ilgili; Gelen öğrencilere ise Üniversiteyi ve şehri tanıtıcı bilgi aktarılması."},{"$f":"IF('Risk - Belirleme'!E22=\"\",\" \",'Risk - Belirleme'!E22)","v":"Operasyonel"},{"$f":"IF('Risk - Analizi'!I22=\"\",\" \",'Risk - Analizi'!I22)","v":"Düşük"},{"$f":"IF('Risk - Yönetimi'!D22=\"\",\" \",'Risk - Yönetimi'!D22)","v":"Kabul Et"},{"$f":"IF('Risk - Yönetimi'!E22=\"\",\" \",'Risk - Yönetimi'!E22)","v":"Farabi Değişim Programıyla giden/gelen öğrencilere oryantasyon yaparak öğrencinin bilgilendirilmesi."},{"$f":"IF('Risk - Yönetimi'!F22=\"\",\" \",'Risk - Yönetimi'!F22)","v":"Birim Koordinatörü"},{"$f":"IF('Risk - Yönetimi'!G22=\"\",\" \",'Risk - Yönetimi'!G22)","v":"Dış İlişkiler Koordinatörlüğü"},{"$f":"IF('Risk - Yönetimi'!K22=\"\",\" \",'Risk - Yönetimi'!K22)","v":"Düşük"},{"$f":"IF('Risk - Yönetimi'!M22=\"\",\" \",'Risk - Yönetimi'!M22)","v":"Düşük"},{"$f":"IF('Risk - Yönetimi'!O22=\"\",\" \",'Risk - Yönetimi'!O22)","v":"Düşük"}]
[{"$f":"IF('Risk - Belirleme'!A23=\"\",\" \",'Risk - Belirleme'!A23)","v":3},{"$f":"IF('Risk - Belirleme'!B23=\"\",\" \",'Risk - Belirleme'!B23)","v":" "},{"$f":"IF('Risk - Belirleme'!C23=\"\",\" \",'Risk - Belirleme'!C23)","v":"Öğrenim Protokollerinin yanlış hazırlanması"},{"$f":"IF('Risk - Belirleme'!D23=\"\",\" \",'Risk - Belirleme'!D23)","v":"Farabi Birim Koordinatörlerinin ders içerik ve kredilerini göz önünde bulundurarak öğrenim protokolünün hazırlanmasında öğrenciye yardımcı olmaları."},{"$f":"IF('Risk - Belirleme'!E23=\"\",\" \",'Risk - Belirleme'!E23)","v":"Operasyonel"},{"$f":"IF('Risk - Analizi'!I23=\"\",\" \",'Risk - Analizi'!I23)","v":"Düşük"},{"$f":"IF('Risk - Yönetimi'!D23=\"\",\" \",'Risk - Yönetimi'!D23)","v":"Kontrol Geliştir"},{"$f":"IF('Risk - Yönetimi'!E23=\"\",\" \",'Risk - Yönetimi'!E23)","v":"Birim Koordinatörlerinin sürecin başında, Farabi Değişim Programı ve protokol hazırlama aşaması hakkında bilgilendirilmesi."},{"$f":"IF('Risk - Yönetimi'!F23=\"\",\" \",'Risk - Yönetimi'!F23)","v":"Birim Koordinatörü"},{"$f":"IF('Risk - Yönetimi'!G23=\"\",\" \",'Risk - Yönetimi'!G23)","v":"Dış İlişkiler Koordinatörlüğü"},{"$f":"IF('Risk - Yönetimi'!K23=\"\",\" \",'Risk - Yönetimi'!K23)","v":"Düşük"},{"$f":"IF('Risk - Yönetimi'!M23=\"\",\" \",'Risk - Yönetimi'!M23)","v":"Düşük"},{"$f":"IF('Risk - Yönetimi'!O23=\"\",\" \",'Risk - Yönetimi'!O23)","v":"Düşük"}]
[{"$f":"IF('Risk - Belirleme'!A24=\"\",\" \",'Risk - Belirleme'!A24)","v":4},{"$f":"IF('Risk - Belirleme'!B24=\"\",\" \",'Risk - Belirleme'!B24)","v":" "},{"$f":"IF('Risk - Belirleme'!C24=\"\",\" \",'Risk - Belirleme'!C24)","v":"Kalan burs tutarının (%30) ödemesinin gecikmesi"},{"$f":"IF('Risk - Belirleme'!D24=\"\",\" \",'Risk - Belirleme'!D24)","v":"Karşı Üniversitelere konu ile ilgili hatırlatma yapılarak dönemlik ve yıllık transkriptlerin geciktirilmeden gönderilmesinin sağlanması."},{"$f":"IF('Risk - Belirleme'!E24=\"\",\" \",'Risk - Belirleme'!E24)","v":"Operasyonel"},{"$f":"IF('Risk - Analizi'!I24=\"\",\" \",'Risk - Analizi'!I24)","v":"Düşük"},{"$f":"IF('Risk - Yönetimi'!D24=\"\",\" \",'Risk - Yönetimi'!D24)","v":"Kontrol Geliştir"},{"$f":"IF('Risk - Yönetimi'!E24=\"\",\" \",'Risk - Yönetimi'!E24)","v":"Anlaşmalı olduğumuz Yükseköğretim Kurumları ile iletişim kanallarının açık ve güncel tutulması. "},{"$f":"IF('Risk - Yönetimi'!F24=\"\",\" \",'Risk - Yönetimi'!F24)","v":"Birim Koordinatörü"},{"$f":"IF('Risk - Yönetimi'!G24=\"\",\" \",'Risk - Yönetimi'!G24)","v":"Dış İlişkiler Koordinatörlüğü"},{"$f":"IF('Risk - Yönetimi'!K24=\"\",\" \",'Risk - Yönetimi'!K24)","v":"Düşük"},{"$f":"IF('Risk - Yönetimi'!M24=\"\",\" \",'Risk - Yönetimi'!M24)","v":"Çok Düşük"},{"$f":"IF('Risk - Yönetimi'!O24=\"\",\" \",'Risk - Yönetimi'!O24)","v":"Düşük"}]
[{"$f":"IF('Risk - Belirleme'!A25=\"\",\" \",'Risk - Belirleme'!A25)","v":5},{"$f":"IF('Risk - Belirleme'!B25=\"\",\" \",'Risk - Belirleme'!B25)","v":" "},{"$f":"IF('Risk - Belirleme'!C25=\"\",\" \",'Risk - Belirleme'!C25)","v":"Farabi Değişim Programı'na katılan öğrenciler için gerekli olan ıslak imzalı belgelerin postada gecikmesi veya kaybolması."},{"$f":"IF('Risk - Belirleme'!D25=\"\",\" \",'Risk - Belirleme'!D25)","v":"Farabi Değişim Programı'na katılan öğrenciler için gerekli olan ıslak imzalı belgelerin postada kaybolması ve belgelerin bulunamaması. "},{"$f":"IF('Risk - Belirleme'!E25=\"\",\" \",'Risk - Belirleme'!E25)","v":"Operasyonel"},{"$f":"IF('Risk - Analizi'!I25=\"\",\" \",'Risk - Analizi'!I25)","v":"Düşük"},{"$f":"IF('Risk - Yönetimi'!D25=\"\",\" \",'Risk - Yönetimi'!D25)","v":"Kontrol Geliştir"},{"$f":"IF('Risk - Yönetimi'!E25=\"\",\" \",'Risk - Yönetimi'!E25)","v":"Posta ile gönderilen belgelerin taranarak elektronik versiyonlarının depolanması ve anlaşmalı olduğumuzkuruma gönderilmek üzere postaya verilmeden önce e-posta ile gönderilmesi."},{"$f":"IF('Risk - Yönetimi'!F25=\"\",\" \",'Risk - Yönetimi'!F25)","v":"Birim Koordinatörü"},{"$f":"IF('Risk - Yönetimi'!G25=\"\",\" \",'Risk - Yönetimi'!G25)","v":"Dış İlişkiler Koordinatörlüğü"},{"$f":"IF('Risk - Yönetimi'!K25=\"\",\" \",'Risk - Yönetimi'!K25)","v":"Düşük"},{"$f":"IF('Risk - Yönetimi'!M25=\"\",\" \",'Risk - Yönetimi'!M25)","v":"Düşük"},{"$f":"IF('Risk - Yönetimi'!O25=\"\",\" \",'Risk - Yönetimi'!O25)","v":"Düşük"}]
[{"$f":"IF('Risk - Belirleme'!A26=\"\",\" \",'Risk - Belirleme'!A26)","v":" "},{"$f":"IF('Risk - Belirleme'!B26=\"\",\" \",'Risk - Belirleme'!B26)","v":" "},{"$f":"IF('Risk - Belirleme'!C26=\"\",\" \",'Risk - Belirleme'!C26)","v":" "},{"$f":"IF('Risk - Belirleme'!D26=\"\",\" \",'Risk - Belirleme'!D26)","v":" "},{"$f":"IF('Risk - Belirleme'!E26=\"\",\" \",'Risk - Belirleme'!E26)","v":" "},{"$f":"IF('Risk - Analizi'!I26=\"\",\" \",'Risk - Analizi'!I26)","v":" "},{"$f":"IF('Risk - Yönetimi'!D26=\"\",\" \",'Risk - Yönetimi'!D26)","v":" "},{"$f":"IF('Risk - Yönetimi'!E26=\"\",\" \",'Risk - Yönetimi'!E26)","v":" "},{"$f":"IF('Risk - Yönetimi'!F26=\"\",\" \",'Risk - Yönetimi'!F26)","v":" "},{"$f":"IF('Risk - Yönetimi'!G26=\"\",\" \",'Risk - Yönetimi'!G26)","v":" "},{"$f":"IF('Risk - Yönetimi'!K26=\"\",\" \",'Risk - Yönetimi'!K26)","v":" "},{"$f":"IF('Risk - Yönetimi'!M26=\"\",\" \",'Risk - Yönetimi'!M26)","v":" "},{"$f":"IF('Risk - Yönetimi'!O26=\"\",\" \",'Risk - Yönetimi'!O26)","v":" "}]
[{"$f":"IF('Risk - Belirleme'!A27=\"\",\" \",'Risk - Belirleme'!A27)","v":1},{"$f":"IF('Risk - Belirleme'!B27=\"\",\" \",'Risk - Belirleme'!B27)","v":" "},{"$f":"IF('Risk - Belirleme'!C27=\"\",\" \",'Risk - Belirleme'!C27)","v":"Erasmus Değişim Programı Başvurularının İlanının Duyurulamaması"},{"$f":"IF('Risk - Belirleme'!D27=\"\",\" \",'Risk - Belirleme'!D27)","v":"Dış İlişkiler web sitesi ve anasayfada ilan edilen başvuru tarihlerinin kaçırılabilmesi"},{"$f":"IF('Risk - Belirleme'!E27=\"\",\" \",'Risk - Belirleme'!E27)","v":"Operasyonel"},{"$f":"IF('Risk - Analizi'!I27=\"\",\" \",'Risk - Analizi'!I27)","v":"Düşük"},{"$f":"IF('Risk - Yönetimi'!D27=\"\",\" \",'Risk - Yönetimi'!D27)","v":"Kontrol Geliştir"},{"$f":"IF('Risk - Yönetimi'!E27=\"\",\" \",'Risk - Yönetimi'!E27)","v":"İlan tarihinin farklı yollarla duyurulması"},{"$f":"IF('Risk - Yönetimi'!F27=\"\",\" \",'Risk - Yönetimi'!F27)","v":"Birim Koordinatörü"},{"$f":"IF('Risk - Yönetimi'!G27=\"\",\" \",'Risk - Yönetimi'!G27)","v":"Dış İlişkiler Koordinatörlüğü"},{"$f":"IF('Risk - Yönetimi'!K27=\"\",\" \",'Risk - Yönetimi'!K27)","v":"Düşük"},{"$f":"IF('Risk - Yönetimi'!M27=\"\",\" \",'Risk - Yönetimi'!M27)","v":"Düşük"},{"$f":"IF('Risk - Yönetimi'!O27=\"\",\" \",'Risk - Yönetimi'!O27)","v":"Düşük"}]
[{"$f":"IF('Risk - Belirleme'!A28=\"\",\" \",'Risk - Belirleme'!A28)","v":2},{"$f":"IF('Risk - Belirleme'!B28=\"\",\" \",'Risk - Belirleme'!B28)","v":" "},{"$f":"IF('Risk - Belirleme'!C28=\"\",\" \",'Risk - Belirleme'!C28)","v":"Erasmus Değişim Programı ile Gelen/Giden öğrencilere oryantasyon yapılmaması"},{"$f":"IF('Risk - Belirleme'!D28=\"\",\" \",'Risk - Belirleme'!D28)","v":"Erasmus Değişim Programıyla Giden öğrencilere yapılması gereken işlemler ile ilgili; Gelen öğrencilere ise Üniversiteyi ve şehri tanıtıcı bilgi aktarılmaması."},{"$f":"IF('Risk - Belirleme'!E28=\"\",\" \",'Risk - Belirleme'!E28)","v":"Operasyonel"},{"$f":"IF('Risk - Analizi'!I28=\"\",\" \",'Risk - Analizi'!I28)","v":"Düşük"},{"$f":"IF('Risk - Yönetimi'!D28=\"\",\" \",'Risk - Yönetimi'!D28)","v":"Kontrol Geliştir"},{"$f":"IF('Risk - Yönetimi'!E28=\"\",\" \",'Risk - Yönetimi'!E28)","v":"Eramus Değişim Programıyla giden/gelen öğrencilere oryantasyon yaparak öğrencinin bilgilendirilmesi."},{"$f":"IF('Risk - Yönetimi'!F28=\"\",\" \",'Risk - Yönetimi'!F28)","v":"Birim Koordinatörü"},{"$f":"IF('Risk - Yönetimi'!G28=\"\",\" \",'Risk - Yönetimi'!G28)","v":"Dış İlişkiler Koordinatörlüğü"},{"$f":"IF('Risk - Yönetimi'!K28=\"\",\" \",'Risk - Yönetimi'!K28)","v":"Düşük"},{"$f":"IF('Risk - Yönetimi'!M28=\"\",\" \",'Risk - Yönetimi'!M28)","v":"Düşük"},{"$f":"IF('Risk - Yönetimi'!O28=\"\",\" \",'Risk - Yönetimi'!O28)","v":"Düşük"}]
[{"$f":"IF('Risk - Belirleme'!A29=\"\",\" \",'Risk - Belirleme'!A29)","v":3},{"$f":"IF('Risk - Belirleme'!B29=\"\",\" \",'Risk - Belirleme'!B29)","v":" "},{"$f":"IF('Risk - Belirleme'!C29=\"\",\" \",'Risk - Belirleme'!C29)","v":"Öğrenim Protokollerinin yanlış hazırlanması"},{"$f":"IF('Risk - Belirleme'!D29=\"\",\" \",'Risk - Belirleme'!D29)","v":"Protokollerin hazırlanış sürecinde öğrencilerin Erasmus birim koordinatörlerinden yeterli desteği görememesi"},{"$f":"IF('Risk - Belirleme'!E29=\"\",\" \",'Risk - Belirleme'!E29)","v":"Operasyonel"},{"$f":"IF('Risk - Analizi'!I29=\"\",\" \",'Risk - Analizi'!I29)","v":"Düşük"},{"$f":"IF('Risk - Yönetimi'!D29=\"\",\" \",'Risk - Yönetimi'!D29)","v":"Kontrol Geliştir"},{"$f":"IF('Risk - Yönetimi'!E29=\"\",\" \",'Risk - Yönetimi'!E29)","v":"Erasmus Koordinatörlerine sürecin başında protokol hazırlama,içerik ve kredi konusunda bilgilendirme yapılması"},{"$f":"IF('Risk - Yönetimi'!F29=\"\",\" \",'Risk - Yönetimi'!F29)","v":"Birim Koordinatörü"},{"$f":"IF('Risk - Yönetimi'!G29=\"\",\" \",'Risk - Yönetimi'!G29)","v":"Dış İlişkiler Koordinatörlüğü"},{"$f":"IF('Risk - Yönetimi'!K29=\"\",\" \",'Risk - Yönetimi'!K29)","v":"Düşük"},{"$f":"IF('Risk - Yönetimi'!M29=\"\",\" \",'Risk - Yönetimi'!M29)","v":"Düşük"},{"$f":"IF('Risk - Yönetimi'!O29=\"\",\" \",'Risk - Yönetimi'!O29)","v":"Düşük"}]
[{"$f":"IF('Risk - Belirleme'!A30=\"\",\" \",'Risk - Belirleme'!A30)","v":4},{"$f":"IF('Risk - Belirleme'!B30=\"\",\" \",'Risk - Belirleme'!B30)","v":" "},{"$f":"IF('Risk - Belirleme'!C30=\"\",\" \",'Risk - Belirleme'!C30)","v":"Hibelerin geç ödenmesi"},{"$f":"IF('Risk - Belirleme'!D30=\"\",\" \",'Risk - Belirleme'!D30)","v":"Ulusal ajansa gerekli bildirimlerin gecikmeden yapılması"},{"$f":"IF('Risk - Belirleme'!E30=\"\",\" \",'Risk - Belirleme'!E30)","v":"Operasyonel"},{"$f":"IF('Risk - Analizi'!I30=\"\",\" \",'Risk - Analizi'!I30)","v":"Düşük"},{"$f":"IF('Risk - Yönetimi'!D30=\"\",\" \",'Risk - Yönetimi'!D30)","v":"Kontrol Geliştir"},{"$f":"IF('Risk - Yönetimi'!E30=\"\",\" \",'Risk - Yönetimi'!E30)","v":"Ulusal Ajansın takviminin sıkı takip edilmesi"},{"$f":"IF('Risk - Yönetimi'!F30=\"\",\" \",'Risk - Yönetimi'!F30)","v":"Birim Koordinatörü"},{"$f":"IF('Risk - Yönetimi'!G30=\"\",\" \",'Risk - Yönetimi'!G30)","v":"Dış İlişkiler Koordinatörlüğü"},{"$f":"IF('Risk - Yönetimi'!K30=\"\",\" \",'Risk - Yönetimi'!K30)","v":"Düşük"},{"$f":"IF('Risk - Yönetimi'!M30=\"\",\" \",'Risk - Yönetimi'!M30)","v":"Düşük"},{"$f":"IF('Risk - Yönetimi'!O30=\"\",\" \",'Risk - Yönetimi'!O30)","v":"Düşük"}]
[{"$f":"IF('Risk - Belirleme'!A31=\"\",\" \",'Risk - Belirleme'!A31)","v":5},{"$f":"IF('Risk - Belirleme'!B31=\"\",\" \",'Risk - Belirleme'!B31)","v":" "},{"$f":"IF('Risk - Belirleme'!C31=\"\",\" \",'Risk - Belirleme'!C31)","v":"Erasmus Değişim Programı'na katılan öğrenciler için gerekli olan ıslak imzalı belgelerin postada gecikmesi veya kaybolması."},{"$f":"IF('Risk - Belirleme'!D31=\"\",\" \",'Risk - Belirleme'!D31)","v":"Erasmus  Değişim Programı'na katılan öğrenciler için gerekli olan ıslak imzalı belgelerin postada kaybolması , belgelerin bulunamaması ve tekrar gönderilmek zorunda kalınması"},{"$f":"IF('Risk - Belirleme'!E31=\"\",\" \",'Risk - Belirleme'!E31)","v":"Operasyonel"},{"$f":"IF('Risk - Analizi'!I31=\"\",\" \",'Risk - Analizi'!I31)","v":"Düşük"},{"$f":"IF('Risk - Yönetimi'!D31=\"\",\" \",'Risk - Yönetimi'!D31)","v":"Kontrol Geliştir"},{"$f":"IF('Risk - Yönetimi'!E31=\"\",\" \",'Risk - Yönetimi'!E31)","v":"Posta ile gönderilen belgelerin taranarak elektronik versiyonlarının depolanması ve anlaşmalı olduğumuzkuruma gönderilmek üzere postaya verilmeden önce e-posta ile gönderilmesi."},{"$f":"IF('Risk - Yönetimi'!F31=\"\",\" \",'Risk - Yönetimi'!F31)","v":"Birim Koordinatörü"},{"$f":"IF('Risk - Yönetimi'!G31=\"\",\" \",'Risk - Yönetimi'!G31)","v":"Dış İlişkiler Koordinatörlüğü"},{"$f":"IF('Risk - Yönetimi'!K31=\"\",\" \",'Risk - Yönetimi'!K31)","v":"Düşük"},{"$f":"IF('Risk - Yönetimi'!M31=\"\",\" \",'Risk - Yönetimi'!M31)","v":"Düşük"},{"$f":"IF('Risk - Yönetimi'!O31=\"\",\" \",'Risk - Yönetimi'!O31)","v":"Düşük"}]
[{"$f":"IF('Risk - Belirleme'!A32=\"\",\" \",'Risk - Belirleme'!A32)","v":" "},{"$f":"IF('Risk - Belirleme'!B32=\"\",\" \",'Risk - Belirleme'!B32)","v":" "},{"$f":"IF('Risk - Belirleme'!C32=\"\",\" \",'Risk - Belirleme'!C32)","v":" "},{"$f":"IF('Risk - Belirleme'!D32=\"\",\" \",'Risk - Belirleme'!D32)","v":" "},{"$f":"IF('Risk - Belirleme'!E32=\"\",\" \",'Risk - Belirleme'!E32)","v":" "},{"$f":"IF('Risk - Analizi'!I32=\"\",\" \",'Risk - Analizi'!I32)","v":" "},{"$f":"IF('Risk - Yönetimi'!D32=\"\",\" \",'Risk - Yönetimi'!D32)","v":" "},{"$f":"IF('Risk - Yönetimi'!E32=\"\",\" \",'Risk - Yönetimi'!E32)","v":" "},{"$f":"IF('Risk - Yönetimi'!F32=\"\",\" \",'Risk - Yönetimi'!F32)","v":" "},{"$f":"IF('Risk - Yönetimi'!G32=\"\",\" \",'Risk - Yönetimi'!G32)","v":" "},{"$f":"IF('Risk - Yönetimi'!K32=\"\",\" \",'Risk - Yönetimi'!K32)","v":" "},{"$f":"IF('Risk - Yönetimi'!M32=\"\",\" \",'Risk - Yönetimi'!M32)","v":" "},{"$f":"IF('Risk - Yönetimi'!O32=\"\",\" \",'Risk - Yönetimi'!O32)","v":" "}]
[{"$f":"IF('Risk - Belirleme'!A33=\"\",\" \",'Risk - Belirleme'!A33)","v":" "},{"$f":"IF('Risk - Belirleme'!B33=\"\",\" \",'Risk - Belirleme'!B33)","v":" "},{"$f":"IF('Risk - Belirleme'!C33=\"\",\" \",'Risk - Belirleme'!C33)","v":" "},{"$f":"IF('Risk - Belirleme'!D33=\"\",\" \",'Risk - Belirleme'!D33)","v":" "},{"$f":"IF('Risk - Belirleme'!E33=\"\",\" \",'Risk - Belirleme'!E33)","v":" "},{"$f":"IF('Risk - Analizi'!I33=\"\",\" \",'Risk - Analizi'!I33)","v":" "},{"$f":"IF('Risk - Yönetimi'!D33=\"\",\" \",'Risk - Yönetimi'!D33)","v":" "},{"$f":"IF('Risk - Yönetimi'!E33=\"\",\" \",'Risk - Yönetimi'!E33)","v":" "},{"$f":"IF('Risk - Yönetimi'!F33=\"\",\" \",'Risk - Yönetimi'!F33)","v":" "},{"$f":"IF('Risk - Yönetimi'!G33=\"\",\" \",'Risk - Yönetimi'!G33)","v":" "},{"$f":"IF('Risk - Yönetimi'!K33=\"\",\" \",'Risk - Yönetimi'!K33)","v":" "},{"$f":"IF('Risk - Yönetimi'!M33=\"\",\" \",'Risk - Yönetimi'!M33)","v":" "},{"$f":"IF('Risk - Yönetimi'!O33=\"\",\" \",'Risk - Yönetimi'!O33)","v":" "}]
[{"$f":"IF('Risk - Belirleme'!A34=\"\",\" \",'Risk - Belirleme'!A34)","v":" "},{"$f":"IF('Risk - Belirleme'!B34=\"\",\" \",'Risk - Belirleme'!B34)","v":" "},{"$f":"IF('Risk - Belirleme'!C34=\"\",\" \",'Risk - Belirleme'!C34)","v":" "},{"$f":"IF('Risk - Belirleme'!D34=\"\",\" \",'Risk - Belirleme'!D34)","v":" "},{"$f":"IF('Risk - Belirleme'!E34=\"\",\" \",'Risk - Belirleme'!E34)","v":" "},{"$f":"IF('Risk - Analizi'!I34=\"\",\" \",'Risk - Analizi'!I34)","v":" "},{"$f":"IF('Risk - Yönetimi'!D34=\"\",\" \",'Risk - Yönetimi'!D34)","v":" "},{"$f":"IF('Risk - Yönetimi'!E34=\"\",\" \",'Risk - Yönetimi'!E34)","v":" "},{"$f":"IF('Risk - Yönetimi'!F34=\"\",\" \",'Risk - Yönetimi'!F34)","v":" "},{"$f":"IF('Risk - Yönetimi'!G34=\"\",\" \",'Risk - Yönetimi'!G34)","v":" "},{"$f":"IF('Risk - Yönetimi'!K34=\"\",\" \",'Risk - Yönetimi'!K34)","v":" "},{"$f":"IF('Risk - Yönetimi'!M34=\"\",\" \",'Risk - Yönetimi'!M34)","v":" "},{"$f":"IF('Risk - Yönetimi'!O34=\"\",\" \",'Risk - Yönetimi'!O34)","v":" "}]
[{"$f":"IF('Risk - Belirleme'!A35=\"\",\" \",'Risk - Belirleme'!A35)","v":" "},{"$f":"IF('Risk - Belirleme'!B35=\"\",\" \",'Risk - Belirleme'!B35)","v":" "},{"$f":"IF('Risk - Belirleme'!C35=\"\",\" \",'Risk - Belirleme'!C35)","v":" "},{"$f":"IF('Risk - Belirleme'!D35=\"\",\" \",'Risk - Belirleme'!D35)","v":" "},{"$f":"IF('Risk - Belirleme'!E35=\"\",\" \",'Risk - Belirleme'!E35)","v":" "},{"$f":"IF('Risk - Analizi'!I35=\"\",\" \",'Risk - Analizi'!I35)","v":" "},{"$f":"IF('Risk - Yönetimi'!D35=\"\",\" \",'Risk - Yönetimi'!D35)","v":" "},{"$f":"IF('Risk - Yönetimi'!E35=\"\",\" \",'Risk - Yönetimi'!E35)","v":" "},{"$f":"IF('Risk - Yönetimi'!F35=\"\",\" \",'Risk - Yönetimi'!F35)","v":" "},{"$f":"IF('Risk - Yönetimi'!G35=\"\",\" \",'Risk - Yönetimi'!G35)","v":" "},{"$f":"IF('Risk - Yönetimi'!K35=\"\",\" \",'Risk - Yönetimi'!K35)","v":" "},{"$f":"IF('Risk - Yönetimi'!M35=\"\",\" \",'Risk - Yönetimi'!M35)","v":" "},{"$f":"IF('Risk - Yönetimi'!O35=\"\",\" \",'Risk - Yönetimi'!O35)","v":" "}]
[{"$f":"IF('Risk - Belirleme'!A36=\"\",\" \",'Risk - Belirleme'!A36)","v":" "},{"$f":"IF('Risk - Belirleme'!B36=\"\",\" \",'Risk - Belirleme'!B36)","v":" "},{"$f":"IF('Risk - Belirleme'!C36=\"\",\" \",'Risk - Belirleme'!C36)","v":" "},{"$f":"IF('Risk - Belirleme'!D36=\"\",\" \",'Risk - Belirleme'!D36)","v":" "},{"$f":"IF('Risk - Belirleme'!E36=\"\",\" \",'Risk - Belirleme'!E36)","v":" "},{"$f":"IF('Risk - Analizi'!I36=\"\",\" \",'Risk - Analizi'!I36)","v":" "},{"$f":"IF('Risk - Yönetimi'!D36=\"\",\" \",'Risk - Yönetimi'!D36)","v":" "},{"$f":"IF('Risk - Yönetimi'!E36=\"\",\" \",'Risk - Yönetimi'!E36)","v":" "},{"$f":"IF('Risk - Yönetimi'!F36=\"\",\" \",'Risk - Yönetimi'!F36)","v":" "},{"$f":"IF('Risk - Yönetimi'!G36=\"\",\" \",'Risk - Yönetimi'!G36)","v":" "},{"$f":"IF('Risk - Yönetimi'!K36=\"\",\" \",'Risk - Yönetimi'!K36)","v":" "},{"$f":"IF('Risk - Yönetimi'!M36=\"\",\" \",'Risk - Yönetimi'!M36)","v":" "},{"$f":"IF('Risk - Yönetimi'!O36=\"\",\" \",'Risk - Yönetimi'!O36)","v":" "}]
[{"$f":"IF('Risk - Belirleme'!A37=\"\",\" \",'Risk - Belirleme'!A37)","v":" "},{"$f":"IF('Risk - Belirleme'!B37=\"\",\" \",'Risk - Belirleme'!B37)","v":" "},{"$f":"IF('Risk - Belirleme'!C37=\"\",\" \",'Risk - Belirleme'!C37)","v":" "},{"$f":"IF('Risk - Belirleme'!D37=\"\",\" \",'Risk - Belirleme'!D37)","v":" "},{"$f":"IF('Risk - Belirleme'!E37=\"\",\" \",'Risk - Belirleme'!E37)","v":" "},{"$f":"IF('Risk - Analizi'!I37=\"\",\" \",'Risk - Analizi'!I37)","v":" "},{"$f":"IF('Risk - Yönetimi'!D37=\"\",\" \",'Risk - Yönetimi'!D37)","v":" "},{"$f":"IF('Risk - Yönetimi'!E37=\"\",\" \",'Risk - Yönetimi'!E37)","v":" "},{"$f":"IF('Risk - Yönetimi'!F37=\"\",\" \",'Risk - Yönetimi'!F37)","v":" "},{"$f":"IF('Risk - Yönetimi'!G37=\"\",\" \",'Risk - Yönetimi'!G37)","v":" "},{"$f":"IF('Risk - Yönetimi'!K37=\"\",\" \",'Risk - Yönetimi'!K37)","v":" "},{"$f":"IF('Risk - Yönetimi'!M37=\"\",\" \",'Risk - Yönetimi'!M37)","v":" "},{"$f":"IF('Risk - Yönetimi'!O37=\"\",\" \",'Risk - Yönetimi'!O37)","v":" "}]
[{"$f":"IF('Risk - Belirleme'!A38=\"\",\" \",'Risk - Belirleme'!A38)","v":" "},{"$f":"IF('Risk - Belirleme'!B38=\"\",\" \",'Risk - Belirleme'!B38)","v":" "},{"$f":"IF('Risk - Belirleme'!C38=\"\",\" \",'Risk - Belirleme'!C38)","v":" "},{"$f":"IF('Risk - Belirleme'!D38=\"\",\" \",'Risk - Belirleme'!D38)","v":" "},{"$f":"IF('Risk - Belirleme'!E38=\"\",\" \",'Risk - Belirleme'!E38)","v":" "},{"$f":"IF('Risk - Analizi'!I38=\"\",\" \",'Risk - Analizi'!I38)","v":" "},{"$f":"IF('Risk - Yönetimi'!D38=\"\",\" \",'Risk - Yönetimi'!D38)","v":" "},{"$f":"IF('Risk - Yönetimi'!E38=\"\",\" \",'Risk - Yönetimi'!E38)","v":" "},{"$f":"IF('Risk - Yönetimi'!F38=\"\",\" \",'Risk - Yönetimi'!F38)","v":" "},{"$f":"IF('Risk - Yönetimi'!G38=\"\",\" \",'Risk - Yönetimi'!G38)","v":" "},{"$f":"IF('Risk - Yönetimi'!K38=\"\",\" \",'Risk - Yönetimi'!K38)","v":" "},{"$f":"IF('Risk - Yönetimi'!M38=\"\",\" \",'Risk - Yönetimi'!M38)","v":" "},{"$f":"IF('Risk - Yönetimi'!O38=\"\",\" \",'Risk - Yönetimi'!O38)","v":" "}]
[{"$f":"IF('Risk - Belirleme'!A39=\"\",\" \",'Risk - Belirleme'!A39)","v":" "},{"$f":"IF('Risk - Belirleme'!B39=\"\",\" \",'Risk - Belirleme'!B39)","v":" "},{"$f":"IF('Risk - Belirleme'!C39=\"\",\" \",'Risk - Belirleme'!C39)","v":" "},{"$f":"IF('Risk - Belirleme'!D39=\"\",\" \",'Risk - Belirleme'!D39)","v":" "},{"$f":"IF('Risk - Belirleme'!E39=\"\",\" \",'Risk - Belirleme'!E39)","v":" "},{"$f":"IF('Risk - Analizi'!I39=\"\",\" \",'Risk - Analizi'!I39)","v":" "},{"$f":"IF('Risk - Yönetimi'!D39=\"\",\" \",'Risk - Yönetimi'!D39)","v":" "},{"$f":"IF('Risk - Yönetimi'!E39=\"\",\" \",'Risk - Yönetimi'!E39)","v":" "},{"$f":"IF('Risk - Yönetimi'!F39=\"\",\" \",'Risk - Yönetimi'!F39)","v":" "},{"$f":"IF('Risk - Yönetimi'!G39=\"\",\" \",'Risk - Yönetimi'!G39)","v":" "},{"$f":"IF('Risk - Yönetimi'!K39=\"\",\" \",'Risk - Yönetimi'!K39)","v":" "},{"$f":"IF('Risk - Yönetimi'!M39=\"\",\" \",'Risk - Yönetimi'!M39)","v":" "},{"$f":"IF('Risk - Yönetimi'!O39=\"\",\" \",'Risk - Yönetimi'!O39)","v":" "}]
[{"$f":"IF('Risk - Belirleme'!A40=\"\",\" \",'Risk - Belirleme'!A40)","v":" "},{"$f":"IF('Risk - Belirleme'!B40=\"\",\" \",'Risk - Belirleme'!B40)","v":" "},{"$f":"IF('Risk - Belirleme'!C40=\"\",\" \",'Risk - Belirleme'!C40)","v":" "},{"$f":"IF('Risk - Belirleme'!D40=\"\",\" \",'Risk - Belirleme'!D40)","v":" "},{"$f":"IF('Risk - Belirleme'!E40=\"\",\" \",'Risk - Belirleme'!E40)","v":" "},{"$f":"IF('Risk - Analizi'!I40=\"\",\" \",'Risk - Analizi'!I40)","v":" "},{"$f":"IF('Risk - Yönetimi'!D40=\"\",\" \",'Risk - Yönetimi'!D40)","v":" "},{"$f":"IF('Risk - Yönetimi'!E40=\"\",\" \",'Risk - Yönetimi'!E40)","v":" "},{"$f":"IF('Risk - Yönetimi'!F40=\"\",\" \",'Risk - Yönetimi'!F40)","v":" "},{"$f":"IF('Risk - Yönetimi'!G40=\"\",\" \",'Risk - Yönetimi'!G40)","v":" "},{"$f":"IF('Risk - Yönetimi'!K40=\"\",\" \",'Risk - Yönetimi'!K40)","v":" "},{"$f":"IF('Risk - Yönetimi'!M40=\"\",\" \",'Risk - Yönetimi'!M40)","v":" "},{"$f":"IF('Risk - Yönetimi'!O40=\"\",\" \",'Risk - Yönetimi'!O40)","v":" "}]
[{"$f":"IF('Risk - Belirleme'!A41=\"\",\" \",'Risk - Belirleme'!A41)","v":" "},{"$f":"IF('Risk - Belirleme'!B41=\"\",\" \",'Risk - Belirleme'!B41)","v":" "},{"$f":"IF('Risk - Belirleme'!C41=\"\",\" \",'Risk - Belirleme'!C41)","v":" "},{"$f":"IF('Risk - Belirleme'!D41=\"\",\" \",'Risk - Belirleme'!D41)","v":" "},{"$f":"IF('Risk - Belirleme'!E41=\"\",\" \",'Risk - Belirleme'!E41)","v":" "},{"$f":"IF('Risk - Analizi'!I41=\"\",\" \",'Risk - Analizi'!I41)","v":" "},{"$f":"IF('Risk - Yönetimi'!D41=\"\",\" \",'Risk - Yönetimi'!D41)","v":" "},{"$f":"IF('Risk - Yönetimi'!E41=\"\",\" \",'Risk - Yönetimi'!E41)","v":" "},{"$f":"IF('Risk - Yönetimi'!F41=\"\",\" \",'Risk - Yönetimi'!F41)","v":" "},{"$f":"IF('Risk - Yönetimi'!G41=\"\",\" \",'Risk - Yönetimi'!G41)","v":" "},{"$f":"IF('Risk - Yönetimi'!K41=\"\",\" \",'Risk - Yönetimi'!K41)","v":" "},{"$f":"IF('Risk - Yönetimi'!M41=\"\",\" \",'Risk - Yönetimi'!M41)","v":" "},{"$f":"IF('Risk - Yönetimi'!O41=\"\",\" \",'Risk - Yönetimi'!O41)","v":" "}]
[{"$f":"IF('Risk - Belirleme'!A42=\"\",\" \",'Risk - Belirleme'!A42)","v":" "},{"$f":"IF('Risk - Belirleme'!B42=\"\",\" \",'Risk - Belirleme'!B42)","v":" "},{"$f":"IF('Risk - Belirleme'!C42=\"\",\" \",'Risk - Belirleme'!C42)","v":" "},{"$f":"IF('Risk - Belirleme'!D42=\"\",\" \",'Risk - Belirleme'!D42)","v":" "},{"$f":"IF('Risk - Belirleme'!E42=\"\",\" \",'Risk - Belirleme'!E42)","v":" "},{"$f":"IF('Risk - Analizi'!I42=\"\",\" \",'Risk - Analizi'!I42)","v":" "},{"$f":"IF('Risk - Yönetimi'!D42=\"\",\" \",'Risk - Yönetimi'!D42)","v":" "},{"$f":"IF('Risk - Yönetimi'!E42=\"\",\" \",'Risk - Yönetimi'!E42)","v":" "},{"$f":"IF('Risk - Yönetimi'!F42=\"\",\" \",'Risk - Yönetimi'!F42)","v":" "},{"$f":"IF('Risk - Yönetimi'!G42=\"\",\" \",'Risk - Yönetimi'!G42)","v":" "},{"$f":"IF('Risk - Yönetimi'!K42=\"\",\" \",'Risk - Yönetimi'!K42)","v":" "},{"$f":"IF('Risk - Yönetimi'!M42=\"\",\" \",'Risk - Yönetimi'!M42)","v":" "},{"$f":"IF('Risk - Yönetimi'!O42=\"\",\" \",'Risk - Yönetimi'!O42)","v":" "}]
[{"$f":"IF('Risk - Belirleme'!A43=\"\",\" \",'Risk - Belirleme'!A43)","v":" "},{"$f":"IF('Risk - Belirleme'!B43=\"\",\" \",'Risk - Belirleme'!B43)","v":" "},{"$f":"IF('Risk - Belirleme'!C43=\"\",\" \",'Risk - Belirleme'!C43)","v":" "},{"$f":"IF('Risk - Belirleme'!D43=\"\",\" \",'Risk - Belirleme'!D43)","v":" "},{"$f":"IF('Risk - Belirleme'!E43=\"\",\" \",'Risk - Belirleme'!E43)","v":" "},{"$f":"IF('Risk - Analizi'!I43=\"\",\" \",'Risk - Analizi'!I43)","v":" "},{"$f":"IF('Risk - Yönetimi'!D43=\"\",\" \",'Risk - Yönetimi'!D43)","v":" "},{"$f":"IF('Risk - Yönetimi'!E43=\"\",\" \",'Risk - Yönetimi'!E43)","v":" "},{"$f":"IF('Risk - Yönetimi'!F43=\"\",\" \",'Risk - Yönetimi'!F43)","v":" "},{"$f":"IF('Risk - Yönetimi'!G43=\"\",\" \",'Risk - Yönetimi'!G43)","v":" "},{"$f":"IF('Risk - Yönetimi'!K43=\"\",\" \",'Risk - Yönetimi'!K43)","v":" "},{"$f":"IF('Risk - Yönetimi'!M43=\"\",\" \",'Risk - Yönetimi'!M43)","v":" "},{"$f":"IF('Risk - Yönetimi'!O43=\"\",\" \",'Risk - Yönetimi'!O43)","v":" "}]
[{"$f":"IF('Risk - Belirleme'!A44=\"\",\" \",'Risk - Belirleme'!A44)","v":" "},{"$f":"IF('Risk - Belirleme'!B44=\"\",\" \",'Risk - Belirleme'!B44)","v":" "},{"$f":"IF('Risk - Belirleme'!C44=\"\",\" \",'Risk - Belirleme'!C44)","v":" "},{"$f":"IF('Risk - Belirleme'!D44=\"\",\" \",'Risk - Belirleme'!D44)","v":" "},{"$f":"IF('Risk - Belirleme'!E44=\"\",\" \",'Risk - Belirleme'!E44)","v":" "},{"$f":"IF('Risk - Analizi'!I44=\"\",\" \",'Risk - Analizi'!I44)","v":" "},{"$f":"IF('Risk - Yönetimi'!D44=\"\",\" \",'Risk - Yönetimi'!D44)","v":" "},{"$f":"IF('Risk - Yönetimi'!E44=\"\",\" \",'Risk - Yönetimi'!E44)","v":" "},{"$f":"IF('Risk - Yönetimi'!F44=\"\",\" \",'Risk - Yönetimi'!F44)","v":" "},{"$f":"IF('Risk - Yönetimi'!G44=\"\",\" \",'Risk - Yönetimi'!G44)","v":" "},{"$f":"IF('Risk - Yönetimi'!K44=\"\",\" \",'Risk - Yönetimi'!K44)","v":" "},{"$f":"IF('Risk - Yönetimi'!M44=\"\",\" \",'Risk - Yönetimi'!M44)","v":" "},{"$f":"IF('Risk - Yönetimi'!O44=\"\",\" \",'Risk - Yönetimi'!O44)","v":" "}]
[{"$f":"IF('Risk - Belirleme'!A45=\"\",\" \",'Risk - Belirleme'!A45)","v":" "},{"$f":"IF('Risk - Belirleme'!B45=\"\",\" \",'Risk - Belirleme'!B45)","v":" "},{"$f":"IF('Risk - Belirleme'!C45=\"\",\" \",'Risk - Belirleme'!C45)","v":" "},{"$f":"IF('Risk - Belirleme'!D45=\"\",\" \",'Risk - Belirleme'!D45)","v":" "},{"$f":"IF('Risk - Belirleme'!E45=\"\",\" \",'Risk - Belirleme'!E45)","v":" "},{"$f":"IF('Risk - Analizi'!I45=\"\",\" \",'Risk - Analizi'!I45)","v":" "},{"$f":"IF('Risk - Yönetimi'!D45=\"\",\" \",'Risk - Yönetimi'!D45)","v":" "},{"$f":"IF('Risk - Yönetimi'!E45=\"\",\" \",'Risk - Yönetimi'!E45)","v":" "},{"$f":"IF('Risk - Yönetimi'!F45=\"\",\" \",'Risk - Yönetimi'!F45)","v":" "},{"$f":"IF('Risk - Yönetimi'!G45=\"\",\" \",'Risk - Yönetimi'!G45)","v":" "},{"$f":"IF('Risk - Yönetimi'!K45=\"\",\" \",'Risk - Yönetimi'!K45)","v":" "},{"$f":"IF('Risk - Yönetimi'!M45=\"\",\" \",'Risk - Yönetimi'!M45)","v":" "},{"$f":"IF('Risk - Yönetimi'!O45=\"\",\" \",'Risk - Yönetimi'!O45)","v":" "}]
[{"$f":"IF('Risk - Belirleme'!A46=\"\",\" \",'Risk - Belirleme'!A46)","v":" "},{"$f":"IF('Risk - Belirleme'!B46=\"\",\" \",'Risk - Belirleme'!B46)","v":" "},{"$f":"IF('Risk - Belirleme'!C46=\"\",\" \",'Risk - Belirleme'!C46)","v":" "},{"$f":"IF('Risk - Belirleme'!D46=\"\",\" \",'Risk - Belirleme'!D46)","v":" "},{"$f":"IF('Risk - Belirleme'!E46=\"\",\" \",'Risk - Belirleme'!E46)","v":" "},{"$f":"IF('Risk - Analizi'!I46=\"\",\" \",'Risk - Analizi'!I46)","v":" "},{"$f":"IF('Risk - Yönetimi'!D46=\"\",\" \",'Risk - Yönetimi'!D46)","v":" "},{"$f":"IF('Risk - Yönetimi'!E46=\"\",\" \",'Risk - Yönetimi'!E46)","v":" "},{"$f":"IF('Risk - Yönetimi'!F46=\"\",\" \",'Risk - Yönetimi'!F46)","v":" "},{"$f":"IF('Risk - Yönetimi'!G46=\"\",\" \",'Risk - Yönetimi'!G46)","v":" "},{"$f":"IF('Risk - Yönetimi'!K46=\"\",\" \",'Risk - Yönetimi'!K46)","v":" "},{"$f":"IF('Risk - Yönetimi'!M46=\"\",\" \",'Risk - Yönetimi'!M46)","v":" "},{"$f":"IF('Risk - Yönetimi'!O46=\"\",\" \",'Risk - Yönetimi'!O46)","v":" "}]
[{"$f":"IF('Risk - Belirleme'!A47=\"\",\" \",'Risk - Belirleme'!A47)","v":" "},{"$f":"IF('Risk - Belirleme'!B47=\"\",\" \",'Risk - Belirleme'!B47)","v":" "},{"$f":"IF('Risk - Belirleme'!C47=\"\",\" \",'Risk - Belirleme'!C47)","v":" "},{"$f":"IF('Risk - Belirleme'!D47=\"\",\" \",'Risk - Belirleme'!D47)","v":" "},{"$f":"IF('Risk - Belirleme'!E47=\"\",\" \",'Risk - Belirleme'!E47)","v":" "},{"$f":"IF('Risk - Analizi'!I47=\"\",\" \",'Risk - Analizi'!I47)","v":" "},{"$f":"IF('Risk - Yönetimi'!D47=\"\",\" \",'Risk - Yönetimi'!D47)","v":" "},{"$f":"IF('Risk - Yönetimi'!E47=\"\",\" \",'Risk - Yönetimi'!E47)","v":" "},{"$f":"IF('Risk - Yönetimi'!F47=\"\",\" \",'Risk - Yönetimi'!F47)","v":" "},{"$f":"IF('Risk - Yönetimi'!G47=\"\",\" \",'Risk - Yönetimi'!G47)","v":" "},{"$f":"IF('Risk - Yönetimi'!K47=\"\",\" \",'Risk - Yönetimi'!K47)","v":" "},{"$f":"IF('Risk - Yönetimi'!M47=\"\",\" \",'Risk - Yönetimi'!M47)","v":" "},{"$f":"IF('Risk - Yönetimi'!O47=\"\",\" \",'Risk - Yönetimi'!O47)","v":" "}]
[{"$f":"IF('Risk - Belirleme'!A48=\"\",\" \",'Risk - Belirleme'!A48)","v":" "},{"$f":"IF('Risk - Belirleme'!B48=\"\",\" \",'Risk - Belirleme'!B48)","v":" "},{"$f":"IF('Risk - Belirleme'!C48=\"\",\" \",'Risk - Belirleme'!C48)","v":" "},{"$f":"IF('Risk - Belirleme'!D48=\"\",\" \",'Risk - Belirleme'!D48)","v":" "},{"$f":"IF('Risk - Belirleme'!E48=\"\",\" \",'Risk - Belirleme'!E48)","v":" "},{"$f":"IF('Risk - Analizi'!I48=\"\",\" \",'Risk - Analizi'!I48)","v":" "},{"$f":"IF('Risk - Yönetimi'!D48=\"\",\" \",'Risk - Yönetimi'!D48)","v":" "},{"$f":"IF('Risk - Yönetimi'!E48=\"\",\" \",'Risk - Yönetimi'!E48)","v":" "},{"$f":"IF('Risk - Yönetimi'!F48=\"\",\" \",'Risk - Yönetimi'!F48)","v":" "},{"$f":"IF('Risk - Yönetimi'!G48=\"\",\" \",'Risk - Yönetimi'!G48)","v":" "},{"$f":"IF('Risk - Yönetimi'!K48=\"\",\" \",'Risk - Yönetimi'!K48)","v":" "},{"$f":"IF('Risk - Yönetimi'!M48=\"\",\" \",'Risk - Yönetimi'!M48)","v":" "},{"$f":"IF('Risk - Yönetimi'!O48=\"\",\" \",'Risk - Yönetimi'!O48)","v":" "}]
[{"$f":"IF('Risk - Belirleme'!A49=\"\",\" \",'Risk - Belirleme'!A49)","v":" "},{"$f":"IF('Risk - Belirleme'!B49=\"\",\" \",'Risk - Belirleme'!B49)","v":" "},{"$f":"IF('Risk - Belirleme'!C49=\"\",\" \",'Risk - Belirleme'!C49)","v":" "},{"$f":"IF('Risk - Belirleme'!D49=\"\",\" \",'Risk - Belirleme'!D49)","v":" "},{"$f":"IF('Risk - Belirleme'!E49=\"\",\" \",'Risk - Belirleme'!E49)","v":" "},{"$f":"IF('Risk - Analizi'!I49=\"\",\" \",'Risk - Analizi'!I49)","v":" "},{"$f":"IF('Risk - Yönetimi'!D49=\"\",\" \",'Risk - Yönetimi'!D49)","v":" "},{"$f":"IF('Risk - Yönetimi'!E49=\"\",\" \",'Risk - Yönetimi'!E49)","v":" "},{"$f":"IF('Risk - Yönetimi'!F49=\"\",\" \",'Risk - Yönetimi'!F49)","v":" "},{"$f":"IF('Risk - Yönetimi'!G49=\"\",\" \",'Risk - Yönetimi'!G49)","v":" "},{"$f":"IF('Risk - Yönetimi'!K49=\"\",\" \",'Risk - Yönetimi'!K49)","v":" "},{"$f":"IF('Risk - Yönetimi'!M49=\"\",\" \",'Risk - Yönetimi'!M49)","v":" "},{"$f":"IF('Risk - Yönetimi'!O49=\"\",\" \",'Risk - Yönetimi'!O49)","v":" "}]
[{"$f":"IF('Risk - Belirleme'!A50=\"\",\" \",'Risk - Belirleme'!A50)","v":" "},{"$f":"IF('Risk - Belirleme'!B50=\"\",\" \",'Risk - Belirleme'!B50)","v":" "},{"$f":"IF('Risk - Belirleme'!C50=\"\",\" \",'Risk - Belirleme'!C50)","v":" "},{"$f":"IF('Risk - Belirleme'!D50=\"\",\" \",'Risk - Belirleme'!D50)","v":" "},{"$f":"IF('Risk - Belirleme'!E50=\"\",\" \",'Risk - Belirleme'!E50)","v":" "},{"$f":"IF('Risk - Analizi'!I50=\"\",\" \",'Risk - Analizi'!I50)","v":" "},{"$f":"IF('Risk - Yönetimi'!D50=\"\",\" \",'Risk - Yönetimi'!D50)","v":" "},{"$f":"IF('Risk - Yönetimi'!E50=\"\",\" \",'Risk - Yönetimi'!E50)","v":" "},{"$f":"IF('Risk - Yönetimi'!F50=\"\",\" \",'Risk - Yönetimi'!F50)","v":" "},{"$f":"IF('Risk - Yönetimi'!G50=\"\",\" \",'Risk - Yönetimi'!G50)","v":" "},{"$f":"IF('Risk - Yönetimi'!K50=\"\",\" \",'Risk - Yönetimi'!K50)","v":" "},{"$f":"IF('Risk - Yönetimi'!M50=\"\",\" \",'Risk - Yönetimi'!M50)","v":" "},{"$f":"IF('Risk - Yönetimi'!O50=\"\",\" \",'Risk - Yönetimi'!O50)","v":" "}]
[{"$f":"IF('Risk - Belirleme'!A51=\"\",\" \",'Risk - Belirleme'!A51)","v":" "},{"$f":"IF('Risk - Belirleme'!B51=\"\",\" \",'Risk - Belirleme'!B51)","v":" "},{"$f":"IF('Risk - Belirleme'!C51=\"\",\" \",'Risk - Belirleme'!C51)","v":" "},{"$f":"IF('Risk - Belirleme'!D51=\"\",\" \",'Risk - Belirleme'!D51)","v":" "},{"$f":"IF('Risk - Belirleme'!E51=\"\",\" \",'Risk - Belirleme'!E51)","v":" "},{"$f":"IF('Risk - Analizi'!I51=\"\",\" \",'Risk - Analizi'!I51)","v":" "},{"$f":"IF('Risk - Yönetimi'!D51=\"\",\" \",'Risk - Yönetimi'!D51)","v":" "},{"$f":"IF('Risk - Yönetimi'!E51=\"\",\" \",'Risk - Yönetimi'!E51)","v":" "},{"$f":"IF('Risk - Yönetimi'!F51=\"\",\" \",'Risk - Yönetimi'!F51)","v":" "},{"$f":"IF('Risk - Yönetimi'!G51=\"\",\" \",'Risk - Yönetimi'!G51)","v":" "},{"$f":"IF('Risk - Yönetimi'!K51=\"\",\" \",'Risk - Yönetimi'!K51)","v":" "},{"$f":"IF('Risk - Yönetimi'!M51=\"\",\" \",'Risk - Yönetimi'!M51)","v":" "},{"$f":"IF('Risk - Yönetimi'!O51=\"\",\" \",'Risk - Yönetimi'!O51)","v":" "}]
[{"$f":"IF('Risk - Belirleme'!A52=\"\",\" \",'Risk - Belirleme'!A52)","v":" "},{"$f":"IF('Risk - Belirleme'!B52=\"\",\" \",'Risk - Belirleme'!B52)","v":" "},{"$f":"IF('Risk - Belirleme'!C52=\"\",\" \",'Risk - Belirleme'!C52)","v":" "},{"$f":"IF('Risk - Belirleme'!D52=\"\",\" \",'Risk - Belirleme'!D52)","v":" "},{"$f":"IF('Risk - Belirleme'!E52=\"\",\" \",'Risk - Belirleme'!E52)","v":" "},{"$f":"IF('Risk - Analizi'!I52=\"\",\" \",'Risk - Analizi'!I52)","v":" "},{"$f":"IF('Risk - Yönetimi'!D52=\"\",\" \",'Risk - Yönetimi'!D52)","v":" "},{"$f":"IF('Risk - Yönetimi'!E52=\"\",\" \",'Risk - Yönetimi'!E52)","v":" "},{"$f":"IF('Risk - Yönetimi'!F52=\"\",\" \",'Risk - Yönetimi'!F52)","v":" "},{"$f":"IF('Risk - Yönetimi'!G52=\"\",\" \",'Risk - Yönetimi'!G52)","v":" "},{"$f":"IF('Risk - Yönetimi'!K52=\"\",\" \",'Risk - Yönetimi'!K52)","v":" "},{"$f":"IF('Risk - Yönetimi'!M52=\"\",\" \",'Risk - Yönetimi'!M52)","v":" "},{"$f":"IF('Risk - Yönetimi'!O52=\"\",\" \",'Risk - Yönetimi'!O52)","v":" "}]
[{"$f":"IF('Risk - Belirleme'!A53=\"\",\" \",'Risk - Belirleme'!A53)","v":" "},{"$f":"IF('Risk - Belirleme'!B53=\"\",\" \",'Risk - Belirleme'!B53)","v":" "},{"$f":"IF('Risk - Belirleme'!C53=\"\",\" \",'Risk - Belirleme'!C53)","v":" "},{"$f":"IF('Risk - Belirleme'!D53=\"\",\" \",'Risk - Belirleme'!D53)","v":" "},{"$f":"IF('Risk - Belirleme'!E53=\"\",\" \",'Risk - Belirleme'!E53)","v":" "},{"$f":"IF('Risk - Analizi'!I53=\"\",\" \",'Risk - Analizi'!I53)","v":" "},{"$f":"IF('Risk - Yönetimi'!D53=\"\",\" \",'Risk - Yönetimi'!D53)","v":" "},{"$f":"IF('Risk - Yönetimi'!E53=\"\",\" \",'Risk - Yönetimi'!E53)","v":" "},{"$f":"IF('Risk - Yönetimi'!F53=\"\",\" \",'Risk - Yönetimi'!F53)","v":" "},{"$f":"IF('Risk - Yönetimi'!G53=\"\",\" \",'Risk - Yönetimi'!G53)","v":" "},{"$f":"IF('Risk - Yönetimi'!K53=\"\",\" \",'Risk - Yönetimi'!K53)","v":" "},{"$f":"IF('Risk - Yönetimi'!M53=\"\",\" \",'Risk - Yönetimi'!M53)","v":" "},{"$f":"IF('Risk - Yönetimi'!O53=\"\",\" \",'Risk - Yönetimi'!O53)","v":" "}]
[{"$f":"IF('Risk - Belirleme'!A54=\"\",\" \",'Risk - Belirleme'!A54)","v":" "},{"$f":"IF('Risk - Belirleme'!B54=\"\",\" \",'Risk - Belirleme'!B54)","v":" "},{"$f":"IF('Risk - Belirleme'!C54=\"\",\" \",'Risk - Belirleme'!C54)","v":" "},{"$f":"IF('Risk - Belirleme'!D54=\"\",\" \",'Risk - Belirleme'!D54)","v":" "},{"$f":"IF('Risk - Belirleme'!E54=\"\",\" \",'Risk - Belirleme'!E54)","v":" "},{"$f":"IF('Risk - Analizi'!I54=\"\",\" \",'Risk - Analizi'!I54)","v":" "},{"$f":"IF('Risk - Yönetimi'!D54=\"\",\" \",'Risk - Yönetimi'!D54)","v":" "},{"$f":"IF('Risk - Yönetimi'!E54=\"\",\" \",'Risk - Yönetimi'!E54)","v":" "},{"$f":"IF('Risk - Yönetimi'!F54=\"\",\" \",'Risk - Yönetimi'!F54)","v":" "},{"$f":"IF('Risk - Yönetimi'!G54=\"\",\" \",'Risk - Yönetimi'!G54)","v":" "},{"$f":"IF('Risk - Yönetimi'!K54=\"\",\" \",'Risk - Yönetimi'!K54)","v":" "},{"$f":"IF('Risk - Yönetimi'!M54=\"\",\" \",'Risk - Yönetimi'!M54)","v":" "},{"$f":"IF('Risk - Yönetimi'!O54=\"\",\" \",'Risk - Yönetimi'!O54)","v":" "}]
[{"$f":"IF('Risk - Belirleme'!A55=\"\",\" \",'Risk - Belirleme'!A55)","v":" "},{"$f":"IF('Risk - Belirleme'!B55=\"\",\" \",'Risk - Belirleme'!B55)","v":" "},{"$f":"IF('Risk - Belirleme'!C55=\"\",\" \",'Risk - Belirleme'!C55)","v":" "},{"$f":"IF('Risk - Belirleme'!D55=\"\",\" \",'Risk - Belirleme'!D55)","v":" "},{"$f":"IF('Risk - Belirleme'!E55=\"\",\" \",'Risk - Belirleme'!E55)","v":" "},{"$f":"IF('Risk - Analizi'!I55=\"\",\" \",'Risk - Analizi'!I55)","v":" "},{"$f":"IF('Risk - Yönetimi'!D55=\"\",\" \",'Risk - Yönetimi'!D55)","v":" "},{"$f":"IF('Risk - Yönetimi'!E55=\"\",\" \",'Risk - Yönetimi'!E55)","v":" "},{"$f":"IF('Risk - Yönetimi'!F55=\"\",\" \",'Risk - Yönetimi'!F55)","v":" "},{"$f":"IF('Risk - Yönetimi'!G55=\"\",\" \",'Risk - Yönetimi'!G55)","v":" "},{"$f":"IF('Risk - Yönetimi'!K55=\"\",\" \",'Risk - Yönetimi'!K55)","v":" "},{"$f":"IF('Risk - Yönetimi'!M55=\"\",\" \",'Risk - Yönetimi'!M55)","v":" "},{"$f":"IF('Risk - Yönetimi'!O55=\"\",\" \",'Risk - Yönetimi'!O55)","v":" "}]
[{"$f":"IF('Risk - Belirleme'!A56=\"\",\" \",'Risk - Belirleme'!A56)","v":" "},{"$f":"IF('Risk - Belirleme'!B56=\"\",\" \",'Risk - Belirleme'!B56)","v":" "},{"$f":"IF('Risk - Belirleme'!C56=\"\",\" \",'Risk - Belirleme'!C56)","v":" "},{"$f":"IF('Risk - Belirleme'!D56=\"\",\" \",'Risk - Belirleme'!D56)","v":" "},{"$f":"IF('Risk - Belirleme'!E56=\"\",\" \",'Risk - Belirleme'!E56)","v":" "},{"$f":"IF('Risk - Analizi'!I56=\"\",\" \",'Risk - Analizi'!I56)","v":" "},{"$f":"IF('Risk - Yönetimi'!D56=\"\",\" \",'Risk - Yönetimi'!D56)","v":" "},{"$f":"IF('Risk - Yönetimi'!E56=\"\",\" \",'Risk - Yönetimi'!E56)","v":" "},{"$f":"IF('Risk - Yönetimi'!F56=\"\",\" \",'Risk - Yönetimi'!F56)","v":" "},{"$f":"IF('Risk - Yönetimi'!G56=\"\",\" \",'Risk - Yönetimi'!G56)","v":" "},{"$f":"IF('Risk - Yönetimi'!K56=\"\",\" \",'Risk - Yönetimi'!K56)","v":" "},{"$f":"IF('Risk - Yönetimi'!M56=\"\",\" \",'Risk - Yönetimi'!M56)","v":" "},{"$f":"IF('Risk - Yönetimi'!O56=\"\",\" \",'Risk - Yönetimi'!O56)","v":" "}]
[{"$f":"IF('Risk - Belirleme'!A57=\"\",\" \",'Risk - Belirleme'!A57)","v":" "},{"$f":"IF('Risk - Belirleme'!B57=\"\",\" \",'Risk - Belirleme'!B57)","v":" "},{"$f":"IF('Risk - Belirleme'!C57=\"\",\" \",'Risk - Belirleme'!C57)","v":" "},{"$f":"IF('Risk - Belirleme'!D57=\"\",\" \",'Risk - Belirleme'!D57)","v":" "},{"$f":"IF('Risk - Belirleme'!E57=\"\",\" \",'Risk - Belirleme'!E57)","v":" "},{"$f":"IF('Risk - Analizi'!I57=\"\",\" \",'Risk - Analizi'!I57)","v":" "},{"$f":"IF('Risk - Yönetimi'!D57=\"\",\" \",'Risk - Yönetimi'!D57)","v":" "},{"$f":"IF('Risk - Yönetimi'!E57=\"\",\" \",'Risk - Yönetimi'!E57)","v":" "},{"$f":"IF('Risk - Yönetimi'!F57=\"\",\" \",'Risk - Yönetimi'!F57)","v":" "},{"$f":"IF('Risk - Yönetimi'!G57=\"\",\" \",'Risk - Yönetimi'!G57)","v":" "},{"$f":"IF('Risk - Yönetimi'!K57=\"\",\" \",'Risk - Yönetimi'!K57)","v":" "},{"$f":"IF('Risk - Yönetimi'!M57=\"\",\" \",'Risk - Yönetimi'!M57)","v":" "},{"$f":"IF('Risk - Yönetimi'!O57=\"\",\" \",'Risk - Yönetimi'!O57)","v":" "}]
[{"$f":"IF('Risk - Belirleme'!A58=\"\",\" \",'Risk - Belirleme'!A58)","v":" "},{"$f":"IF('Risk - Belirleme'!B58=\"\",\" \",'Risk - Belirleme'!B58)","v":" "},{"$f":"IF('Risk - Belirleme'!C58=\"\",\" \",'Risk - Belirleme'!C58)","v":" "},{"$f":"IF('Risk - Belirleme'!D58=\"\",\" \",'Risk - Belirleme'!D58)","v":" "},{"$f":"IF('Risk - Belirleme'!E58=\"\",\" \",'Risk - Belirleme'!E58)","v":" "},{"$f":"IF('Risk - Analizi'!I58=\"\",\" \",'Risk - Analizi'!I58)","v":" "},{"$f":"IF('Risk - Yönetimi'!D58=\"\",\" \",'Risk - Yönetimi'!D58)","v":" "},{"$f":"IF('Risk - Yönetimi'!E58=\"\",\" \",'Risk - Yönetimi'!E58)","v":" "},{"$f":"IF('Risk - Yönetimi'!F58=\"\",\" \",'Risk - Yönetimi'!F58)","v":" "},{"$f":"IF('Risk - Yönetimi'!G58=\"\",\" \",'Risk - Yönetimi'!G58)","v":" "},{"$f":"IF('Risk - Yönetimi'!K58=\"\",\" \",'Risk - Yönetimi'!K58)","v":" "},{"$f":"IF('Risk - Yönetimi'!M58=\"\",\" \",'Risk - Yönetimi'!M58)","v":" "},{"$f":"IF('Risk - Yönetimi'!O58=\"\",\" \",'Risk - Yönetimi'!O58)","v":" "}]
[{"$f":"IF('Risk - Belirleme'!A59=\"\",\" \",'Risk - Belirleme'!A59)","v":" "},{"$f":"IF('Risk - Belirleme'!B59=\"\",\" \",'Risk - Belirleme'!B59)","v":" "},{"$f":"IF('Risk - Belirleme'!C59=\"\",\" \",'Risk - Belirleme'!C59)","v":" "},{"$f":"IF('Risk - Belirleme'!D59=\"\",\" \",'Risk - Belirleme'!D59)","v":" "},{"$f":"IF('Risk - Belirleme'!E59=\"\",\" \",'Risk - Belirleme'!E59)","v":" "},{"$f":"IF('Risk - Analizi'!I59=\"\",\" \",'Risk - Analizi'!I59)","v":" "},{"$f":"IF('Risk - Yönetimi'!D59=\"\",\" \",'Risk - Yönetimi'!D59)","v":" "},{"$f":"IF('Risk - Yönetimi'!E59=\"\",\" \",'Risk - Yönetimi'!E59)","v":" "},{"$f":"IF('Risk - Yönetimi'!F59=\"\",\" \",'Risk - Yönetimi'!F59)","v":" "},{"$f":"IF('Risk - Yönetimi'!G59=\"\",\" \",'Risk - Yönetimi'!G59)","v":" "},{"$f":"IF('Risk - Yönetimi'!K59=\"\",\" \",'Risk - Yönetimi'!K59)","v":" "},{"$f":"IF('Risk - Yönetimi'!M59=\"\",\" \",'Risk - Yönetimi'!M59)","v":" "},{"$f":"IF('Risk - Yönetimi'!O59=\"\",\" \",'Risk - Yönetimi'!O59)","v":" "}]
[{"$f":"IF('Risk - Belirleme'!A60=\"\",\" \",'Risk - Belirleme'!A60)","v":" "},{"$f":"IF('Risk - Belirleme'!B60=\"\",\" \",'Risk - Belirleme'!B60)","v":" "},{"$f":"IF('Risk - Belirleme'!C60=\"\",\" \",'Risk - Belirleme'!C60)","v":" "},{"$f":"IF('Risk - Belirleme'!D60=\"\",\" \",'Risk - Belirleme'!D60)","v":" "},{"$f":"IF('Risk - Belirleme'!E60=\"\",\" \",'Risk - Belirleme'!E60)","v":" "},{"$f":"IF('Risk - Analizi'!I60=\"\",\" \",'Risk - Analizi'!I60)","v":" "},{"$f":"IF('Risk - Yönetimi'!D60=\"\",\" \",'Risk - Yönetimi'!D60)","v":" "},{"$f":"IF('Risk - Yönetimi'!E60=\"\",\" \",'Risk - Yönetimi'!E60)","v":" "},{"$f":"IF('Risk - Yönetimi'!F60=\"\",\" \",'Risk - Yönetimi'!F60)","v":" "},{"$f":"IF('Risk - Yönetimi'!G60=\"\",\" \",'Risk - Yönetimi'!G60)","v":" "},{"$f":"IF('Risk - Yönetimi'!K60=\"\",\" \",'Risk - Yönetimi'!K60)","v":" "},{"$f":"IF('Risk - Yönetimi'!M60=\"\",\" \",'Risk - Yönetimi'!M60)","v":" "},{"$f":"IF('Risk - Yönetimi'!O60=\"\",\" \",'Risk - Yönetimi'!O60)","v":" "}]
[{"$f":"IF('Risk - Belirleme'!A61=\"\",\" \",'Risk - Belirleme'!A61)","v":" "},{"$f":"IF('Risk - Belirleme'!B61=\"\",\" \",'Risk - Belirleme'!B61)","v":" "},{"$f":"IF('Risk - Belirleme'!C61=\"\",\" \",'Risk - Belirleme'!C61)","v":" "},{"$f":"IF('Risk - Belirleme'!D61=\"\",\" \",'Risk - Belirleme'!D61)","v":" "},{"$f":"IF('Risk - Belirleme'!E61=\"\",\" \",'Risk - Belirleme'!E61)","v":" "},{"$f":"IF('Risk - Analizi'!I61=\"\",\" \",'Risk - Analizi'!I61)","v":" "},{"$f":"IF('Risk - Yönetimi'!D61=\"\",\" \",'Risk - Yönetimi'!D61)","v":" "},{"$f":"IF('Risk - Yönetimi'!E61=\"\",\" \",'Risk - Yönetimi'!E61)","v":" "},{"$f":"IF('Risk - Yönetimi'!F61=\"\",\" \",'Risk - Yönetimi'!F61)","v":" "},{"$f":"IF('Risk - Yönetimi'!G61=\"\",\" \",'Risk - Yönetimi'!G61)","v":" "},{"$f":"IF('Risk - Yönetimi'!K61=\"\",\" \",'Risk - Yönetimi'!K61)","v":" "},{"$f":"IF('Risk - Yönetimi'!M61=\"\",\" \",'Risk - Yönetimi'!M61)","v":" "},{"$f":"IF('Risk - Yönetimi'!O61=\"\",\" \",'Risk - Yönetimi'!O61)","v":" "}]
[{"$f":"IF('Risk - Belirleme'!A62=\"\",\" \",'Risk - Belirleme'!A62)","v":" "},{"$f":"IF('Risk - Belirleme'!B62=\"\",\" \",'Risk - Belirleme'!B62)","v":" "},{"$f":"IF('Risk - Belirleme'!C62=\"\",\" \",'Risk - Belirleme'!C62)","v":" "},{"$f":"IF('Risk - Belirleme'!D62=\"\",\" \",'Risk - Belirleme'!D62)","v":" "},{"$f":"IF('Risk - Belirleme'!E62=\"\",\" \",'Risk - Belirleme'!E62)","v":" "},{"$f":"IF('Risk - Analizi'!I62=\"\",\" \",'Risk - Analizi'!I62)","v":" "},{"$f":"IF('Risk - Yönetimi'!D62=\"\",\" \",'Risk - Yönetimi'!D62)","v":" "},{"$f":"IF('Risk - Yönetimi'!E62=\"\",\" \",'Risk - Yönetimi'!E62)","v":" "},{"$f":"IF('Risk - Yönetimi'!F62=\"\",\" \",'Risk - Yönetimi'!F62)","v":" "},{"$f":"IF('Risk - Yönetimi'!G62=\"\",\" \",'Risk - Yönetimi'!G62)","v":" "},{"$f":"IF('Risk - Yönetimi'!K62=\"\",\" \",'Risk - Yönetimi'!K62)","v":" "},{"$f":"IF('Risk - Yönetimi'!M62=\"\",\" \",'Risk - Yönetimi'!M62)","v":" "},{"$f":"IF('Risk - Yönetimi'!O62=\"\",\" \",'Risk - Yönetimi'!O62)","v":" "}]
[{"$f":"IF('Risk - Belirleme'!A63=\"\",\" \",'Risk - Belirleme'!A63)","v":" "},{"$f":"IF('Risk - Belirleme'!B63=\"\",\" \",'Risk - Belirleme'!B63)","v":" "},{"$f":"IF('Risk - Belirleme'!C63=\"\",\" \",'Risk - Belirleme'!C63)","v":" "},{"$f":"IF('Risk - Belirleme'!D63=\"\",\" \",'Risk - Belirleme'!D63)","v":" "},{"$f":"IF('Risk - Belirleme'!E63=\"\",\" \",'Risk - Belirleme'!E63)","v":" "},{"$f":"IF('Risk - Analizi'!I63=\"\",\" \",'Risk - Analizi'!I63)","v":" "},{"$f":"IF('Risk - Yönetimi'!D63=\"\",\" \",'Risk - Yönetimi'!D63)","v":" "},{"$f":"IF('Risk - Yönetimi'!E63=\"\",\" \",'Risk - Yönetimi'!E63)","v":" "},{"$f":"IF('Risk - Yönetimi'!F63=\"\",\" \",'Risk - Yönetimi'!F63)","v":" "},{"$f":"IF('Risk - Yönetimi'!G63=\"\",\" \",'Risk - Yönetimi'!G63)","v":" "},{"$f":"IF('Risk - Yönetimi'!K63=\"\",\" \",'Risk - Yönetimi'!K63)","v":" "},{"$f":"IF('Risk - Yönetimi'!M63=\"\",\" \",'Risk - Yönetimi'!M63)","v":" "},{"$f":"IF('Risk - Yönetimi'!O63=\"\",\" \",'Risk - Yönetimi'!O63)","v":" "}]
[{"$f":"IF('Risk - Belirleme'!A64=\"\",\" \",'Risk - Belirleme'!A64)","v":" "},{"$f":"IF('Risk - Belirleme'!B64=\"\",\" \",'Risk - Belirleme'!B64)","v":" "},{"$f":"IF('Risk - Belirleme'!C64=\"\",\" \",'Risk - Belirleme'!C64)","v":" "},{"$f":"IF('Risk - Belirleme'!D64=\"\",\" \",'Risk - Belirleme'!D64)","v":" "},{"$f":"IF('Risk - Belirleme'!E64=\"\",\" \",'Risk - Belirleme'!E64)","v":" "},{"$f":"IF('Risk - Analizi'!I64=\"\",\" \",'Risk - Analizi'!I64)","v":" "},{"$f":"IF('Risk - Yönetimi'!D64=\"\",\" \",'Risk - Yönetimi'!D64)","v":" "},{"$f":"IF('Risk - Yönetimi'!E64=\"\",\" \",'Risk - Yönetimi'!E64)","v":" "},{"$f":"IF('Risk - Yönetimi'!F64=\"\",\" \",'Risk - Yönetimi'!F64)","v":" "},{"$f":"IF('Risk - Yönetimi'!G64=\"\",\" \",'Risk - Yönetimi'!G64)","v":" "},{"$f":"IF('Risk - Yönetimi'!K64=\"\",\" \",'Risk - Yönetimi'!K64)","v":" "},{"$f":"IF('Risk - Yönetimi'!M64=\"\",\" \",'Risk - Yönetimi'!M64)","v":" "},{"$f":"IF('Risk - Yönetimi'!O64=\"\",\" \",'Risk - Yönetimi'!O64)","v":" "}]
[{"$f":"IF('Risk - Belirleme'!A65=\"\",\" \",'Risk - Belirleme'!A65)","v":" "},{"$f":"IF('Risk - Belirleme'!B65=\"\",\" \",'Risk - Belirleme'!B65)","v":" "},{"$f":"IF('Risk - Belirleme'!C65=\"\",\" \",'Risk - Belirleme'!C65)","v":" "},{"$f":"IF('Risk - Belirleme'!D65=\"\",\" \",'Risk - Belirleme'!D65)","v":" "},{"$f":"IF('Risk - Belirleme'!E65=\"\",\" \",'Risk - Belirleme'!E65)","v":" "},{"$f":"IF('Risk - Analizi'!I65=\"\",\" \",'Risk - Analizi'!I65)","v":" "},{"$f":"IF('Risk - Yönetimi'!D65=\"\",\" \",'Risk - Yönetimi'!D65)","v":" "},{"$f":"IF('Risk - Yönetimi'!E65=\"\",\" \",'Risk - Yönetimi'!E65)","v":" "},{"$f":"IF('Risk - Yönetimi'!F65=\"\",\" \",'Risk - Yönetimi'!F65)","v":" "},{"$f":"IF('Risk - Yönetimi'!G65=\"\",\" \",'Risk - Yönetimi'!G65)","v":" "},{"$f":"IF('Risk - Yönetimi'!K65=\"\",\" \",'Risk - Yönetimi'!K65)","v":" "},{"$f":"IF('Risk - Yönetimi'!M65=\"\",\" \",'Risk - Yönetimi'!M65)","v":" "},{"$f":"IF('Risk - Yönetimi'!O65=\"\",\" \",'Risk - Yönetimi'!O65)","v":" "}]
[{"$f":"IF('Risk - Belirleme'!A66=\"\",\" \",'Risk - Belirleme'!A66)","v":" "},{"$f":"IF('Risk - Belirleme'!B66=\"\",\" \",'Risk - Belirleme'!B66)","v":" "},{"$f":"IF('Risk - Belirleme'!C66=\"\",\" \",'Risk - Belirleme'!C66)","v":" "},{"$f":"IF('Risk - Belirleme'!D66=\"\",\" \",'Risk - Belirleme'!D66)","v":" "},{"$f":"IF('Risk - Belirleme'!E66=\"\",\" \",'Risk - Belirleme'!E66)","v":" "},{"$f":"IF('Risk - Analizi'!I66=\"\",\" \",'Risk - Analizi'!I66)","v":" "},{"$f":"IF('Risk - Yönetimi'!D66=\"\",\" \",'Risk - Yönetimi'!D66)","v":" "},{"$f":"IF('Risk - Yönetimi'!E66=\"\",\" \",'Risk - Yönetimi'!E66)","v":" "},{"$f":"IF('Risk - Yönetimi'!F66=\"\",\" \",'Risk - Yönetimi'!F66)","v":" "},{"$f":"IF('Risk - Yönetimi'!G66=\"\",\" \",'Risk - Yönetimi'!G66)","v":" "},{"$f":"IF('Risk - Yönetimi'!K66=\"\",\" \",'Risk - Yönetimi'!K66)","v":" "},{"$f":"IF('Risk - Yönetimi'!M66=\"\",\" \",'Risk - Yönetimi'!M66)","v":" "},{"$f":"IF('Risk - Yönetimi'!O66=\"\",\" \",'Risk - Yönetimi'!O66)","v":" "}]
[{"$f":"IF('Risk - Belirleme'!A67=\"\",\" \",'Risk - Belirleme'!A67)","v":" "},{"$f":"IF('Risk - Belirleme'!B67=\"\",\" \",'Risk - Belirleme'!B67)","v":" "},{"$f":"IF('Risk - Belirleme'!C67=\"\",\" \",'Risk - Belirleme'!C67)","v":" "},{"$f":"IF('Risk - Belirleme'!D67=\"\",\" \",'Risk - Belirleme'!D67)","v":" "},{"$f":"IF('Risk - Belirleme'!E67=\"\",\" \",'Risk - Belirleme'!E67)","v":" "},{"$f":"IF('Risk - Analizi'!I67=\"\",\" \",'Risk - Analizi'!I67)","v":" "},{"$f":"IF('Risk - Yönetimi'!D67=\"\",\" \",'Risk - Yönetimi'!D67)","v":" "},{"$f":"IF('Risk - Yönetimi'!E67=\"\",\" \",'Risk - Yönetimi'!E67)","v":" "},{"$f":"IF('Risk - Yönetimi'!F67=\"\",\" \",'Risk - Yönetimi'!F67)","v":" "},{"$f":"IF('Risk - Yönetimi'!G67=\"\",\" \",'Risk - Yönetimi'!G67)","v":" "},{"$f":"IF('Risk - Yönetimi'!K67=\"\",\" \",'Risk - Yönetimi'!K67)","v":" "},{"$f":"IF('Risk - Yönetimi'!M67=\"\",\" \",'Risk - Yönetimi'!M67)","v":" "},{"$f":"IF('Risk - Yönetimi'!O67=\"\",\" \",'Risk - Yönetimi'!O67)","v":" "}]
[{"$f":"IF('Risk - Belirleme'!A68=\"\",\" \",'Risk - Belirleme'!A68)","v":" "},{"$f":"IF('Risk - Belirleme'!B68=\"\",\" \",'Risk - Belirleme'!B68)","v":" "},{"$f":"IF('Risk - Belirleme'!C68=\"\",\" \",'Risk - Belirleme'!C68)","v":" "},{"$f":"IF('Risk - Belirleme'!D68=\"\",\" \",'Risk - Belirleme'!D68)","v":" "},{"$f":"IF('Risk - Belirleme'!E68=\"\",\" \",'Risk - Belirleme'!E68)","v":" "},{"$f":"IF('Risk - Analizi'!I68=\"\",\" \",'Risk - Analizi'!I68)","v":" "},{"$f":"IF('Risk - Yönetimi'!D68=\"\",\" \",'Risk - Yönetimi'!D68)","v":" "},{"$f":"IF('Risk - Yönetimi'!E68=\"\",\" \",'Risk - Yönetimi'!E68)","v":" "},{"$f":"IF('Risk - Yönetimi'!F68=\"\",\" \",'Risk - Yönetimi'!F68)","v":" "},{"$f":"IF('Risk - Yönetimi'!G68=\"\",\" \",'Risk - Yönetimi'!G68)","v":" "},{"$f":"IF('Risk - Yönetimi'!K68=\"\",\" \",'Risk - Yönetimi'!K68)","v":" "},{"$f":"IF('Risk - Yönetimi'!M68=\"\",\" \",'Risk - Yönetimi'!M68)","v":" "},{"$f":"IF('Risk - Yönetimi'!O68=\"\",\" \",'Risk - Yönetimi'!O68)","v":" "}]
[{"$f":"IF('Risk - Belirleme'!A69=\"\",\" \",'Risk - Belirleme'!A69)","v":" "},{"$f":"IF('Risk - Belirleme'!B69=\"\",\" \",'Risk - Belirleme'!B69)","v":" "},{"$f":"IF('Risk - Belirleme'!C69=\"\",\" \",'Risk - Belirleme'!C69)","v":" "},{"$f":"IF('Risk - Belirleme'!D69=\"\",\" \",'Risk - Belirleme'!D69)","v":" "},{"$f":"IF('Risk - Belirleme'!E69=\"\",\" \",'Risk - Belirleme'!E69)","v":" "},{"$f":"IF('Risk - Analizi'!I69=\"\",\" \",'Risk - Analizi'!I69)","v":" "},{"$f":"IF('Risk - Yönetimi'!D69=\"\",\" \",'Risk - Yönetimi'!D69)","v":" "},{"$f":"IF('Risk - Yönetimi'!E69=\"\",\" \",'Risk - Yönetimi'!E69)","v":" "},{"$f":"IF('Risk - Yönetimi'!F69=\"\",\" \",'Risk - Yönetimi'!F69)","v":" "},{"$f":"IF('Risk - Yönetimi'!G69=\"\",\" \",'Risk - Yönetimi'!G69)","v":" "},{"$f":"IF('Risk - Yönetimi'!K69=\"\",\" \",'Risk - Yönetimi'!K69)","v":" "},{"$f":"IF('Risk - Yönetimi'!M69=\"\",\" \",'Risk - Yönetimi'!M69)","v":" "},{"$f":"IF('Risk - Yönetimi'!O69=\"\",\" \",'Risk - Yönetimi'!O69)","v":" "}]
[{"$f":"IF('Risk - Belirleme'!A70=\"\",\" \",'Risk - Belirleme'!A70)","v":" "},{"$f":"IF('Risk - Belirleme'!B70=\"\",\" \",'Risk - Belirleme'!B70)","v":" "},{"$f":"IF('Risk - Belirleme'!C70=\"\",\" \",'Risk - Belirleme'!C70)","v":" "},{"$f":"IF('Risk - Belirleme'!D70=\"\",\" \",'Risk - Belirleme'!D70)","v":" "},{"$f":"IF('Risk - Belirleme'!E70=\"\",\" \",'Risk - Belirleme'!E70)","v":" "},{"$f":"IF('Risk - Analizi'!I70=\"\",\" \",'Risk - Analizi'!I70)","v":" "},{"$f":"IF('Risk - Yönetimi'!D70=\"\",\" \",'Risk - Yönetimi'!D70)","v":" "},{"$f":"IF('Risk - Yönetimi'!E70=\"\",\" \",'Risk - Yönetimi'!E70)","v":" "},{"$f":"IF('Risk - Yönetimi'!F70=\"\",\" \",'Risk - Yönetimi'!F70)","v":" "},{"$f":"IF('Risk - Yönetimi'!G70=\"\",\" \",'Risk - Yönetimi'!G70)","v":" "},{"$f":"IF('Risk - Yönetimi'!K70=\"\",\" \",'Risk - Yönetimi'!K70)","v":" "},{"$f":"IF('Risk - Yönetimi'!M70=\"\",\" \",'Risk - Yönetimi'!M70)","v":" "},{"$f":"IF('Risk - Yönetimi'!O70=\"\",\" \",'Risk - Yönetimi'!O70)","v":" "}]
[{"$f":"IF('Risk - Belirleme'!A71=\"\",\" \",'Risk - Belirleme'!A71)","v":" "},{"$f":"IF('Risk - Belirleme'!B71=\"\",\" \",'Risk - Belirleme'!B71)","v":" "},{"$f":"IF('Risk - Belirleme'!C71=\"\",\" \",'Risk - Belirleme'!C71)","v":" "},{"$f":"IF('Risk - Belirleme'!D71=\"\",\" \",'Risk - Belirleme'!D71)","v":" "},{"$f":"IF('Risk - Belirleme'!E71=\"\",\" \",'Risk - Belirleme'!E71)","v":" "},{"$f":"IF('Risk - Analizi'!I71=\"\",\" \",'Risk - Analizi'!I71)","v":" "},{"$f":"IF('Risk - Yönetimi'!D71=\"\",\" \",'Risk - Yönetimi'!D71)","v":" "},{"$f":"IF('Risk - Yönetimi'!E71=\"\",\" \",'Risk - Yönetimi'!E71)","v":" "},{"$f":"IF('Risk - Yönetimi'!F71=\"\",\" \",'Risk - Yönetimi'!F71)","v":" "},{"$f":"IF('Risk - Yönetimi'!G71=\"\",\" \",'Risk - Yönetimi'!G71)","v":" "},{"$f":"IF('Risk - Yönetimi'!K71=\"\",\" \",'Risk - Yönetimi'!K71)","v":" "},{"$f":"IF('Risk - Yönetimi'!M71=\"\",\" \",'Risk - Yönetimi'!M71)","v":" "},{"$f":"IF('Risk - Yönetimi'!O71=\"\",\" \",'Risk - Yönetimi'!O71)","v":" "}]
[{"$f":"IF('Risk - Belirleme'!A72=\"\",\" \",'Risk - Belirleme'!A72)","v":" "},{"$f":"IF('Risk - Belirleme'!B72=\"\",\" \",'Risk - Belirleme'!B72)","v":" "},{"$f":"IF('Risk - Belirleme'!C72=\"\",\" \",'Risk - Belirleme'!C72)","v":" "},{"$f":"IF('Risk - Belirleme'!D72=\"\",\" \",'Risk - Belirleme'!D72)","v":" "},{"$f":"IF('Risk - Belirleme'!E72=\"\",\" \",'Risk - Belirleme'!E72)","v":" "},{"$f":"IF('Risk - Analizi'!I72=\"\",\" \",'Risk - Analizi'!I72)","v":" "},{"$f":"IF('Risk - Yönetimi'!D72=\"\",\" \",'Risk - Yönetimi'!D72)","v":" "},{"$f":"IF('Risk - Yönetimi'!E72=\"\",\" \",'Risk - Yönetimi'!E72)","v":" "},{"$f":"IF('Risk - Yönetimi'!F72=\"\",\" \",'Risk - Yönetimi'!F72)","v":" "},{"$f":"IF('Risk - Yönetimi'!G72=\"\",\" \",'Risk - Yönetimi'!G72)","v":" "},{"$f":"IF('Risk - Yönetimi'!K72=\"\",\" \",'Risk - Yönetimi'!K72)","v":" "},{"$f":"IF('Risk - Yönetimi'!M72=\"\",\" \",'Risk - Yönetimi'!M72)","v":" "},{"$f":"IF('Risk - Yönetimi'!O72=\"\",\" \",'Risk - Yönetimi'!O72)","v":" "}]
[{"$f":"IF('Risk - Belirleme'!A73=\"\",\" \",'Risk - Belirleme'!A73)","v":" "},{"$f":"IF('Risk - Belirleme'!B73=\"\",\" \",'Risk - Belirleme'!B73)","v":" "},{"$f":"IF('Risk - Belirleme'!C73=\"\",\" \",'Risk - Belirleme'!C73)","v":" "},{"$f":"IF('Risk - Belirleme'!D73=\"\",\" \",'Risk - Belirleme'!D73)","v":" "},{"$f":"IF('Risk - Belirleme'!E73=\"\",\" \",'Risk - Belirleme'!E73)","v":" "},{"$f":"IF('Risk - Analizi'!I73=\"\",\" \",'Risk - Analizi'!I73)","v":" "},{"$f":"IF('Risk - Yönetimi'!D73=\"\",\" \",'Risk - Yönetimi'!D73)","v":" "},{"$f":"IF('Risk - Yönetimi'!E73=\"\",\" \",'Risk - Yönetimi'!E73)","v":" "},{"$f":"IF('Risk - Yönetimi'!F73=\"\",\" \",'Risk - Yönetimi'!F73)","v":" "},{"$f":"IF('Risk - Yönetimi'!G73=\"\",\" \",'Risk - Yönetimi'!G73)","v":" "},{"$f":"IF('Risk - Yönetimi'!K73=\"\",\" \",'Risk - Yönetimi'!K73)","v":" "},{"$f":"IF('Risk - Yönetimi'!M73=\"\",\" \",'Risk - Yönetimi'!M73)","v":" "},{"$f":"IF('Risk - Yönetimi'!O73=\"\",\" \",'Risk - Yönetimi'!O73)","v":" "}]
[{"$f":"IF('Risk - Belirleme'!A74=\"\",\" \",'Risk - Belirleme'!A74)","v":" "},{"$f":"IF('Risk - Belirleme'!B74=\"\",\" \",'Risk - Belirleme'!B74)","v":" "},{"$f":"IF('Risk - Belirleme'!C74=\"\",\" \",'Risk - Belirleme'!C74)","v":" "},{"$f":"IF('Risk - Belirleme'!D74=\"\",\" \",'Risk - Belirleme'!D74)","v":" "},{"$f":"IF('Risk - Belirleme'!E74=\"\",\" \",'Risk - Belirleme'!E74)","v":" "},{"$f":"IF('Risk - Analizi'!I74=\"\",\" \",'Risk - Analizi'!I74)","v":" "},{"$f":"IF('Risk - Yönetimi'!D74=\"\",\" \",'Risk - Yönetimi'!D74)","v":" "},{"$f":"IF('Risk - Yönetimi'!E74=\"\",\" \",'Risk - Yönetimi'!E74)","v":" "},{"$f":"IF('Risk - Yönetimi'!F74=\"\",\" \",'Risk - Yönetimi'!F74)","v":" "},{"$f":"IF('Risk - Yönetimi'!G74=\"\",\" \",'Risk - Yönetimi'!G74)","v":" "},{"$f":"IF('Risk - Yönetimi'!K74=\"\",\" \",'Risk - Yönetimi'!K74)","v":" "},{"$f":"IF('Risk - Yönetimi'!M74=\"\",\" \",'Risk - Yönetimi'!M74)","v":" "},{"$f":"IF('Risk - Yönetimi'!O74=\"\",\" \",'Risk - Yönetimi'!O74)","v":" "}]
[{"$f":"IF('Risk - Belirleme'!A75=\"\",\" \",'Risk - Belirleme'!A75)","v":" "},{"$f":"IF('Risk - Belirleme'!B75=\"\",\" \",'Risk - Belirleme'!B75)","v":" "},{"$f":"IF('Risk - Belirleme'!C75=\"\",\" \",'Risk - Belirleme'!C75)","v":" "},{"$f":"IF('Risk - Belirleme'!D75=\"\",\" \",'Risk - Belirleme'!D75)","v":" "},{"$f":"IF('Risk - Belirleme'!E75=\"\",\" \",'Risk - Belirleme'!E75)","v":" "},{"$f":"IF('Risk - Analizi'!I75=\"\",\" \",'Risk - Analizi'!I75)","v":" "},{"$f":"IF('Risk - Yönetimi'!D75=\"\",\" \",'Risk - Yönetimi'!D75)","v":" "},{"$f":"IF('Risk - Yönetimi'!E75=\"\",\" \",'Risk - Yönetimi'!E75)","v":" "},{"$f":"IF('Risk - Yönetimi'!F75=\"\",\" \",'Risk - Yönetimi'!F75)","v":" "},{"$f":"IF('Risk - Yönetimi'!G75=\"\",\" \",'Risk - Yönetimi'!G75)","v":" "},{"$f":"IF('Risk - Yönetimi'!K75=\"\",\" \",'Risk - Yönetimi'!K75)","v":" "},{"$f":"IF('Risk - Yönetimi'!M75=\"\",\" \",'Risk - Yönetimi'!M75)","v":" "},{"$f":"IF('Risk - Yönetimi'!O75=\"\",\" \",'Risk - Yönetimi'!O75)","v":" "}]
[{"$f":"IF('Risk - Belirleme'!A76=\"\",\" \",'Risk - Belirleme'!A76)","v":" "},{"$f":"IF('Risk - Belirleme'!B76=\"\",\" \",'Risk - Belirleme'!B76)","v":" "},{"$f":"IF('Risk - Belirleme'!C76=\"\",\" \",'Risk - Belirleme'!C76)","v":" "},{"$f":"IF('Risk - Belirleme'!D76=\"\",\" \",'Risk - Belirleme'!D76)","v":" "},{"$f":"IF('Risk - Belirleme'!E76=\"\",\" \",'Risk - Belirleme'!E76)","v":" "},{"$f":"IF('Risk - Analizi'!I76=\"\",\" \",'Risk - Analizi'!I76)","v":" "},{"$f":"IF('Risk - Yönetimi'!D76=\"\",\" \",'Risk - Yönetimi'!D76)","v":" "},{"$f":"IF('Risk - Yönetimi'!E76=\"\",\" \",'Risk - Yönetimi'!E76)","v":" "},{"$f":"IF('Risk - Yönetimi'!F76=\"\",\" \",'Risk - Yönetimi'!F76)","v":" "},{"$f":"IF('Risk - Yönetimi'!G76=\"\",\" \",'Risk - Yönetimi'!G76)","v":" "},{"$f":"IF('Risk - Yönetimi'!K76=\"\",\" \",'Risk - Yönetimi'!K76)","v":" "},{"$f":"IF('Risk - Yönetimi'!M76=\"\",\" \",'Risk - Yönetimi'!M76)","v":" "},{"$f":"IF('Risk - Yönetimi'!O76=\"\",\" \",'Risk - Yönetimi'!O76)","v":" "}]
[{"$f":"IF('Risk - Belirleme'!A77=\"\",\" \",'Risk - Belirleme'!A77)","v":" "},{"$f":"IF('Risk - Belirleme'!B77=\"\",\" \",'Risk - Belirleme'!B77)","v":" "},{"$f":"IF('Risk - Belirleme'!C77=\"\",\" \",'Risk - Belirleme'!C77)","v":" "},{"$f":"IF('Risk - Belirleme'!D77=\"\",\" \",'Risk - Belirleme'!D77)","v":" "},{"$f":"IF('Risk - Belirleme'!E77=\"\",\" \",'Risk - Belirleme'!E77)","v":" "},{"$f":"IF('Risk - Analizi'!I77=\"\",\" \",'Risk - Analizi'!I77)","v":" "},{"$f":"IF('Risk - Yönetimi'!D77=\"\",\" \",'Risk - Yönetimi'!D77)","v":" "},{"$f":"IF('Risk - Yönetimi'!E77=\"\",\" \",'Risk - Yönetimi'!E77)","v":" "},{"$f":"IF('Risk - Yönetimi'!F77=\"\",\" \",'Risk - Yönetimi'!F77)","v":" "},{"$f":"IF('Risk - Yönetimi'!G77=\"\",\" \",'Risk - Yönetimi'!G77)","v":" "},{"$f":"IF('Risk - Yönetimi'!K77=\"\",\" \",'Risk - Yönetimi'!K77)","v":" "},{"$f":"IF('Risk - Yönetimi'!M77=\"\",\" \",'Risk - Yönetimi'!M77)","v":" "},{"$f":"IF('Risk - Yönetimi'!O77=\"\",\" \",'Risk - Yönetimi'!O77)","v":" "}]
[{"$f":"IF('Risk - Belirleme'!A78=\"\",\" \",'Risk - Belirleme'!A78)","v":" "},{"$f":"IF('Risk - Belirleme'!B78=\"\",\" \",'Risk - Belirleme'!B78)","v":" "},{"$f":"IF('Risk - Belirleme'!C78=\"\",\" \",'Risk - Belirleme'!C78)","v":" "},{"$f":"IF('Risk - Belirleme'!D78=\"\",\" \",'Risk - Belirleme'!D78)","v":" "},{"$f":"IF('Risk - Belirleme'!E78=\"\",\" \",'Risk - Belirleme'!E78)","v":" "},{"$f":"IF('Risk - Analizi'!I78=\"\",\" \",'Risk - Analizi'!I78)","v":" "},{"$f":"IF('Risk - Yönetimi'!D78=\"\",\" \",'Risk - Yönetimi'!D78)","v":" "},{"$f":"IF('Risk - Yönetimi'!E78=\"\",\" \",'Risk - Yönetimi'!E78)","v":" "},{"$f":"IF('Risk - Yönetimi'!F78=\"\",\" \",'Risk - Yönetimi'!F78)","v":" "},{"$f":"IF('Risk - Yönetimi'!G78=\"\",\" \",'Risk - Yönetimi'!G78)","v":" "},{"$f":"IF('Risk - Yönetimi'!K78=\"\",\" \",'Risk - Yönetimi'!K78)","v":" "},{"$f":"IF('Risk - Yönetimi'!M78=\"\",\" \",'Risk - Yönetimi'!M78)","v":" "},{"$f":"IF('Risk - Yönetimi'!O78=\"\",\" \",'Risk - Yönetimi'!O78)","v":" "}]
[{"$f":"IF('Risk - Belirleme'!A79=\"\",\" \",'Risk - Belirleme'!A79)","v":" "},{"$f":"IF('Risk - Belirleme'!B79=\"\",\" \",'Risk - Belirleme'!B79)","v":" "},{"$f":"IF('Risk - Belirleme'!C79=\"\",\" \",'Risk - Belirleme'!C79)","v":" "},{"$f":"IF('Risk - Belirleme'!D79=\"\",\" \",'Risk - Belirleme'!D79)","v":" "},{"$f":"IF('Risk - Belirleme'!E79=\"\",\" \",'Risk - Belirleme'!E79)","v":" "},{"$f":"IF('Risk - Analizi'!I79=\"\",\" \",'Risk - Analizi'!I79)","v":" "},{"$f":"IF('Risk - Yönetimi'!D79=\"\",\" \",'Risk - Yönetimi'!D79)","v":" "},{"$f":"IF('Risk - Yönetimi'!E79=\"\",\" \",'Risk - Yönetimi'!E79)","v":" "},{"$f":"IF('Risk - Yönetimi'!F79=\"\",\" \",'Risk - Yönetimi'!F79)","v":" "},{"$f":"IF('Risk - Yönetimi'!G79=\"\",\" \",'Risk - Yönetimi'!G79)","v":" "},{"$f":"IF('Risk - Yönetimi'!K79=\"\",\" \",'Risk - Yönetimi'!K79)","v":" "},{"$f":"IF('Risk - Yönetimi'!M79=\"\",\" \",'Risk - Yönetimi'!M79)","v":" "},{"$f":"IF('Risk - Yönetimi'!O79=\"\",\" \",'Risk - Yönetimi'!O79)","v":" "}]
[{"$f":"IF('Risk - Belirleme'!A80=\"\",\" \",'Risk - Belirleme'!A80)","v":" "},{"$f":"IF('Risk - Belirleme'!B80=\"\",\" \",'Risk - Belirleme'!B80)","v":" "},{"$f":"IF('Risk - Belirleme'!C80=\"\",\" \",'Risk - Belirleme'!C80)","v":" "},{"$f":"IF('Risk - Belirleme'!D80=\"\",\" \",'Risk - Belirleme'!D80)","v":" "},{"$f":"IF('Risk - Belirleme'!E80=\"\",\" \",'Risk - Belirleme'!E80)","v":" "},{"$f":"IF('Risk - Analizi'!I80=\"\",\" \",'Risk - Analizi'!I80)","v":" "},{"$f":"IF('Risk - Yönetimi'!D80=\"\",\" \",'Risk - Yönetimi'!D80)","v":" "},{"$f":"IF('Risk - Yönetimi'!E80=\"\",\" \",'Risk - Yönetimi'!E80)","v":" "},{"$f":"IF('Risk - Yönetimi'!F80=\"\",\" \",'Risk - Yönetimi'!F80)","v":" "},{"$f":"IF('Risk - Yönetimi'!G80=\"\",\" \",'Risk - Yönetimi'!G80)","v":" "},{"$f":"IF('Risk - Yönetimi'!K80=\"\",\" \",'Risk - Yönetimi'!K80)","v":" "},{"$f":"IF('Risk - Yönetimi'!M80=\"\",\" \",'Risk - Yönetimi'!M80)","v":" "},{"$f":"IF('Risk - Yönetimi'!O80=\"\",\" \",'Risk - Yönetimi'!O80)","v":" "}]
[{"$f":"IF('Risk - Belirleme'!A81=\"\",\" \",'Risk - Belirleme'!A81)","v":" "},{"$f":"IF('Risk - Belirleme'!B81=\"\",\" \",'Risk - Belirleme'!B81)","v":" "},{"$f":"IF('Risk - Belirleme'!C81=\"\",\" \",'Risk - Belirleme'!C81)","v":" "},{"$f":"IF('Risk - Belirleme'!D81=\"\",\" \",'Risk - Belirleme'!D81)","v":" "},{"$f":"IF('Risk - Belirleme'!E81=\"\",\" \",'Risk - Belirleme'!E81)","v":" "},{"$f":"IF('Risk - Analizi'!I81=\"\",\" \",'Risk - Analizi'!I81)","v":" "},{"$f":"IF('Risk - Yönetimi'!D81=\"\",\" \",'Risk - Yönetimi'!D81)","v":" "},{"$f":"IF('Risk - Yönetimi'!E81=\"\",\" \",'Risk - Yönetimi'!E81)","v":" "},{"$f":"IF('Risk - Yönetimi'!F81=\"\",\" \",'Risk - Yönetimi'!F81)","v":" "},{"$f":"IF('Risk - Yönetimi'!G81=\"\",\" \",'Risk - Yönetimi'!G81)","v":" "},{"$f":"IF('Risk - Yönetimi'!K81=\"\",\" \",'Risk - Yönetimi'!K81)","v":" "},{"$f":"IF('Risk - Yönetimi'!M81=\"\",\" \",'Risk - Yönetimi'!M81)","v":" "},{"$f":"IF('Risk - Yönetimi'!O81=\"\",\" \",'Risk - Yönetimi'!O81)","v":" "}]
[{"$f":"IF('Risk - Belirleme'!A82=\"\",\" \",'Risk - Belirleme'!A82)","v":" "},{"$f":"IF('Risk - Belirleme'!B82=\"\",\" \",'Risk - Belirleme'!B82)","v":" "},{"$f":"IF('Risk - Belirleme'!C82=\"\",\" \",'Risk - Belirleme'!C82)","v":" "},{"$f":"IF('Risk - Belirleme'!D82=\"\",\" \",'Risk - Belirleme'!D82)","v":" "},{"$f":"IF('Risk - Belirleme'!E82=\"\",\" \",'Risk - Belirleme'!E82)","v":" "},{"$f":"IF('Risk - Analizi'!I82=\"\",\" \",'Risk - Analizi'!I82)","v":" "},{"$f":"IF('Risk - Yönetimi'!D82=\"\",\" \",'Risk - Yönetimi'!D82)","v":" "},{"$f":"IF('Risk - Yönetimi'!E82=\"\",\" \",'Risk - Yönetimi'!E82)","v":" "},{"$f":"IF('Risk - Yönetimi'!F82=\"\",\" \",'Risk - Yönetimi'!F82)","v":" "},{"$f":"IF('Risk - Yönetimi'!G82=\"\",\" \",'Risk - Yönetimi'!G82)","v":" "},{"$f":"IF('Risk - Yönetimi'!K82=\"\",\" \",'Risk - Yönetimi'!K82)","v":" "},{"$f":"IF('Risk - Yönetimi'!M82=\"\",\" \",'Risk - Yönetimi'!M82)","v":" "},{"$f":"IF('Risk - Yönetimi'!O82=\"\",\" \",'Risk - Yönetimi'!O82)","v":" "}]
[{"$f":"IF('Risk - Belirleme'!A83=\"\",\" \",'Risk - Belirleme'!A83)","v":" "},{"$f":"IF('Risk - Belirleme'!B83=\"\",\" \",'Risk - Belirleme'!B83)","v":" "},{"$f":"IF('Risk - Belirleme'!C83=\"\",\" \",'Risk - Belirleme'!C83)","v":" "},{"$f":"IF('Risk - Belirleme'!D83=\"\",\" \",'Risk - Belirleme'!D83)","v":" "},{"$f":"IF('Risk - Belirleme'!E83=\"\",\" \",'Risk - Belirleme'!E83)","v":" "},{"$f":"IF('Risk - Analizi'!I83=\"\",\" \",'Risk - Analizi'!I83)","v":" "},{"$f":"IF('Risk - Yönetimi'!D83=\"\",\" \",'Risk - Yönetimi'!D83)","v":" "},{"$f":"IF('Risk - Yönetimi'!E83=\"\",\" \",'Risk - Yönetimi'!E83)","v":" "},{"$f":"IF('Risk - Yönetimi'!F83=\"\",\" \",'Risk - Yönetimi'!F83)","v":" "},{"$f":"IF('Risk - Yönetimi'!G83=\"\",\" \",'Risk - Yönetimi'!G83)","v":" "},{"$f":"IF('Risk - Yönetimi'!K83=\"\",\" \",'Risk - Yönetimi'!K83)","v":" "},{"$f":"IF('Risk - Yönetimi'!M83=\"\",\" \",'Risk - Yönetimi'!M83)","v":" "},{"$f":"IF('Risk - Yönetimi'!O83=\"\",\" \",'Risk - Yönetimi'!O83)","v":" "}]
[{"$f":"IF('Risk - Belirleme'!A84=\"\",\" \",'Risk - Belirleme'!A84)","v":" "},{"$f":"IF('Risk - Belirleme'!B84=\"\",\" \",'Risk - Belirleme'!B84)","v":" "},{"$f":"IF('Risk - Belirleme'!C84=\"\",\" \",'Risk - Belirleme'!C84)","v":" "},{"$f":"IF('Risk - Belirleme'!D84=\"\",\" \",'Risk - Belirleme'!D84)","v":" "},{"$f":"IF('Risk - Belirleme'!E84=\"\",\" \",'Risk - Belirleme'!E84)","v":" "},{"$f":"IF('Risk - Analizi'!I84=\"\",\" \",'Risk - Analizi'!I84)","v":" "},{"$f":"IF('Risk - Yönetimi'!D84=\"\",\" \",'Risk - Yönetimi'!D84)","v":" "},{"$f":"IF('Risk - Yönetimi'!E84=\"\",\" \",'Risk - Yönetimi'!E84)","v":" "},{"$f":"IF('Risk - Yönetimi'!F84=\"\",\" \",'Risk - Yönetimi'!F84)","v":" "},{"$f":"IF('Risk - Yönetimi'!G84=\"\",\" \",'Risk - Yönetimi'!G84)","v":" "},{"$f":"IF('Risk - Yönetimi'!K84=\"\",\" \",'Risk - Yönetimi'!K84)","v":" "},{"$f":"IF('Risk - Yönetimi'!M84=\"\",\" \",'Risk - Yönetimi'!M84)","v":" "},{"$f":"IF('Risk - Yönetimi'!O84=\"\",\" \",'Risk - Yönetimi'!O84)","v":" "}]
[{"$f":"IF('Risk - Belirleme'!A85=\"\",\" \",'Risk - Belirleme'!A85)","v":" "},{"$f":"IF('Risk - Belirleme'!B85=\"\",\" \",'Risk - Belirleme'!B85)","v":" "},{"$f":"IF('Risk - Belirleme'!C85=\"\",\" \",'Risk - Belirleme'!C85)","v":" "},{"$f":"IF('Risk - Belirleme'!D85=\"\",\" \",'Risk - Belirleme'!D85)","v":" "},{"$f":"IF('Risk - Belirleme'!E85=\"\",\" \",'Risk - Belirleme'!E85)","v":" "},{"$f":"IF('Risk - Analizi'!I85=\"\",\" \",'Risk - Analizi'!I85)","v":" "},{"$f":"IF('Risk - Yönetimi'!D85=\"\",\" \",'Risk - Yönetimi'!D85)","v":" "},{"$f":"IF('Risk - Yönetimi'!E85=\"\",\" \",'Risk - Yönetimi'!E85)","v":" "},{"$f":"IF('Risk - Yönetimi'!F85=\"\",\" \",'Risk - Yönetimi'!F85)","v":" "},{"$f":"IF('Risk - Yönetimi'!G85=\"\",\" \",'Risk - Yönetimi'!G85)","v":" "},{"$f":"IF('Risk - Yönetimi'!K85=\"\",\" \",'Risk - Yönetimi'!K85)","v":" "},{"$f":"IF('Risk - Yönetimi'!M85=\"\",\" \",'Risk - Yönetimi'!M85)","v":" "},{"$f":"IF('Risk - Yönetimi'!O85=\"\",\" \",'Risk - Yönetimi'!O85)","v":" "}]
[{"$f":"IF('Risk - Belirleme'!A86=\"\",\" \",'Risk - Belirleme'!A86)","v":" "},{"$f":"IF('Risk - Belirleme'!B86=\"\",\" \",'Risk - Belirleme'!B86)","v":" "},{"$f":"IF('Risk - Belirleme'!C86=\"\",\" \",'Risk - Belirleme'!C86)","v":" "},{"$f":"IF('Risk - Belirleme'!D86=\"\",\" \",'Risk - Belirleme'!D86)","v":" "},{"$f":"IF('Risk - Belirleme'!E86=\"\",\" \",'Risk - Belirleme'!E86)","v":" "},{"$f":"IF('Risk - Analizi'!I86=\"\",\" \",'Risk - Analizi'!I86)","v":" "},{"$f":"IF('Risk - Yönetimi'!D86=\"\",\" \",'Risk - Yönetimi'!D86)","v":" "},{"$f":"IF('Risk - Yönetimi'!E86=\"\",\" \",'Risk - Yönetimi'!E86)","v":" "},{"$f":"IF('Risk - Yönetimi'!F86=\"\",\" \",'Risk - Yönetimi'!F86)","v":" "},{"$f":"IF('Risk - Yönetimi'!G86=\"\",\" \",'Risk - Yönetimi'!G86)","v":" "},{"$f":"IF('Risk - Yönetimi'!K86=\"\",\" \",'Risk - Yönetimi'!K86)","v":" "},{"$f":"IF('Risk - Yönetimi'!M86=\"\",\" \",'Risk - Yönetimi'!M86)","v":" "},{"$f":"IF('Risk - Yönetimi'!O86=\"\",\" \",'Risk - Yönetimi'!O86)","v":" "}]
[{"$f":"IF('Risk - Belirleme'!A87=\"\",\" \",'Risk - Belirleme'!A87)","v":" "},{"$f":"IF('Risk - Belirleme'!B87=\"\",\" \",'Risk - Belirleme'!B87)","v":" "},{"$f":"IF('Risk - Belirleme'!C87=\"\",\" \",'Risk - Belirleme'!C87)","v":" "},{"$f":"IF('Risk - Belirleme'!D87=\"\",\" \",'Risk - Belirleme'!D87)","v":" "},{"$f":"IF('Risk - Belirleme'!E87=\"\",\" \",'Risk - Belirleme'!E87)","v":" "},{"$f":"IF('Risk - Analizi'!I87=\"\",\" \",'Risk - Analizi'!I87)","v":" "},{"$f":"IF('Risk - Yönetimi'!D87=\"\",\" \",'Risk - Yönetimi'!D87)","v":" "},{"$f":"IF('Risk - Yönetimi'!E87=\"\",\" \",'Risk - Yönetimi'!E87)","v":" "},{"$f":"IF('Risk - Yönetimi'!F87=\"\",\" \",'Risk - Yönetimi'!F87)","v":" "},{"$f":"IF('Risk - Yönetimi'!G87=\"\",\" \",'Risk - Yönetimi'!G87)","v":" "},{"$f":"IF('Risk - Yönetimi'!K87=\"\",\" \",'Risk - Yönetimi'!K87)","v":" "},{"$f":"IF('Risk - Yönetimi'!M87=\"\",\" \",'Risk - Yönetimi'!M87)","v":" "},{"$f":"IF('Risk - Yönetimi'!O87=\"\",\" \",'Risk - Yönetimi'!O87)","v":" "}]
[{"$f":"IF('Risk - Belirleme'!A88=\"\",\" \",'Risk - Belirleme'!A88)","v":" "},{"$f":"IF('Risk - Belirleme'!B88=\"\",\" \",'Risk - Belirleme'!B88)","v":" "},{"$f":"IF('Risk - Belirleme'!C88=\"\",\" \",'Risk - Belirleme'!C88)","v":" "},{"$f":"IF('Risk - Belirleme'!D88=\"\",\" \",'Risk - Belirleme'!D88)","v":" "},{"$f":"IF('Risk - Belirleme'!E88=\"\",\" \",'Risk - Belirleme'!E88)","v":" "},{"$f":"IF('Risk - Analizi'!I88=\"\",\" \",'Risk - Analizi'!I88)","v":" "},{"$f":"IF('Risk - Yönetimi'!D88=\"\",\" \",'Risk - Yönetimi'!D88)","v":" "},{"$f":"IF('Risk - Yönetimi'!E88=\"\",\" \",'Risk - Yönetimi'!E88)","v":" "},{"$f":"IF('Risk - Yönetimi'!F88=\"\",\" \",'Risk - Yönetimi'!F88)","v":" "},{"$f":"IF('Risk - Yönetimi'!G88=\"\",\" \",'Risk - Yönetimi'!G88)","v":" "},{"$f":"IF('Risk - Yönetimi'!K88=\"\",\" \",'Risk - Yönetimi'!K88)","v":" "},{"$f":"IF('Risk - Yönetimi'!M88=\"\",\" \",'Risk - Yönetimi'!M88)","v":" "},{"$f":"IF('Risk - Yönetimi'!O88=\"\",\" \",'Risk - Yönetimi'!O88)","v":" "}]
[{"$f":"IF('Risk - Belirleme'!A89=\"\",\" \",'Risk - Belirleme'!A89)","v":" "},{"$f":"IF('Risk - Belirleme'!B89=\"\",\" \",'Risk - Belirleme'!B89)","v":" "},{"$f":"IF('Risk - Belirleme'!C89=\"\",\" \",'Risk - Belirleme'!C89)","v":" "},{"$f":"IF('Risk - Belirleme'!D89=\"\",\" \",'Risk - Belirleme'!D89)","v":" "},{"$f":"IF('Risk - Belirleme'!E89=\"\",\" \",'Risk - Belirleme'!E89)","v":" "},{"$f":"IF('Risk - Analizi'!I89=\"\",\" \",'Risk - Analizi'!I89)","v":" "},{"$f":"IF('Risk - Yönetimi'!D89=\"\",\" \",'Risk - Yönetimi'!D89)","v":" "},{"$f":"IF('Risk - Yönetimi'!E89=\"\",\" \",'Risk - Yönetimi'!E89)","v":" "},{"$f":"IF('Risk - Yönetimi'!F89=\"\",\" \",'Risk - Yönetimi'!F89)","v":" "},{"$f":"IF('Risk - Yönetimi'!G89=\"\",\" \",'Risk - Yönetimi'!G89)","v":" "},{"$f":"IF('Risk - Yönetimi'!K89=\"\",\" \",'Risk - Yönetimi'!K89)","v":" "},{"$f":"IF('Risk - Yönetimi'!M89=\"\",\" \",'Risk - Yönetimi'!M89)","v":" "},{"$f":"IF('Risk - Yönetimi'!O89=\"\",\" \",'Risk - Yönetimi'!O89)","v":" "}]
[{"$f":"IF('Risk - Belirleme'!A90=\"\",\" \",'Risk - Belirleme'!A90)","v":" "},{"$f":"IF('Risk - Belirleme'!B90=\"\",\" \",'Risk - Belirleme'!B90)","v":" "},{"$f":"IF('Risk - Belirleme'!C90=\"\",\" \",'Risk - Belirleme'!C90)","v":" "},{"$f":"IF('Risk - Belirleme'!D90=\"\",\" \",'Risk - Belirleme'!D90)","v":" "},{"$f":"IF('Risk - Belirleme'!E90=\"\",\" \",'Risk - Belirleme'!E90)","v":" "},{"$f":"IF('Risk - Analizi'!I90=\"\",\" \",'Risk - Analizi'!I90)","v":" "},{"$f":"IF('Risk - Yönetimi'!D90=\"\",\" \",'Risk - Yönetimi'!D90)","v":" "},{"$f":"IF('Risk - Yönetimi'!E90=\"\",\" \",'Risk - Yönetimi'!E90)","v":" "},{"$f":"IF('Risk - Yönetimi'!F90=\"\",\" \",'Risk - Yönetimi'!F90)","v":" "},{"$f":"IF('Risk - Yönetimi'!G90=\"\",\" \",'Risk - Yönetimi'!G90)","v":" "},{"$f":"IF('Risk - Yönetimi'!K90=\"\",\" \",'Risk - Yönetimi'!K90)","v":" "},{"$f":"IF('Risk - Yönetimi'!M90=\"\",\" \",'Risk - Yönetimi'!M90)","v":" "},{"$f":"IF('Risk - Yönetimi'!O90=\"\",\" \",'Risk - Yönetimi'!O90)","v":" "}]
[{"$f":"IF('Risk - Belirleme'!A91=\"\",\" \",'Risk - Belirleme'!A91)","v":" "},{"$f":"IF('Risk - Belirleme'!B91=\"\",\" \",'Risk - Belirleme'!B91)","v":" "},{"$f":"IF('Risk - Belirleme'!C91=\"\",\" \",'Risk - Belirleme'!C91)","v":" "},{"$f":"IF('Risk - Belirleme'!D91=\"\",\" \",'Risk - Belirleme'!D91)","v":" "},{"$f":"IF('Risk - Belirleme'!E91=\"\",\" \",'Risk - Belirleme'!E91)","v":" "},{"$f":"IF('Risk - Analizi'!I91=\"\",\" \",'Risk - Analizi'!I91)","v":" "},{"$f":"IF('Risk - Yönetimi'!D91=\"\",\" \",'Risk - Yönetimi'!D91)","v":" "},{"$f":"IF('Risk - Yönetimi'!E91=\"\",\" \",'Risk - Yönetimi'!E91)","v":" "},{"$f":"IF('Risk - Yönetimi'!F91=\"\",\" \",'Risk - Yönetimi'!F91)","v":" "},{"$f":"IF('Risk - Yönetimi'!G91=\"\",\" \",'Risk - Yönetimi'!G91)","v":" "},{"$f":"IF('Risk - Yönetimi'!K91=\"\",\" \",'Risk - Yönetimi'!K91)","v":" "},{"$f":"IF('Risk - Yönetimi'!M91=\"\",\" \",'Risk - Yönetimi'!M91)","v":" "},{"$f":"IF('Risk - Yönetimi'!O91=\"\",\" \",'Risk - Yönetimi'!O91)","v":" "}]
[{"$f":"IF('Risk - Belirleme'!A92=\"\",\" \",'Risk - Belirleme'!A92)","v":" "},{"$f":"IF('Risk - Belirleme'!B92=\"\",\" \",'Risk - Belirleme'!B92)","v":" "},{"$f":"IF('Risk - Belirleme'!C92=\"\",\" \",'Risk - Belirleme'!C92)","v":" "},{"$f":"IF('Risk - Belirleme'!D92=\"\",\" \",'Risk - Belirleme'!D92)","v":" "},{"$f":"IF('Risk - Belirleme'!E92=\"\",\" \",'Risk - Belirleme'!E92)","v":" "},{"$f":"IF('Risk - Analizi'!I92=\"\",\" \",'Risk - Analizi'!I92)","v":" "},{"$f":"IF('Risk - Yönetimi'!D92=\"\",\" \",'Risk - Yönetimi'!D92)","v":" "},{"$f":"IF('Risk - Yönetimi'!E92=\"\",\" \",'Risk - Yönetimi'!E92)","v":" "},{"$f":"IF('Risk - Yönetimi'!F92=\"\",\" \",'Risk - Yönetimi'!F92)","v":" "},{"$f":"IF('Risk - Yönetimi'!G92=\"\",\" \",'Risk - Yönetimi'!G92)","v":" "},{"$f":"IF('Risk - Yönetimi'!K92=\"\",\" \",'Risk - Yönetimi'!K92)","v":" "},{"$f":"IF('Risk - Yönetimi'!M92=\"\",\" \",'Risk - Yönetimi'!M92)","v":" "},{"$f":"IF('Risk - Yönetimi'!O92=\"\",\" \",'Risk - Yönetimi'!O92)","v":" "}]
[{"$f":"IF('Risk - Belirleme'!A93=\"\",\" \",'Risk - Belirleme'!A93)","v":" "},{"$f":"IF('Risk - Belirleme'!B93=\"\",\" \",'Risk - Belirleme'!B93)","v":" "},{"$f":"IF('Risk - Belirleme'!C93=\"\",\" \",'Risk - Belirleme'!C93)","v":" "},{"$f":"IF('Risk - Belirleme'!D93=\"\",\" \",'Risk - Belirleme'!D93)","v":" "},{"$f":"IF('Risk - Belirleme'!E93=\"\",\" \",'Risk - Belirleme'!E93)","v":" "},{"$f":"IF('Risk - Analizi'!I93=\"\",\" \",'Risk - Analizi'!I93)","v":" "},{"$f":"IF('Risk - Yönetimi'!D93=\"\",\" \",'Risk - Yönetimi'!D93)","v":" "},{"$f":"IF('Risk - Yönetimi'!E93=\"\",\" \",'Risk - Yönetimi'!E93)","v":" "},{"$f":"IF('Risk - Yönetimi'!F93=\"\",\" \",'Risk - Yönetimi'!F93)","v":" "},{"$f":"IF('Risk - Yönetimi'!G93=\"\",\" \",'Risk - Yönetimi'!G93)","v":" "},{"$f":"IF('Risk - Yönetimi'!K93=\"\",\" \",'Risk - Yönetimi'!K93)","v":" "},{"$f":"IF('Risk - Yönetimi'!M93=\"\",\" \",'Risk - Yönetimi'!M93)","v":" "},{"$f":"IF('Risk - Yönetimi'!O93=\"\",\" \",'Risk - Yönetimi'!O93)","v":" "}]
[{"$f":"IF('Risk - Belirleme'!A94=\"\",\" \",'Risk - Belirleme'!A94)","v":" "},{"$f":"IF('Risk - Belirleme'!B94=\"\",\" \",'Risk - Belirleme'!B94)","v":" "},{"$f":"IF('Risk - Belirleme'!C94=\"\",\" \",'Risk - Belirleme'!C94)","v":" "},{"$f":"IF('Risk - Belirleme'!D94=\"\",\" \",'Risk - Belirleme'!D94)","v":" "},{"$f":"IF('Risk - Belirleme'!E94=\"\",\" \",'Risk - Belirleme'!E94)","v":" "},{"$f":"IF('Risk - Analizi'!I94=\"\",\" \",'Risk - Analizi'!I94)","v":" "},{"$f":"IF('Risk - Yönetimi'!D94=\"\",\" \",'Risk - Yönetimi'!D94)","v":" "},{"$f":"IF('Risk - Yönetimi'!E94=\"\",\" \",'Risk - Yönetimi'!E94)","v":" "},{"$f":"IF('Risk - Yönetimi'!F94=\"\",\" \",'Risk - Yönetimi'!F94)","v":" "},{"$f":"IF('Risk - Yönetimi'!G94=\"\",\" \",'Risk - Yönetimi'!G94)","v":" "},{"$f":"IF('Risk - Yönetimi'!K94=\"\",\" \",'Risk - Yönetimi'!K94)","v":" "},{"$f":"IF('Risk - Yönetimi'!M94=\"\",\" \",'Risk - Yönetimi'!M94)","v":" "},{"$f":"IF('Risk - Yönetimi'!O94=\"\",\" \",'Risk - Yönetimi'!O94)","v":" "}]
[{"$f":"IF('Risk - Belirleme'!A95=\"\",\" \",'Risk - Belirleme'!A95)","v":" "},{"$f":"IF('Risk - Belirleme'!B95=\"\",\" \",'Risk - Belirleme'!B95)","v":" "},{"$f":"IF('Risk - Belirleme'!C95=\"\",\" \",'Risk - Belirleme'!C95)","v":" "},{"$f":"IF('Risk - Belirleme'!D95=\"\",\" \",'Risk - Belirleme'!D95)","v":" "},{"$f":"IF('Risk - Belirleme'!E95=\"\",\" \",'Risk - Belirleme'!E95)","v":" "},{"$f":"IF('Risk - Analizi'!I95=\"\",\" \",'Risk - Analizi'!I95)","v":" "},{"$f":"IF('Risk - Yönetimi'!D95=\"\",\" \",'Risk - Yönetimi'!D95)","v":" "},{"$f":"IF('Risk - Yönetimi'!E95=\"\",\" \",'Risk - Yönetimi'!E95)","v":" "},{"$f":"IF('Risk - Yönetimi'!F95=\"\",\" \",'Risk - Yönetimi'!F95)","v":" "},{"$f":"IF('Risk - Yönetimi'!G95=\"\",\" \",'Risk - Yönetimi'!G95)","v":" "},{"$f":"IF('Risk - Yönetimi'!K95=\"\",\" \",'Risk - Yönetimi'!K95)","v":" "},{"$f":"IF('Risk - Yönetimi'!M95=\"\",\" \",'Risk - Yönetimi'!M95)","v":" "},{"$f":"IF('Risk - Yönetimi'!O95=\"\",\" \",'Risk - Yönetimi'!O95)","v":" "}]
[{"$f":"IF('Risk - Belirleme'!A96=\"\",\" \",'Risk - Belirleme'!A96)","v":" "},{"$f":"IF('Risk - Belirleme'!B96=\"\",\" \",'Risk - Belirleme'!B96)","v":" "},{"$f":"IF('Risk - Belirleme'!C96=\"\",\" \",'Risk - Belirleme'!C96)","v":" "},{"$f":"IF('Risk - Belirleme'!D96=\"\",\" \",'Risk - Belirleme'!D96)","v":" "},{"$f":"IF('Risk - Belirleme'!E96=\"\",\" \",'Risk - Belirleme'!E96)","v":" "},{"$f":"IF('Risk - Analizi'!I96=\"\",\" \",'Risk - Analizi'!I96)","v":" "},{"$f":"IF('Risk - Yönetimi'!D96=\"\",\" \",'Risk - Yönetimi'!D96)","v":" "},{"$f":"IF('Risk - Yönetimi'!E96=\"\",\" \",'Risk - Yönetimi'!E96)","v":" "},{"$f":"IF('Risk - Yönetimi'!F96=\"\",\" \",'Risk - Yönetimi'!F96)","v":" "},{"$f":"IF('Risk - Yönetimi'!G96=\"\",\" \",'Risk - Yönetimi'!G96)","v":" "},{"$f":"IF('Risk - Yönetimi'!K96=\"\",\" \",'Risk - Yönetimi'!K96)","v":" "},{"$f":"IF('Risk - Yönetimi'!M96=\"\",\" \",'Risk - Yönetimi'!M96)","v":" "},{"$f":"IF('Risk - Yönetimi'!O96=\"\",\" \",'Risk - Yönetimi'!O96)","v":" "}]
[{"$f":"IF('Risk - Belirleme'!A97=\"\",\" \",'Risk - Belirleme'!A97)","v":" "},{"$f":"IF('Risk - Belirleme'!B97=\"\",\" \",'Risk - Belirleme'!B97)","v":" "},{"$f":"IF('Risk - Belirleme'!C97=\"\",\" \",'Risk - Belirleme'!C97)","v":" "},{"$f":"IF('Risk - Belirleme'!D97=\"\",\" \",'Risk - Belirleme'!D97)","v":" "},{"$f":"IF('Risk - Belirleme'!E97=\"\",\" \",'Risk - Belirleme'!E97)","v":" "},{"$f":"IF('Risk - Analizi'!I97=\"\",\" \",'Risk - Analizi'!I97)","v":" "},{"$f":"IF('Risk - Yönetimi'!D97=\"\",\" \",'Risk - Yönetimi'!D97)","v":" "},{"$f":"IF('Risk - Yönetimi'!E97=\"\",\" \",'Risk - Yönetimi'!E97)","v":" "},{"$f":"IF('Risk - Yönetimi'!F97=\"\",\" \",'Risk - Yönetimi'!F97)","v":" "},{"$f":"IF('Risk - Yönetimi'!G97=\"\",\" \",'Risk - Yönetimi'!G97)","v":" "},{"$f":"IF('Risk - Yönetimi'!K97=\"\",\" \",'Risk - Yönetimi'!K97)","v":" "},{"$f":"IF('Risk - Yönetimi'!M97=\"\",\" \",'Risk - Yönetimi'!M97)","v":" "},{"$f":"IF('Risk - Yönetimi'!O97=\"\",\" \",'Risk - Yönetimi'!O97)","v":" "}]
[{"$f":"IF('Risk - Belirleme'!A98=\"\",\" \",'Risk - Belirleme'!A98)","v":" "},{"$f":"IF('Risk - Belirleme'!B98=\"\",\" \",'Risk - Belirleme'!B98)","v":" "},{"$f":"IF('Risk - Belirleme'!C98=\"\",\" \",'Risk - Belirleme'!C98)","v":" "},{"$f":"IF('Risk - Belirleme'!D98=\"\",\" \",'Risk - Belirleme'!D98)","v":" "},{"$f":"IF('Risk - Belirleme'!E98=\"\",\" \",'Risk - Belirleme'!E98)","v":" "},{"$f":"IF('Risk - Analizi'!I98=\"\",\" \",'Risk - Analizi'!I98)","v":" "},{"$f":"IF('Risk - Yönetimi'!D98=\"\",\" \",'Risk - Yönetimi'!D98)","v":" "},{"$f":"IF('Risk - Yönetimi'!E98=\"\",\" \",'Risk - Yönetimi'!E98)","v":" "},{"$f":"IF('Risk - Yönetimi'!F98=\"\",\" \",'Risk - Yönetimi'!F98)","v":" "},{"$f":"IF('Risk - Yönetimi'!G98=\"\",\" \",'Risk - Yönetimi'!G98)","v":" "},{"$f":"IF('Risk - Yönetimi'!K98=\"\",\" \",'Risk - Yönetimi'!K98)","v":" "},{"$f":"IF('Risk - Yönetimi'!M98=\"\",\" \",'Risk - Yönetimi'!M98)","v":" "},{"$f":"IF('Risk - Yönetimi'!O98=\"\",\" \",'Risk - Yönetimi'!O98)","v":" "}]
[{"$f":"IF('Risk - Belirleme'!A99=\"\",\" \",'Risk - Belirleme'!A99)","v":" "},{"$f":"IF('Risk - Belirleme'!B99=\"\",\" \",'Risk - Belirleme'!B99)","v":" "},{"$f":"IF('Risk - Belirleme'!C99=\"\",\" \",'Risk - Belirleme'!C99)","v":" "},{"$f":"IF('Risk - Belirleme'!D99=\"\",\" \",'Risk - Belirleme'!D99)","v":" "},{"$f":"IF('Risk - Belirleme'!E99=\"\",\" \",'Risk - Belirleme'!E99)","v":" "},{"$f":"IF('Risk - Analizi'!I99=\"\",\" \",'Risk - Analizi'!I99)","v":" "},{"$f":"IF('Risk - Yönetimi'!D99=\"\",\" \",'Risk - Yönetimi'!D99)","v":" "},{"$f":"IF('Risk - Yönetimi'!E99=\"\",\" \",'Risk - Yönetimi'!E99)","v":" "},{"$f":"IF('Risk - Yönetimi'!F99=\"\",\" \",'Risk - Yönetimi'!F99)","v":" "},{"$f":"IF('Risk - Yönetimi'!G99=\"\",\" \",'Risk - Yönetimi'!G99)","v":" "},{"$f":"IF('Risk - Yönetimi'!K99=\"\",\" \",'Risk - Yönetimi'!K99)","v":" "},{"$f":"IF('Risk - Yönetimi'!M99=\"\",\" \",'Risk - Yönetimi'!M99)","v":" "},{"$f":"IF('Risk - Yönetimi'!O99=\"\",\" \",'Risk - Yönetimi'!O99)","v":" "}]

{"sheet":"REF - Glossary","index":10,"n_rows":31,"n_cols":4,"rows_kept":31,"cut":false,"hidden":true,"merged":[[9,3,9,5],[8,3,8,5],[29,3,29,5],[17,3,17,5],[19,3,19,5],[20,3,20,5],[21,3,21,5],[23,3,23,5],[26,3,26,5],[28,3,28,5],[27,3,27,5],[25,3,25,5],[24,3,24,5],[22,3,22,5],[5,3,5,5],[30,3,30,5],[0,0,0,6],[3,3,3,5],[6,3,6,5],[4,3,4,5],[18,3,18,5],[16,3,16,5],[15,3,15,5],[2,3,2,5],[7,3,7,5],[12,3,12,5],[11,3,11,5],[10,3,10,5],[14,3,14,5],[13,3,13,5]]}
["GLOSSARY"]
[]
[null,"Consequence / Impact",null,"Outcome of an event affecting objectives."]
[null,"Enterprise Risk Management",null,"The consistent application of techniques to manage the uncertainties surrounding the achievement of an organization’s objectives. May include risks related to planning, investment management, public outreach, human resources, and other aspects of the organization that are not tied to a specific project or program of projects but still affects the achievement of strategic objectives."]
[null,"Likelihood / Probability",null,"A measure of how likely a condition or event is to occur.  It ranges from 0 to 100 percent (or 0.00 to 1.00)."]
[null,"Opportunity",null,"Uncertainty with a positive impact. A possible event that results in a benefit."]
[null,"Post-Treatment Risk Rating",null,"Also known as residual risk or retained risk, a quantitative or qualitative value based on the likelihood/probability of impact and the level of impact, after a risk response option is considered."]
[null,"Pre-Treatment Risk Rating",null,"A quantitative or qualitative value based on the probability of impact and the level of impact, with no risk response option considered."]
[null,"Program Risk Management",null,"The consistent application of techniques to manage the uncertainties surrounding a portfolio/suite of similar projects."]
[null,"Risk",null,"An uncertain event or condition that, if it occurs, has a negative or positive effect on an organization's, program's or project’s objectives."]
[null,"Risk Analysis",null,"A component of risk management that bridges risk identification and risk monitoring in support of risk allocation.  Risk analysis involves the quantitative or qualitative analysis that assesses impact and probability of a risk."]
[null,"Risk Category",null,"A way to classify risks based on potential impacts."]
[null,"Risk Documentation",null,"Recording, maintaining, and reporting assessments, handling analysis and plans, and monitoring results.  It includes all plans, reports for senior leaders and decision authorities, and reporting forms that may be internal to the agency."]
[null,"Risk Event",null,"A discrete occurrence that may affect the agency for better or worse."]
[null,"Risk Heat Map",null,"A tool used to visually and concisely present the likelihood and impact of multiple risks."]
[null,"Risk ID",null,"An assigned number to help easily and uniquely identify the risk."]
[null,"Risk Identification",null,"Determining which risks might affect the agency and documenting their characteristics."]
[null,"Risk Management Plan",null,"A document detailing how risk response options and the overall risk processes will be carried out during the year.  This is the output of Risk Planning."]
[null,"Risk Model",null,"The translation of selected risks into a mathematical model for purposes of performing a quantitative risk analysis."]
[null,"Risk Planning",null,"Analyzing risk response options (Acceptance, Avoidance, Mitigation, or Transference) and deciding how to approach and plan risk management activities."]
[null,"Risk Rating",null,"A quantitative or qualitative value based on the likelihood/probability of impact and the level of impact."]
[null,"Risk Register",null,"A document detailing all identified risks, including description, cause, likelihood/probability of occurring, impact(s) on objectives, proposed responses, cost to mitigate, remaining exposure, owners, and current status."]
[null,"Risk Resolution Date",null,"Date by when the risk must be resolved."]
[null,"Risk Response Options",null,"Various ways to address risks including take advantage, terminate, tolerate, transfer, and treat a risk."]
[null,"Risk Response: Take Advantage",null,"When the risk's potential upside exceeds the likelihood of its negative consequences, the agency can choose to \"take advantage\" of the risk, monitoring the risk appropriately."]
[null,"Risk Response: Terminate",null,"A risk response option that results in terminating the risk by stopping a practice or eliminating the source of the risk."]
[null,"Risk Response: Tolerate",null,"Accepting the risk and providing regular monitoring or treatment of the risk. Typical reasons for selecting this risk response option might be because the chance of occurrence is unlikely, the risk impact is low, or the risk is outside of agency control."]
[null,"Risk Response: Transfer",null,"This risk response option seeks to shift the impact of a risk to a third party together with ownership of the response. Transferring risk is common in the private sector, but less so in the public sector. The most common way to transfer risk is through insurance."]
[null,"Risk Response: Treat",null,"If treatment is possible and its benefits outweigh its costs, the agency could decide to act on and mitigate the risk."]
[null,"Risk Statement",null,"An actionable statement that describes a risk event —a situation that exists or may come to exist—as well as the possible negative consequence."]
[null,"Threat",null,"Uncertainty with a presumed negative impact. A possible event that results in an adverse consequence."]

{"sheet":"REF - FAQs","index":11,"n_rows":12,"n_cols":3,"rows_kept":12,"cut":false,"hidden":true,"merged":[[11,2,11,5],[10,2,10,4],[9,2,9,5],[8,2,8,4],[0,0,0,6],[2,2,2,4],[4,2,4,4],[6,2,6,4],[3,2,3,5],[5,2,5,5],[7,2,7,5]]}
["FREQUENTLY ASKED QUESTIONS"]
[]
[null,1,"How do you write a proper risk statement? "]
[null,null,"Each risk should have its own, unique risk statement. The statement should consist of a defined event and the impact resulting from the event. The statement should be concise but comprehensive. There are various formats to a risk statement but one of the more popular and recommended formats is the if/then format: \n\n“If <RISK EVENT> happens, then <CONSEQUENCE> will happen to <WHOM>, causing a/an <IMPACT> of <RESULT>.”\n\n"]
[null,2,"How does the impact and likelihood of a risk (the risk rating) influence how I should respond to that risk? "]
[null,null,"The risk rating is based on the impact and likelihood score, as defined by the user, and is the result of multiplying the two scores together. The rating is used to prioritize the risks, the higher the score, the greater the impact caused by the risk. This simple formula can help your agency rank the risks and focus on the risks that are either a) more likely to occur or b) will cause the most impact to the agency or program. Please refer to NCHRP 08-93: Managing Risk Across the Enterprise: A Guide for State Departments of Transportation for additional guidance on developing risk response strategies."]
[null,3,"How is the risk register integrated with my risk response strategies and actions? "]
[null,null,"Within the risk register, under the 'INPUT - Management' sheet, the user identifies an appropriate response action/strategy for each risk. This is an overarching response action/strategy and should serve as a starting point for a detailed risk response plan. For each risk, or for a group of risks, one should develop a risk response plan. The plan will provide further details on the risk(s), the response strategy and specific action steps that should be taken to address the risk(s). Further, the plan should identify who is responsible for each action step and when these steps should be addressed. "]
[null,4,"How do I determine my agency's risk categories, either at the enterprise or program-level? "]
[null,null,"Risk categories are specific to each agency and typically relate back to the agency's strategic goals (at the enterprise-level) or their program goals (at the program-level). As part of this NCHRP Project, the research team identified sample risk categories at the enterprise-level. These enterprise-level categories are identified in the Enterprise-level Example, on the Risk Rating Categories & Rating sheet. Further, the Program-level Example identifies common program-level risk categories for a typical asset management program. It is the responsibility of the agency to determine which risk categories it should use. If an agency is unsure of what categories to use, the agency should start with the risk categories in the Enterprise-level Example and expand on the categories, as needed. The final project report also contains illustrative listings of enterprise and program-level risk categories based on the research conducted to develop this tool."]
[null,5,"Can I use this register/tool to assess opportunities, in addition to threats? "]
[null,null,"This tool was specifically designed to assess threats (and not opportunities) at the enterprise and program-levels. Assessing opportunity is becoming more popular and as an agency advances its risk management program, it is recommended practice. Although the tool is designed for assessing risks, with some minor changes, the tool can become an \"Opportunity Register\". However, there is no guidance provided in making the required changes and it is the responsibility of the user to make the appropriate changes. Using the tool both as a Threat Risk Register and Opportunity Register simultaneously is not recommended (the user should create two separate files, one for threats and one for opportunities)."]